Workbook

Sheet Main
B10: 2019-05-08
B12: Sheet No. | C12: Template Name | D12: Summary
B13: 1 | C13: Future Intra | D13: For Intraday trading in F&O segment
B14: 2 | C14: Cash Intra | D14: For Intraday trading in cash market segment
B15: 3 | C15: Mid-cap Intra | D15: For Intraday trading in Mid-cap stocks
B16: 4 | C16: Bulk Deals | D16: Reveals Bulk Deals carried on NSE & BSE
B17: 5 | C17: Call Tracker
K27: `

Sheet Future Intra
M5: Back to Main Page
A6: FOR INTRA DAY TRADING | L6: =Main!B10 -> 2019-05-08
A9: Sr.no | B9: Sector | C9: Scrip | D9: CLOSE RATE | E9: Pivot Point | F9: Supports | I9: Resistances
B10: Sector | D10: Point | E10: Point | F10: S1 | G10: S2 | H10: S3 | I10: R1 | J10: R2 | K10: R3 | L10: HIGH | M10: LOW | N10: OI | O10: % Change in OI
A11: 1 | B11: Index | C11: BANKNIFTY | D11: 29418.45 | E11: 29578.10 | F11: 29210.35 | G11: 29002.25 | H11: 28634.50 | I11: 29786.20 | J11: 30153.95 | K11: 30362.05 | L11: 29945.85 | M11: 29370 | N11: 1903680 | O11: 6.42%
A12: 2 | B12: Index | C12: NIFTY | D12: 11541.90 | E12: 11588.42 | F12: 11484.83 | G12: 11427.77 | H12: 11324.18 | I12: 11645.48 | J12: 11749.07 | K12: 11806.13 | L12: 11692 | M12: 11531.35 | N12: 20017275 | O12: -0.48%
A13: 3 | B13: Index | C13: NIFTYIT | D13: 16163.00 | E13: 16189.33 | F13: 16113.67 | G13: 16064.33 | H13: 15988.67 | I13: 16238.67 | J13: 16314.33 | K13: 16363.67 | L13: 16265 | M13: 16140 | N13: 17350 | O13: 1.76%
A14: 4 | B14: Cement | C14: ACC | D14: 1608.65 | E14: 1620.07 | F14: 1592.18 | G14: 1575.72 | H14: 1547.83 | I14: 1636.53 | J14: 1664.42 | K14: 1680.88 | L14: 1647.95 | M14: 1603.6 | N14: 2514000 | O14: -1.78%
A15: 5 | B15: Others | C15: ADANIENT | D15: 122.30 | E15: 123.47 | F15: 119.63 | G15: 116.97 | H15: 113.13 | I15: 126.13 | J15: 129.97 | K15: 132.63 | L15: 127.3 | M15: 120.8 | N15: 40664000 | O15: -0.14%
A16: 6 | B16: Others | C16: ADANIPORTS | D16: 373.70 | E16: 377.35 | F16: 368.80 | G16: 363.90 | H16: 355.35 | I16: 382.25 | J16: 390.80 | K16: 395.70 | L16: 385.9 | M16: 372.45 | N16: 15095000 | O16: -0.56%
A17: 7 | B17: Power | C17: ADANIPOWER | D17: 41.55 | E17: 42.18 | F17: 40.62 | G17: 39.68 | H17: 38.12 | I17: 43.12 | J17: 44.68 | K17: 45.62 | L17: 43.75 | M17: 41.25 | N17: 145420000 | O17: 0.26%
A18: 8 | B18: Pharma | C18: AJANTPHARM | D18: 1052.85 | E18: 1059.73 | F18: 1038.47 | G18: 1024.08 | H18: 1002.82 | I18: 1074.12 | J18: 1095.38 | K18: 1109.77 | L18: 1081 | M18: 1045.35 | N18: 679000 | O18: -8.31%
A19: 9 | B19: Banking | C19: ALBK | D19: 44.65 | E19: 45.28 | F19: 43.77 | G19: 42.88 | H19: 41.37 | I19: 46.17 | J19: 47.68 | K19: 48.57 | L19: 46.8 | M19: 44.4 | N19: 21216000 | O19: 3.23%
A20: 10 | B20: Automobile | C20: AMARAJABAT | D20: 646.25 | E20: 648.92 | F20: 641.83 | G20: 637.42 | H20: 630.33 | I20: 653.33 | J20: 660.42 | K20: 664.83 | L20: 656 | M20: 644.5 | N20: 1640800 | O20: 3.12%
A21: 11 | B21: Cement | C21: AMBUJACEM | D21: 219.10 | E21: 220.27 | F21: 217.03 | G21: 214.97 | H21: 211.73 | I21: 222.33 | J21: 225.57 | K21: 227.63 | L21: 223.5 | M21: 218.2 | N21: 22762500 | O21: -2.26%
A22: 12 | B22: Others | C22: APOLLOHOSP | D22: 1164.20 | E22: 1173.37 | F22: 1145.08 | G22: 1125.97 | H22: 1097.68 | I22: 1192.48 | J22: 1220.77 | K22: 1239.88 | L22: 1201.65 | M22: 1154.25 | N22: 1101000 | O22: -1.78%
A23: 13 | B23: Automobile | C23: APOLLOTYRE | D23: 196.20 | E23: 197.33 | F23: 194.27 | G23: 192.33 | H23: 189.27 | I23: 199.27 | J23: 202.33 | K23: 204.27 | L23: 200.4 | M23: 195.4 | N23: 10026000 | O23: 0.06%
A24: 14 | B24: Textile | C24: ARVIND | D24: 79.55 | E24: 80.53 | F24: 78.22 | G24: 76.88 | H24: 74.57 | I24: 81.87 | J24: 84.18 | K24: 85.52 | L24: 82.85 | M24: 79.2 | N24: 5146000 | O24: 9.03%
A25: 15 | B25: Automobile | C25: ASHOKLEY | D25: 86.35 | E25: 87.22 | F25: 85.18 | G25: 84.02 | H25: 81.98 | I25: 88.38 | J25: 90.42 | K25: 91.58 | L25: 89.25 | M25: 86.05 | N25: 73004000 | O25: 1.12%
A26: 16 | B26: FMCG | C26: ASIANPAINT | D26: 1392.90 | E26: 1402.37 | F26: 1373.43 | G26: 1353.97 | H26: 1325.03 | I26: 1421.83 | J26: 1450.77 | K26: 1470.23 | L26: 1431.3 | M26: 1382.9 | N26: 5754600 | O26: 14.02%
A27: 17 | B27: Pharma | C27: AUROPHARMA | D27: 772.80 | E27: 777.47 | F27: 762.43 | G27: 752.07 | H27: 737.03 | I27: 787.83 | J27: 802.87 | K27: 813.23 | L27: 792.5 | M27: 767.1 | N27: 17355000 | O27: -0.40%
A28: 18 | B28: Banking | C28: AXISBANK | D28: 746.80 | E28: 750.83 | F28: 740.97 | G28: 735.13 | H28: 725.27 | I28: 756.67 | J28: 766.53 | K28: 772.37 | L28: 760.7 | M28: 745 | N28: 35674800 | O28: -3.13%
A29: 19 | B29: Automobile | C29: BAJAJ-AUTO | D29: 3036.75 | E29: 3043.12 | F29: 3021.38 | G29: 3006.02 | H29: 2984.28 | I29: 3058.48 | J29: 3080.22 | K29: 3095.58 | L29: 3064.85 | M29: 3027.75 | N29: 3096000 | O29: -1.55%
A30: 20 | B30: Others | C30: BAJAJFINSV | D30: 7595.45 | E30: 7651.18 | F30: 7525.37 | G30: 7455.28 | H30: 7329.47 | I30: 7721.27 | J30: 7847.08 | K30: 7917.17 | L30: 7777 | M30: 7581.1 | N30: 568875 | O30: -2.82%
A31: 21 | B31: Finance | C31: BAJFINANCE | D31: 3037.25 | E31: 3053.40 | F31: 3014.55 | G31: 2991.85 | H31: 2953.00 | I31: 3076.10 | J31: 3114.95 | K31: 3137.65 | L31: 3092.25 | M31: 3030.7 | N31: 5062750 | O31: 1.08%
A32: 22 | B32: Others | C32: BALKRISIND | D32: 861.75 | E32: 868.12 | F32: 850.88 | G32: 840.02 | H32: 822.78 | I32: 878.98 | J32: 896.22 | K32: 907.08 | L32: 885.35 | M32: 857.25 | N32: 1364000 | O32: -4.16%
A33: 23 | B33: Banking | C33: BANKBARODA | D33: 113.35 | E33: 114.80 | F33: 111.40 | G33: 109.45 | H33: 106.05 | I33: 116.75 | J33: 120.15 | K33: 122.10 | L33: 118.2 | M33: 112.85 | N33: 51480000 | O33: 4.33%
A34: 24 | B34: Banking | C34: BANKINDIA | D34: 85.15 | E34: 86.37 | F34: 83.53 | G34: 81.92 | H34: 79.08 | I34: 87.98 | J34: 90.82 | K34: 92.43 | L34: 89.2 | M34: 84.75 | N34: 24654000 | O34: 1.08%
A35: 25 | B35: FMCG | C35: BATAINDIA | D35: 1358.05 | E35: 1363.63 | F35: 1348.42 | G35: 1338.78 | H35: 1323.57 | I35: 1373.27 | J35: 1388.48 | K35: 1398.12 | L35: 1378.85 | M35: 1354 | N35: 2072950 | O35: 7.90%
A36: 26 | B36: Capital_Goods | C36: BEL | D36: 87.00 | E36: 87.78 | F36: 85.92 | G36: 84.83 | H36: 82.97 | I36: 88.87 | J36: 90.73 | K36: 91.82 | L36: 89.65 | M36: 86.7 | N36: 34668000 | O36: -3.73%
A37: 27 | B37: Infrastructure | C37: BEML | D37: 839.70 | E37: 847.12 | F37: 829.43 | G37: 819.17 | H37: 801.48 | I37: 857.38 | J37: 875.07 | K37: 885.33 | L37: 864.8 | M37: 836.85 | N37: 1351000 | O37: -0.57%
A38: 28 | B38: Others | C38: BERGEPAINT | D38: 305.85 | E38: 308.27 | F38: 302.03 | G38: 298.22 | H38: 291.98 | I38: 312.08 | J38: 318.32 | K38: 322.13 | L38: 314.5 | M38: 304.45 | N38: 2686200 | O38: 2.35%
A39: 29 | B39: Finance | C39: BHARATFIN | D39: 950.85 | E39: 955.02 | F39: 939.33 | G39: 927.82 | H39: 912.13 | I39: 966.53 | J39: 982.22 | K39: 993.73 | L39: 970.7 | M39: 943.5 | N39: 6503000 | O39: 17.39%
A40: 30 | B40: Automobile | C40: BHARATFORG | D40: 467.60 | E40: 470.90 | F40: 463.10 | G40: 458.60 | H40: 450.80 | I40: 475.40 | J40: 483.20 | K40: 487.70 | L40: 478.7 | M40: 466.4 | N40: 9409200 | O40: 0.38%
A41: 31 | B41: Telecom | C41: BHARTIARTL | D41: 325.85 | E41: 330.85 | F41: 318.20 | G41: 310.55 | H41: 297.90 | I41: 338.50 | J41: 351.15 | K41: 358.80 | L41: 343.5 | M41: 323.2 | N41: 42784014 | O41: -5.33%
A42: 32 | B42: Capital_Goods | C42: BHEL | D42: 64.30 | E42: 65.05 | F42: 63.05 | G42: 61.80 | H42: 59.80 | I42: 66.30 | J42: 68.30 | K42: 69.55 | L42: 67.05 | M42: 63.8 | N42: 50010000 | O42: -0.33%
A43: 33 | B43: Pharma | C43: BIOCON | D43: 553.25 | E43: 554.97 | F43: 547.58 | G43: 541.92 | H43: 534.53 | I43: 560.63 | J43: 568.02 | K43: 573.68 | L43: 562.35 | M43: 549.3 | N43: 8153100 | O43: -4.40%
A44: 34 | B44: Automobile | C44: BOSCHLTD | D44: 17841.15 | E44: 17870.20 | F44: 17617.30 | G44: 17393.45 | H44: 17140.55 | I44: 18094.05 | J44: 18346.95 | K44: 18570.80 | L44: 18123.1 | M44: 17646.35 | N44: 151920 | O44: 2.28%
A45: 35 | B45: Oil_Gas | C45: BPCL | D45: 380.15 | E45: 381.02 | F45: 372.48 | G45: 364.82 | H45: 356.28 | I45: 388.68 | J45: 397.22 | K45: 404.88 | L45: 389.55 | M45: 373.35 | N45: 14432400 | O45: -1.60%
A46: 36 | B46: FMCG | C46: BRITANNIA | D46: 2667.80 | E46: 2688.77 | F46: 2642.08 | G46: 2616.37 | H46: 2569.68 | I46: 2714.48 | J46: 2761.17 | K46: 2786.88 | L46: 2735.45 | M46: 2663.05 | N46: 2449000 | O46: 3.36%
A47: 37 | B47: Pharma | C47: CADILAHC | D47: 300.30 | E47: 303.63 | F47: 294.87 | G47: 289.43 | H47: 280.67 | I47: 309.07 | J47: 317.83 | K47: 323.27 | L47: 312.4 | M47: 298.2 | N47: 14097600 | O47: -2.23%
A48: 38 | B48: Banking | C48: CANBK | D48: 258.15 | E48: 261.53 | F48: 252.92 | G48: 247.68 | H48: 239.07 | I48: 266.77 | J48: 275.38 | K48: 280.62 | L48: 270.15 | M48: 256.3 | N48: 9526000 | O48: 2.65%
A49: 39 | B49: Others | C49: CANFINHOME | D49: 317.25 | E49: 321.68 | F49: 311.77 | G49: 306.28 | H49: 296.37 | I49: 327.17 | J49: 337.08 | K49: 342.57 | L49: 331.6 | M49: 316.2 | N49: 3364200 | O49: -5.27%
A50: 40 | B50: Oil_Gas | C50: CASTROLIND | D50: 146.70 | E50: 147.35 | F50: 145.45 | G50: 144.20 | H50: 142.30 | I50: 148.60 | J50: 150.50 | K50: 151.75 | L50: 149.25 | M50: 146.1 | N50: 6381800 | O50: -2.34%
A51: 41 | B51: Automobile | C51: CEATLTD | D51: 1027.80 | E51: 1032.78 | F51: 1017.27 | G51: 1006.73 | H51: 991.22 | I51: 1043.32 | J51: 1058.83 | K51: 1069.37 | L51: 1048.3 | M51: 1022.25 | N51: 1088000 | O51: 2.76%
A52: 42 | B52: Textile | C52: CENTURYTEX | D52: 911.45 | E52: 914.83 | F52: 900.72 | G52: 889.98 | H52: 875.87 | I52: 925.57 | J52: 939.68 | K52: 950.42 | L52: 928.95 | M52: 904.1 | N52: 4420800 | O52: -0.09%
A53: 43 | B53: Power | C53: CESC | D53: 685.65 | E53: 690.42 | F53: 679.23 | G53: 672.82 | H53: 661.63 | I53: 696.83 | J53: 708.02 | K53: 714.43 | L53: 701.6 | M53: 684 | N53: 1093400 | O53: 1.95%
A54: 44 | B54: Power | C54: CGPOWER | D54: 35.65 | E54: 36.07 | F54: 33.68 | G54: 31.72 | H54: 29.33 | I54: 38.03 | J54: 40.42 | K54: 42.38 | L54: 38.45 | M54: 34.1 | N54: 24036000 | O54: 14.65%
A55: 45 | B55: Others | C55: CHENNPETRO | D55: 245.40 | E55: 245.65 | F55: 239.25 | G55: 233.10 | H55: 226.70 | I55: 251.80 | J55: 258.20 | K55: 264.35 | L55: 252.05 | M55: 239.5 | N55: 1211400 | O55: 7.51%
A56: 46 | B56: Others | C56: CHOLAFIN | D56: 1310.20 | E56: 1318.67 | F56: 1297.68 | G56: 1285.17 | H56: 1264.18 | I56: 1331.18 | J56: 1352.17 | K56: 1364.68 | L56: 1339.65 | M56: 1306.15 | N56: 637000 | O56: -11.89%
A57: 47 | B57: Pharma | C57: CIPLA | D57: 561.50 | E57: 563.20 | F57: 557.05 | G57: 552.60 | H57: 546.45 | I57: 567.65 | J57: 573.80 | K57: 578.25 | L57: 569.35 | M57: 558.75 | N57: 12119000 | O57: 1.37%
A58: 48 | B58: Others | C58: COALINDIA | D58: 250.60 | E58: 252.20 | F58: 247.90 | G58: 245.20 | H58: 240.90 | I58: 254.90 | J58: 259.20 | K58: 261.90 | L58: 256.5 | M58: 249.5 | N58: 27310800 | O58: 2.25%
A59: 49 | B59: FMCG | C59: COLPAL | D59: 1166.80 | E59: 1169.15 | F59: 1158.30 | G59: 1149.80 | H59: 1138.95 | I59: 1177.65 | J59: 1188.50 | K59: 1197.00 | L59: 1180 | M59: 1160.65 | N59: 2110500 | O59: -0.99%
A60: 50 | B60: Others | C60: CONCOR | D60: 493.40 | E60: 496.10 | F60: 489.20 | G60: 485.00 | H60: 478.10 | I60: 500.30 | J60: 507.20 | K60: 511.40 | L60: 503 | M60: 491.9 | N60: 1586445 | O60: -2.31%
A61: 51 | B61: Capital_Goods | C61: CUMMINSIND | D61: 704.80 | E61: 708.38 | F61: 697.77 | G61: 690.73 | H61: 680.12 | I61: 715.42 | J61: 726.03 | K61: 733.07 | L61: 719 | M61: 701.35 | N61: 1369900 | O61: -4.82%
A62: 52 | B62: FMCG | C62: DABUR | D62: 378.25 | E62: 380.63 | F62: 374.77 | G62: 371.28 | H62: 365.42 | I62: 384.12 | J62: 389.98 | K62: 393.47 | L62: 386.5 | M62: 377.15 | N62: 14898750 | O62: 4.76%
A63: 53 | B63: Banking | C63: DCBBANK | D63: 212.55 | E63: 214.42 | F63: 209.98 | G63: 207.42 | H63: 202.98 | I63: 216.98 | J63: 221.42 | K63: 223.98 | L63: 218.85 | M63: 211.85 | N63: 4513500 | O63: -6.96%
A64: 54 | B64: Finance | C64: DHFL | D64: 115.10 | E64: 121.52 | F64: 107.08 | G64: 99.07 | H64: 84.63 | I64: 129.53 | J64: 143.97 | K64: 151.98 | L64: 135.95 | M64: 113.5 | N64: 20256500 | O64: -5.08%
A65: 55 | B65: Media | C65: DISHTV | D65: 31.80 | E65: 32.35 | F65: 29.30 | G65: 26.80 | H65: 23.75 | I65: 34.85 | J65: 37.90 | K65: 40.40 | L65: 35.4 | M65: 29.85 | N65: 58078000 | O65: 2.72%
A66: 56 | B66: Pharma | C66: DIVISLAB | D66: 1700.45 | E66: 1702.65 | F66: 1687.80 | G66: 1675.15 | H66: 1660.30 | I66: 1715.30 | J66: 1730.15 | K66: 1742.80 | L66: 1717.5 | M66: 1690 | N66: 2510400 | O66: 1.29%
A67: 57 | B67: Realty | C67: DLF | D67: 170.45 | E67: 172.22 | F67: 167.43 | G67: 164.42 | H67: 159.63 | I67: 175.23 | J67: 180.02 | K67: 183.03 | L67: 177 | M67: 169.2 | N67: 46108800 | O67: -1.94%
A68: 58 | B68: Pharma | C68: DRREDDY | D68: 2950.50 | E68: 2951.17 | F68: 2938.03 | G68: 2925.57 | H68: 2912.43 | I68: 2963.63 | J68: 2976.77 | K68: 2989.23 | L68: 2964.3 | M68: 2938.7 | N68: 3275000 | O68: -0.86%
A69: 59 | B69: Automobile | C69: EICHERMOT | D69: 20349.45 | E69: 20419.52 | F69: 20239.03 | G69: 20128.62 | H69: 19948.13 | I69: 20529.93 | J69: 20710.42 | K69: 20820.83 | L69: 20600 | M69: 20309.1 | N69: 351550 | O69: 0.85%
A70: 60 | B70: Infrastructure | C70: ENGINERSIN | D70: 108.70 | E70: 109.52 | F70: 107.38 | G70: 106.07 | H70: 103.93 | I70: 110.83 | J70: 112.97 | K70: 114.28 | L70: 111.65 | M70: 108.2 | N70: 7749000 | O70: -2.02%
A71: 61 | B71: Finance | C71: EQUITAS | D71: 128.45 | E71: 129.43 | F71: 125.42 | G71: 122.38 | H71: 118.37 | I71: 132.47 | J71: 136.48 | K71: 139.52 | L71: 133.45 | M71: 126.4 | N71: 11364000 | O71: 1.68%
A72: 62 | B72: Automobile | C72: ESCORTS | D72: 653.05 | E72: 657.80 | F72: 641.85 | G72: 630.65 | H72: 614.70 | I72: 669.00 | J72: 684.95 | K72: 696.15 | L72: 673.75 | M72: 646.6 | N72: 4541900 | O72: 13.87%
A73: 63 | B73: Automobile | C73: EXIDEIND | D73: 213.25 | E73: 214.55 | F73: 211.05 | G73: 208.85 | H73: 205.35 | I73: 216.75 | J73: 220.25 | K73: 222.45 | L73: 218.05 | M73: 212.35 | N73: 8532400 | O73: -1.86%
A74: 64 | B74: Banking | C74: FEDERALBNK | D74: 99.00 | E74: 99.90 | F74: 97.40 | G74: 95.80 | H74: 93.30 | I74: 101.50 | J74: 104.00 | K74: 105.60 | L74: 102.4 | M74: 98.3 | N74: 47887000 | O74: -7.33%
A75: 65 | B75: Oil_Gas | C75: GAIL | D75: 343.35 | E75: 345.52 | F75: 340.03 | G75: 336.72 | H75: 331.23 | I75: 348.83 | J75: 354.32 | K75: 357.63 | L75: 351 | M75: 342.2 | N75: 10529316 | O75: 2.92%
A76: 66 | B76: Pharma | C76: GLENMARK | D76: 637.10 | E76: 635.47 | F76: 629.73 | G76: 622.37 | H76: 616.63 | I76: 642.83 | J76: 648.57 | K76: 655.93 | L76: 641.2 | M76: 628.1 | N76: 3797000 | O76: -1.68%
A77: 67 | B77: Infrastructure | C77: GMRINFRA | D77: 16.05 | E77: 16.28 | F77: 15.67 | G77: 15.28 | H77: 14.67 | I77: 16.67 | J77: 17.28 | K77: 17.67 | L77: 16.9 | M77: 15.9 | N77: 192870000 | O77: 0.70%
A78: 68 | B78: Others | C78: GODFRYPHLP | D78: 1034.80 | E78: 1047.27 | F78: 1017.13 | G78: 999.47 | H78: 969.33 | I78: 1064.93 | J78: 1095.07 | K78: 1112.73 | L78: 1077.4 | M78: 1029.6 | N78: 597100 | O78: 1.91%
A79: 69 | B79: FMCG | C79: GODREJCP | D79: 638.55 | E79: 638.87 | F79: 630.98 | G79: 623.42 | H79: 615.53 | I79: 646.43 | J79: 654.32 | K79: 661.88 | L79: 646.75 | M79: 631.3 | N79: 5740600 | O79: 1.23%
A80: 70 | B80: FMCG | C80: GODREJIND | D80: 486.70 | E80: 493.58 | F80: 475.17 | G80: 463.63 | H80: 445.22 | I80: 505.12 | J80: 523.53 | K80: 535.07 | L80: 512 | M80: 482.05 | N80: 1021500 | O80: 12.19%
A81: 71 | B81: Cement | C81: GRASIM | D81: 876.95 | E81: 886.40 | F81: 862.75 | G81: 848.55 | H81: 824.90 | I81: 900.60 | J81: 924.25 | K81: 938.45 | L81: 910.05 | M81: 872.2 | N81: 9510000 | O81: 1.57%
A82: 72 | B82: Others | C82: GSFC | D82: 94.80 | E82: 96.13 | F82: 93.02 | G82: 91.23 | H82: 88.12 | I82: 97.92 | J82: 101.03 | K82: 102.82 | L82: 99.25 | M82: 94.35 | N82: 10020400 | O82: -0.74%
A83: 73 | B83: Others | C83: HAVELLS | D83: 743.80 | E83: 747.10 | F83: 736.75 | G83: 729.70 | H83: 719.35 | I83: 754.15 | J83: 764.50 | K83: 771.55 | L83: 757.45 | M83: 740.05 | N83: 4210000 | O83: 0.24%
A84: 74 | B84: Technology | C84: HCLTECH | D84: 1137.50 | E84: 1139.20 | F84: 1121.30 | G84: 1105.10 | H84: 1087.20 | I84: 1155.40 | J84: 1173.30 | K84: 1189.50 | L84: 1157.1 | M84: 1123 | N84: 9328200 | O84: 4.84%
A85: 75 | B85: Finance | C85: HDFC | D85: 1976.60 | E85: 1988.58 | F85: 1959.42 | G85: 1942.23 | H85: 1913.07 | I85: 2005.77 | J85: 2034.93 | K85: 2052.12 | L85: 2017.75 | M85: 1971.4 | N85: 27211000 | O85: -0.88%
A86: 76 | B86: Banking | C86: HDFCBANK | D86: 2334.60 | E86: 2342.98 | F86: 2322.07 | G86: 2309.53 | H86: 2288.62 | I86: 2355.52 | J86: 2376.43 | K86: 2388.97 | L86: 2363.9 | M86: 2330.45 | N86: 11443000 | O86: -0.90%
A87: 77 | B87: Automobile | C87: HEROMOTOCO | D87: 2536.45 | E87: 2550.48 | F87: 2517.97 | G87: 2499.48 | H87: 2466.97 | I87: 2568.97 | J87: 2601.48 | K87: 2619.97 | L87: 2583 | M87: 2532 | N87: 2639000 | O87: 1.23%
A88: 78 | B88: Technology | C88: HEXAWARE | D88: 346.45 | E88: 343.95 | F88: 339.50 | G88: 332.55 | H88: 328.10 | I88: 350.90 | J88: 355.35 | K88: 362.30 | L88: 348.4 | M88: 337 | N88: 1903500 | O88: -16.18%
A89: 79 | B89: Metals | C89: HINDALCO | D89: 201.10 | E89: 202.25 | F89: 198.90 | G89: 196.70 | H89: 193.35 | I89: 204.45 | J89: 207.80 | K89: 210.00 | L89: 205.6 | M89: 200.05 | N89: 32984000 | O89: -0.22%
A90: 80 | B90: Oil_Gas | C90: HINDPETRO | D90: 286.55 | E90: 286.07 | F90: 279.98 | G90: 273.42 | H90: 267.33 | I90: 292.63 | J90: 298.72 | K90: 305.28 | L90: 292.15 | M90: 279.5 | N90: 13475700 | O90: -1.56%
A91: 81 | B91: FMCG | C91: HINDUNILVR | D91: 1705.05 | E91: 1701.60 | F91: 1684.20 | G91: 1663.35 | H91: 1645.95 | I91: 1722.45 | J91: 1739.85 | K91: 1760.70 | L91: 1719 | M91: 1680.75 | N91: 10786200 | O91: -0.20%
A92: 82 | B92: Metals | C92: HINDZINC | D92: 269.80 | E92: 271.78 | F92: 267.07 | G92: 264.33 | H92: 259.62 | I92: 274.52 | J92: 279.23 | K92: 281.97 | L92: 276.5 | M92: 269.05 | N92: 3609600 | O92: -0.18%
A93: 83 | B93: Finance | C93: IBULHSGFIN | D93: 681.55 | E93: 684.45 | F93: 672.95 | G93: 664.35 | H93: 652.85 | I93: 693.05 | J93: 704.55 | K93: 713.15 | L93: 695.95 | M93: 675.85 | N93: 15268300 | O93: 3.82%
A94: 84 | B94: Banking | C94: ICICIBANK | D94: 388.35 | E94: 394.70 | F94: 380.20 | G94: 372.05 | H94: 357.55 | I94: 402.85 | J94: 417.35 | K94: 425.50 | L94: 409.2 | M94: 386.55 | N94: 96153750 | O94: -6.72%
A95: 85 | B95: Others | C95: ICICIPRULI | D95: 363.70 | E95: 365.60 | F95: 359.60 | G95: 355.50 | H95: 349.50 | I95: 369.70 | J95: 375.70 | K95: 379.80 | L95: 371.6 | M95: 361.5 | N95: 6676500 | O95: -0.65%
A96: 86 | B96: Banking | C96: IDBI | D96: 37.00 | E96: 37.55 | F96: 36.20 | G96: 35.40 | H96: 34.05 | I96: 38.35 | J96: 39.70 | K96: 40.50 | L96: 38.9 | M96: 36.75 | N96: 30526000 | O96: 4.35%
A97: 87 | B97: Telecom | C97: IDEA | D97: 15.30 | E97: 15.62 | F97: 14.83 | G97: 14.37 | H97: 13.58 | I97: 16.08 | J97: 16.87 | K97: 17.33 | L97: 16.4 | M97: 15.15 | N97: 530771032 | O97: 0.42%
A98: 88 | B98: Finance | C98: IDFC | D98: 37.25 | E98: 37.68 | F98: 36.67 | G98: 36.08 | H98: 35.07 | I98: 38.27 | J98: 39.28 | K98: 39.87 | L98: 38.7 | M98: 37.1 | N98: 80480400 | O98: -0.13%
A99: 89 | B99: Banking | C99: IDFCFIRSTB | D99: 48.95 | E99: 49.55 | F99: 48.15 | G99: 47.35 | H99: 45.95 | I99: 50.35 | J99: 51.75 | K99: 52.55 | L99: 50.95 | M99: 48.75 | N99: 126924000 | O99: -1.05%
A100: 90 | B100: Finance | C100: IFCI | D100: 9.45 | E100: 9.60 | F100: 9.20 | G100: 8.95 | H100: 8.55 | I100: 9.85 | J100: 10.25 | K100: 10.50 | L100: 10 | M100: 9.35 | N100: 59675000 | O100: -0.35%
A101: 91 | B101: Oil_Gas | C101: IGL | D101: 308.65 | E101: 311.12 | F101: 303.93 | G101: 299.22 | H101: 292.03 | I101: 315.83 | J101: 323.02 | K101: 327.73 | L101: 318.3 | M101: 306.4 | N101: 2392500 | O101: -0.80%
A102: 92 | B102: Cement | C102: INDIACEM | D102: 103.45 | E102: 105.28 | F102: 101.12 | G102: 98.78 | H102: 94.62 | I102: 107.62 | J102: 111.78 | K102: 114.12 | L102: 109.45 | M102: 102.95 | N102: 15772500 | O102: 2.67%
A103: 93 | B103: Banking | C103: INDIANB | D103: 242.90 | E103: 245.63 | F103: 239.27 | G103: 235.63 | H103: 229.27 | I103: 249.27 | J103: 255.63 | K103: 259.27 | L103: 252 | M103: 242 | N103: 3678000 | O103: 7.23%
A104: 94 | B104: Others | C104: INDIGO | D104: 1580.60 | E104: 1575.60 | F104: 1560.20 | G104: 1539.80 | H104: 1524.40 | I104: 1596.00 | J104: 1611.40 | K104: 1631.80 | L104: 1591 | M104: 1555.2 | N104: 2627400 | O104: -1.37%
A105: 95 | B105: Banking | C105: INDUSINDBK | D105: 1522.75 | E105: 1526.40 | F105: 1501.45 | G105: 1480.15 | H105: 1455.20 | I105: 1547.70 | J105: 1572.65 | K105: 1593.95 | L105: 1551.35 | M105: 1505.1 | N105: 9431300 | O105: 3.88%
A106: 96 | B106: Technology | C106: INFIBEAM | D106: 42.35 | E106: 43.05 | F106: 41.00 | G106: 39.65 | H106: 37.60 | I106: 44.40 | J106: 46.45 | K106: 47.80 | L106: 45.1 | M106: 41.7 | N106: 9380000 | O106: -1.30%
A107: 97 | B107: Telecom | C107: INFRATEL | D107: 268.90 | E107: 268.62 | F107: 265.53 | G107: 262.17 | H107: 259.08 | I107: 271.98 | J107: 275.07 | K107: 278.43 | L107: 271.7 | M107: 265.25 | N107: 7562000 | O107: -0.21%
A108: 98 | B108: Technology | C108: INFY | D108: 727.65 | E108: 726.78 | F108: 722.72 | G108: 717.78 | H108: 713.72 | I108: 731.72 | J108: 735.78 | K108: 740.72 | L108: 730.85 | M108: 721.85 | N108: 48301200 | O108: -0.36%
A109: 99 | B109: Oil_Gas | C109: IOC | D109: 154.45 | E109: 154.88 | F109: 152.62 | G109: 150.78 | H109: 148.52 | I109: 156.72 | J109: 158.98 | K109: 160.82 | L109: 157.15 | M109: 153.05 | N109: 39417000 | O109: -0.66%
A110: 100 | B110: Infrastructure | C110: IRB | D110: 118.45 | E110: 119.37 | F110: 116.33 | G110: 114.22 | H110: 111.18 | I110: 121.48 | J110: 124.52 | K110: 126.63 | L110: 122.4 | M110: 117.25 | N110: 9488000 | O110: -1.03%
A111: 101 | B111: FMCG | C111: ITC | D111: 300.10 | E111: 302.02 | F111: 297.28 | G111: 294.47 | H111: 289.73 | I111: 304.83 | J111: 309.57 | K111: 312.38 | L111: 306.75 | M111: 299.2 | N111: 81350400 | O111: 2.28%
A112: 102 | B112: Others | C112: JETAIRWAYS | D112: 95.90 | E112: 94.12 | F112: 88.63 | G112: 81.37 | H112: 75.88 | I112: 101.38 | J112: 106.87 | K112: 114.13 | L112: 99.6 | M112: 86.85 | N112: 5365800 | O112: -5.76%
A113: 103 | B113: Metals | C113: JINDALSTEL | D113: 169.80 | E113: 171.95 | F113: 166.45 | G113: 163.10 | H113: 157.60 | I113: 175.30 | J113: 180.80 | K113: 184.15 | L113: 177.45 | M113: 168.6 | N113: 24184900 | O113: -1.43%
A114: 104 | B114: Others | C114: JISLJALEQS | D114: 50.45 | E114: 51.07 | F114: 49.48 | G114: 48.52 | H114: 46.93 | I114: 52.03 | J114: 53.62 | K114: 54.58 | L114: 52.65 | M114: 50.1 | N114: 29484000 | O114: 0.46%
A115: 105 | B115: Metals | C115: JSWSTEEL | D115: 290.10 | E115: 294.42 | F115: 284.43 | G115: 278.77 | H115: 268.78 | I115: 300.08 | J115: 310.07 | K115: 315.73 | L115: 304.4 | M115: 288.75 | N115: 45475000 | O115: 1.62%
A116: 106 | B116: Others | C116: JUBLFOOD | D116: 1286.20 | E116: 1297.63 | F116: 1271.37 | G116: 1256.53 | H116: 1230.27 | I116: 1312.47 | J116: 1338.73 | K116: 1353.57 | L116: 1323.9 | M116: 1282.8 | N116: 3102000 | O116: -2.96%
A117: 107 | B117: Others | C117: JUSTDIAL | D117: 571.05 | E117: 575.18 | F117: 564.22 | G117: 557.38 | H117: 546.42 | I117: 582.02 | J117: 592.98 | K117: 599.82 | L117: 586.15 | M117: 568.35 | N117: 2060800 | O117: -1.21%
A118: 108 | B118: Others | C118: KAJARIACER | D118: 559.85 | E118: 562.08 | F118: 544.17 | G118: 528.48 | H118: 510.57 | I118: 577.77 | J118: 595.68 | K118: 611.37 | L118: 580 | M118: 546.4 | N118: 1816100 | O118: 1.97%
A119: 109 | B119: Banking | C119: KOTAKBANK | D119: 1409.00 | E119: 1413.58 | F119: 1398.37 | G119: 1387.73 | H119: 1372.52 | I119: 1424.22 | J119: 1439.43 | K119: 1450.07 | L119: 1428.8 | M119: 1402.95 | N119: 8917600 | O119: -2.23%
A120: 110 | B120: Technology | C120: BSOFT | D120: 88.05 | E120: 87.68 | F120: 85.87 | G120: 83.68 | H120: 81.87 | I120: 89.87 | J120: 91.68 | K120: 93.87 | L120: 89.5 | M120: 85.5 | N120: 3179250 | O120: -2.28%
A121: 111 | B121: Others | C121: KSCL | D121: 444.55 | E121: 447.17 | F121: 438.33 | G121: 432.12 | H121: 423.28 | I121: 453.38 | J121: 462.22 | K121: 468.43 | L121: 456 | M121: 440.95 | N121: 862500 | O121: 5.31%
A122: 112 | B122: Banking | C122: KTKBANK | D122: 124.55 | E122: 126.50 | F122: 121.65 | G122: 118.75 | H122: 113.90 | I122: 129.40 | J122: 134.25 | K122: 137.15 | L122: 131.35 | M122: 123.6 | N122: 12967300 | O122: -0.79%
A123: 113 | B123: Finance | C123: L&TFH | D123: 122.95 | E123: 123.72 | F123: 121.78 | G123: 120.62 | H123: 118.68 | I123: 124.88 | J123: 126.82 | K123: 127.98 | L123: 125.65 | M123: 122.55 | N123: 27742500 | O123: -1.23%
A124: 114 | B124: Finance | C124: LICHSGFIN | D124: 476.10 | E124: 480.47 | F124: 470.63 | G124: 465.17 | H124: 455.33 | I124: 485.93 | J124: 495.77 | K124: 501.23 | L124: 490.3 | M124: 475 | N124: 8837400 | O124: -0.38%
A125: 115 | B125: Capital_Goods | C125: LT | D125: 1371.60 | E125: 1369.00 | F125: 1358.00 | G125: 1344.40 | H125: 1333.40 | I125: 1382.60 | J125: 1393.60 | K125: 1407.20 | L125: 1380 | M125: 1355.4 | N125: 8551500 | O125: -1.53%
A126: 116 | B126: Pharma | C126: LUPIN | D126: 860.65 | E126: 864.75 | F126: 853.15 | G126: 845.65 | H126: 834.05 | I126: 872.25 | J126: 883.85 | K126: 891.35 | L126: 876.35 | M126: 857.25 | N126: 8632400 | O126: -2.20%
A127: 117 | B127: Automobile | C127: M&M | D127: 638.10 | E127: 640.10 | F127: 635.00 | G127: 631.90 | H127: 626.80 | I127: 643.20 | J127: 648.30 | K127: 651.40 | L127: 645.2 | M127: 637 | N127: 19005000 | O127: 0.99%
A128: 118 | B128: Finance | C128: M&MFIN | D128: 386.60 | E128: 391.22 | F128: 380.63 | G128: 374.67 | H128: 364.08 | I128: 397.18 | J128: 407.77 | K128: 413.73 | L128: 401.8 | M128: 385.25 | N128: 11451250 | O128: -0.23%
A129: 119 | B129: Others | C129: MANAPPURAM | D129: 116.70 | E129: 117.23 | F129: 115.47 | G129: 114.23 | H129: 112.47 | I129: 118.47 | J129: 120.23 | K129: 121.47 | L129: 119 | M129: 116 | N129: 8754000 | O129: 0.07%
A130: 120 | B130: FMCG | C130: MARICO | D130: 362.00 | E130: 361.62 | F130: 354.43 | G130: 346.87 | H130: 339.68 | I130: 369.18 | J130: 376.37 | K130: 383.93 | L130: 368.8 | M130: 354.05 | N130: 7129200 | O130: 13.54%
A131: 121 | B131: Automobile | C131: MARUTI | D131: 6719.85 | E131: 6749.48 | F131: 6673.92 | G131: 6627.98 | H131: 6552.42 | I131: 6795.42 | J131: 6870.98 | K131: 6916.92 | L131: 6825.05 | M131: 6703.55 | N131: 2998500 | O131: -0.84%
A132: 122 | B132: FMCG | C132: MCDOWELL-N | D132: 524.90 | E132: 526.92 | F132: 520.98 | G132: 517.07 | H132: 511.13 | I132: 530.83 | J132: 536.77 | K132: 540.68 | L132: 532.85 | M132: 523 | N132: 11507500 | O132: -0.72%
A133: 123 | B133: Others | C133: MCX | D133: 847.40 | E133: 854.70 | F133: 837.75 | G133: 828.10 | H133: 811.15 | I133: 864.35 | J133: 881.30 | K133: 890.95 | L133: 871.65 | M133: 845.05 | N133: 1744400 | O133: 1.14%
A134: 124 | B134: Finance | C134: MFSL | D134: 410.80 | E134: 416.10 | F134: 402.45 | G134: 394.10 | H134: 380.45 | I134: 424.45 | J134: 438.10 | K134: 446.45 | L134: 429.75 | M134: 407.75 | N134: 2162400 | O134: 5.13%
A135: 125 | B135: Others | C135: MGL | D135: 952.15 | E135: 957.37 | F135: 941.78 | G135: 931.42 | H135: 915.83 | I135: 967.73 | J135: 983.32 | K135: 993.68 | L135: 972.95 | M135: 947 | N135: 676800 | O135: -1.83%
A136: 126 | B136: Technology | C136: MINDTREE | D136: 973.80 | E136: 976.75 | F136: 968.55 | G136: 963.30 | H136: 955.10 | I136: 982.00 | J136: 990.20 | K136: 995.45 | L136: 984.95 | M136: 971.5 | N136: 2070000 | O136: -0.89%
A137: 127 | B137: Automobile | C137: MOTHERSUMI | D137: 132.55 | E137: 133.78 | F137: 130.97 | G137: 129.38 | H137: 126.57 | I137: 135.37 | J137: 138.18 | K137: 139.77 | L137: 136.6 | M137: 132.2 | N137: 33902550 | O137: 1.65%
A138: 128 | B138: Automobile | C138: MRF | D138: 53273.00 | E138: 53572.67 | F138: 52701.33 | G138: 52129.67 | H138: 51258.33 | I138: 54144.33 | J138: 55015.67 | K138: 55587.33 | L138: 54444 | M138: 53001 | N138: 36900 | O138: -1.10%
A139: 129 | B139: Others | C139: MRPL | D139: 68.25 | E139: 69.12 | F139: 67.08 | G139: 65.92 | H139: 63.88 | I139: 70.28 | J139: 72.32 | K139: 73.48 | L139: 71.15 | M139: 67.95 | N139: 3878000 | O139: 4.53%
A140: 130 | B140: Finance | C140: MUTHOOTFIN | D140: 570.55 | E140: 579.95 | F140: 558.75 | G140: 546.95 | H140: 525.75 | I140: 591.75 | J140: 612.95 | K140: 624.75 | L140: 601.15 | M140: 568.15 | N140: 2028000 | O140: 8.68%
A141: 131 | B141: Others | C141: NATIONALUM | D141: 50.60 | E141: 51.03 | F141: 49.97 | G141: 49.33 | H141: 48.27 | I141: 51.67 | J141: 52.73 | K141: 53.37 | L141: 52.1 | M141: 50.4 | N141: 36812000 | O141: -0.37%
A142: 132 | B142: Others | C142: NBCC | D142: 56.55 | E142: 57.17 | F142: 55.68 | G142: 54.82 | H142: 53.33 | I142: 58.03 | J142: 59.52 | K142: 60.38 | L142: 58.65 | M142: 56.3 | N142: 34008000 | O142: 1.82%
A143: 133 | B143: Infrastructure | C143: NCC | D143: 92.80 | E143: 93.57 | F143: 91.48 | G143: 90.17 | H143: 88.08 | I143: 94.88 | J143: 96.97 | K143: 98.28 | L143: 95.65 | M143: 92.25 | N143: 32328000 | O143: 0.00%
A144: 134 | B144: Others | C144: NESTLEIND | D144: 10520.35 | E144: 10552.60 | F144: 10455.25 | G144: 10390.15 | H144: 10292.80 | I144: 10617.70 | J144: 10715.05 | K144: 10780.15 | L144: 10649.95 | M144: 10487.5 | N144: 319450 | O144: 2.37%
A145: 135 | B145: Power | C145: NHPC | D145: 23.25 | E145: 23.25 | F145: 23.10 | G145: 22.95 | H145: 22.80 | I145: 23.40 | J145: 23.55 | K145: 23.70 | L145: 23.4 | M145: 23.1 | N145: 18036000 | O145: -2.77%
A146: 136 | B146: Technology | C146: NIITTECH | D146: 1263.95 | E146: 1267.40 | F146: 1257.70 | G146: 1251.45 | H146: 1241.75 | I146: 1273.65 | J146: 1283.35 | K146: 1289.60 | L146: 1277.1 | M146: 1261.15 | N146: 1751250 | O146: 2.82%
A147: 137 | B147: Metals | C147: NMDC | D147: 97.05 | E147: 97.83 | F147: 96.02 | G147: 94.98 | H147: 93.17 | I147: 98.87 | J147: 100.68 | K147: 101.72 | L147: 99.65 | M147: 96.8 | N147: 17316000 | O147: -1.84%
A148: 138 | B148: Power | C148: NTPC | D148: 134.65 | E148: 135.20 | F148: 133.70 | G148: 132.75 | H148: 131.25 | I148: 136.15 | J148: 137.65 | K148: 138.60 | L148: 136.7 | M148: 134.25 | N148: 55420800 | O148: -0.86%
A149: 139 | B149: Technology | C149: OFSS | D149: 3467.40 | E149: 3462.70 | F149: 3442.85 | G149: 3418.30 | H149: 3398.45 | I149: 3487.25 | J149: 3507.10 | K149: 3531.65 | L149: 3482.55 | M149: 3438.15 | N149: 287550 | O149: -0.98%
A150: 140 | B150: Oil_Gas | C150: OIL | D150: 181.95 | E150: 182.60 | F150: 180.70 | G150: 179.45 | H150: 177.55 | I150: 183.85 | J150: 185.75 | K150: 187.00 | L150: 184.5 | M150: 181.35 | N150: 7542381 | O150: 1.46%
A151: 141 | B151: Oil_Gas | C151: ONGC | D151: 171.85 | E151: 171.32 | F151: 170.03 | G151: 168.22 | H151: 166.93 | I151: 173.13 | J151: 174.42 | K151: 176.23 | L151: 172.6 | M151: 169.5 | N151: 63832500 | O151: -0.18%
A152: 142 | B152: Banking | C152: ORIENTBANK | D152: 92.60 | E152: 93.97 | F152: 90.83 | G152: 89.07 | H152: 85.93 | I152: 95.73 | J152: 98.87 | K152: 100.63 | L152: 97.1 | M152: 92.2 | N152: 12726000 | O152: -0.66%
A153: 143 | B153: Textile | C153: PAGEIND | D153: 21827.45 | E153: 21909.15 | F153: 21658.30 | G153: 21489.15 | H153: 21238.30 | I153: 22078.30 | J153: 22329.15 | K153: 22498.30 | L153: 22160 | M153: 21740 | N153: 159625 | O153: 1.62%
A154: 144 | B154: Others | C154: PCJEWELLER | D154: 117.90 | E154: 121.32 | F154: 112.58 | G154: 107.27 | H154: 98.53 | I154: 126.63 | J154: 135.37 | K154: 140.68 | L154: 130.05 | M154: 116 | N154: 10894000 | O154: 2.76%
A155: 145 | B155: Pharma | C155: PEL | D155: 2269.60 | E155: 2268.82 | F155: 2217.73 | G155: 2165.87 | H155: 2114.78 | I155: 2320.68 | J155: 2371.77 | K155: 2423.63 | L155: 2319.9 | M155: 2216.95 | N155: 4581642 | O155: -4.13%
A156: 146 | B156: Oil_Gas | C156: PETRONET | D156: 238.90 | E156: 238.50 | F156: 237.15 | G156: 235.40 | H156: 234.05 | I156: 240.25 | J156: 241.60 | K156: 243.35 | L156: 239.85 | M156: 236.75 | N156: 9015000 | O156: -5.15%
A157: 147 | B157: Finance | C157: PFC | D157: 111.35 | E157: 112.72 | F157: 109.73 | G157: 108.12 | H157: 105.13 | I157: 114.33 | J157: 117.32 | K157: 118.93 | L157: 115.7 | M157: 111.1 | N157: 24074600 | O157: 1.38%
A158: 148 | B158: FMCG | C158: PIDILITIND | D158: 1184.70 | E158: 1190.50 | F158: 1176.25 | G158: 1167.80 | H158: 1153.55 | I158: 1198.95 | J158: 1213.20 | K158: 1221.65 | L158: 1204.75 | M158: 1182.05 | N158: 3285000 | O158: 2.56%
A159: 149 | B159: Banking | C159: PNB | D159: 84.45 | E159: 85.37 | F159: 83.03 | G159: 81.62 | H159: 79.28 | I159: 86.78 | J159: 89.12 | K159: 90.53 | L159: 87.7 | M159: 83.95 | N159: 95718000 | O159: 0.37%
A160: 150 | B160: Power | C160: POWERGRID | D160: 192.25 | E160: 192.85 | F160: 191.20 | G160: 190.15 | H160: 188.50 | I160: 193.90 | J160: 195.55 | K160: 196.60 | L160: 194.5 | M160: 191.8 | N160: 18004000 | O160: -3.18%
A161: 151 | B161: Others | C161: PVR | D161: 1775.85 | E161: 1779.88 | F161: 1767.07 | G161: 1758.28 | H161: 1745.47 | I161: 1788.67 | J161: 1801.48 | K161: 1810.27 | L161: 1792.7 | M161: 1771.1 | N161: 893200 | O161: -2.83%
A162: 152 | B162: Cement | C162: RAMCOCEM | D162: 756.50 | E162: 763.90 | F162: 745.90 | G162: 735.30 | H162: 717.30 | I162: 774.50 | J162: 792.50 | K162: 803.10 | L162: 781.9 | M162: 753.3 | N162: 1307200 | O162: -0.91%
A163: 153 | B163: Others | C163: RAYMOND | D163: 809.35 | E163: 808.52 | F163: 796.03 | G163: 782.72 | H163: 770.23 | I163: 821.83 | J163: 834.32 | K163: 847.63 | L163: 821 | M163: 795.2 | N163: 2828800 | O163: -5.93%
A164: 154 | B164: Banking | C164: RBLBANK | D164: 667.95 | E164: 671.12 | F164: 662.83 | G164: 657.72 | H164: 649.43 | I164: 676.23 | J164: 684.52 | K164: 689.63 | L164: 679.4 | M164: 666 | N164: 5714400 | O164: -2.14%
A165: 155 | B165: Power | C165: RECLTD | D165: 140.45 | E165: 141.47 | F165: 139.08 | G165: 137.72 | H165: 135.33 | I165: 142.83 | J165: 145.22 | K165: 146.58 | L165: 143.85 | M165: 140.1 | N165: 27654000 | O165: 1.70%
A166: 156 | B166: Finance | C166: RELCAPITAL | D166: 119.55 | E166: 122.45 | F166: 115.20 | G166: 110.85 | H166: 103.60 | I166: 126.80 | J166: 134.05 | K166: 138.40 | L166: 129.7 | M166: 118.1 | N166: 11329500 | O166: 0.72%
A167: 157 | B167: Oil_Gas | C167: RELIANCE | D167: 1351.80 | E167: 1366.83 | F167: 1333.87 | G167: 1315.93 | H167: 1282.97 | I167: 1384.77 | J167: 1417.73 | K167: 1435.67 | L167: 1399.8 | M167: 1348.9 | N167: 42239500 | O167: 2.34%
A168: 158 | B168: Power | C168: RELINFRA | D168: 100.05 | E168: 102.60 | F168: 96.30 | G168: 92.55 | H168: 86.25 | I168: 106.35 | J168: 112.65 | K168: 116.40 | L168: 108.9 | M168: 98.85 | N168: 12190300 | O168: 2.13%
A169: 159 | B169: Others | C169: REPCOHOME | D169: 411.30 | E169: 416.18 | F169: 405.12 | G169: 398.93 | H169: 387.87 | I169: 422.37 | J169: 433.43 | K169: 439.62 | L169: 427.25 | M169: 410 | N169: 678700 | O169: -2.83%
A170: 160 | B170: Power | C170: RPOWER | D170: 6.10 | E170: 6.30 | F170: 5.80 | G170: 5.50 | H170: 5.00 | I170: 6.60 | J170: 7.10 | K170: 7.40 | L170: 6.8 | M170: 6 | N170: 105744000 | O170: -2.33%
A171: 161 | B171: Metals | C171: SAIL | D171: 53.35 | E171: 54.20 | F171: 52.20 | G171: 51.05 | H171: 49.05 | I171: 55.35 | J171: 57.35 | K171: 58.50 | L171: 56.2 | M171: 53.05 | N171: 88128000 | O171: 1.18%
A172: 162 | B172: Banking | C172: SBIN | D172: 305.60 | E172: 307.80 | F172: 301.75 | G172: 297.90 | H172: 291.85 | I172: 311.65 | J172: 317.70 | K172: 321.55 | L172: 313.85 | M172: 303.95 | N172: 60939000 | O172: -5.21%
A173: 163 | B173: Cement | C173: SHREECEM | D173: 19846.95 | E173: 19855.25 | F173: 19671.70 | G173: 19496.45 | H173: 19312.90 | I173: 20030.50 | J173: 20214.05 | K173: 20389.30 | L173: 20038.8 | M173: 19680 | N173: 101150 | O173: 1.81%
A174: 164 | B174: Capital_Goods | C174: SIEMENS | D174: 1129.45 | E174: 1133.72 | F174: 1118.93 | G174: 1108.42 | H174: 1093.63 | I174: 1144.23 | J174: 1159.02 | K174: 1169.53 | L174: 1148.5 | M174: 1123.2 | N174: 1181400 | O174: 5.50%
A175: 165 | B175: Banking | C175: SOUTHBANK | D175: 15.55 | E175: 15.78 | F175: 15.22 | G175: 14.88 | H175: 14.32 | I175: 16.12 | J175: 16.68 | K175: 17.02 | L175: 16.35 | M175: 15.45 | N175: 114502155 | O175: -0.60%
A176: 166 | B176: Textile | C176: SRF | D176: 2520.25 | E176: 2536.07 | F176: 2487.18 | G176: 2454.12 | H176: 2405.23 | I176: 2569.13 | J176: 2618.02 | K176: 2651.08 | L176: 2584.95 | M176: 2503 | N176: 605250 | O176: -2.02%
A177: 167 | B177: Finance | C177: SRTRANSFIN | D177: 1030.20 | E177: 1045.07 | F177: 1010.13 | G177: 990.07 | H177: 955.13 | I177: 1065.13 | J177: 1100.07 | K177: 1120.13 | L177: 1080 | M177: 1025 | N177: 3612000 | O177: 5.84%
A178: 168 | B178: Pharma | C178: STAR | D178: 491.00 | E178: 479.43 | F178: 464.17 | G178: 437.33 | H178: 422.07 | I178: 506.27 | J178: 521.53 | K178: 548.37 | L178: 494.7 | M178: 452.6 | N178: 2453000 | O178: 2.29%
A179: 169 | B179: Pharma | C179: SUNPHARMA | D179: 449.75 | E179: 452.18 | F179: 445.72 | G179: 441.68 | H179: 435.22 | I179: 456.22 | J179: 462.68 | K179: 466.72 | L179: 458.65 | M179: 448.15 | N179: 51282000 | O179: -0.07%
A180: 170 | B180: Media | C180: SUNTV | D180: 552.15 | E180: 553.57 | F180: 547.18 | G180: 542.22 | H180: 535.83 | I180: 558.53 | J180: 564.92 | K180: 569.88 | L180: 559.95 | M180: 548.6 | N180: 6340000 | O180: -6.45%
A181: 171 | B181: Power | C181: SUZLON | D181: 6.40 | E181: 6.52 | F181: 6.23 | G181: 6.07 | H181: 5.78 | I181: 6.68 | J181: 6.97 | K181: 7.13 | L181: 6.8 | M181: 6.35 | N181: 294348000 | O181: 0.81%
A182: 172 | B182: Banking | C182: SYNDIBANK | D182: 36.20 | E182: 36.73 | F182: 35.42 | G182: 34.63 | H182: 33.32 | I182: 37.52 | J182: 38.83 | K182: 39.62 | L182: 38.05 | M182: 35.95 | N182: 24510000 | O182: -0.61%
A183: 173 | B183: Fertilisers | C183: TATACHEM | D183: 599.90 | E183: 603.63 | F183: 592.57 | G183: 585.23 | H183: 574.17 | I183: 610.97 | J183: 622.03 | K183: 629.37 | L183: 614.7 | M183: 596.3 | N183: 3520800 | O183: -4.60%
A184: 174 | B184: Telecom | C184: TATACOMM | D184: 570.70 | E184: 572.17 | F184: 564.73 | G184: 558.77 | H184: 551.33 | I184: 578.13 | J184: 585.57 | K184: 591.53 | L184: 579.6 | M184: 566.2 | N184: 2045000 | O184: 0.05%
A185: 175 | B185: Technology | C185: TATAELXSI | D185: 863.95 | E185: 869.75 | F185: 855.35 | G185: 846.75 | H185: 832.35 | I185: 878.35 | J185: 892.75 | K185: 901.35 | L185: 884.15 | M185: 861.15 | N185: 1849800 | O185: -2.71%
A186: 176 | B186: FMCG | C186: TATAGLOBAL | D186: 198.60 | E186: 200.48 | F186: 195.77 | G186: 192.93 | H186: 188.22 | I186: 203.32 | J186: 208.03 | K186: 210.87 | L186: 205.2 | M186: 197.65 | N186: 12458250 | O186: -0.45%
A187: 177 | B187: Automobile | C187: TATAMOTORS | D187: 192.05 | E187: 195.52 | F187: 186.93 | G187: 181.82 | H187: 173.23 | I187: 200.63 | J187: 209.22 | K187: 214.33 | L187: 204.1 | M187: 190.4 | N187: 58797000 | O187: -3.67%
A188: 178 | B188: Automobile | C188: TATAMTRDVR | D188: 91.90 | E188: 93.52 | F188: 89.48 | G188: 87.07 | H188: 83.03 | I188: 95.93 | J188: 99.97 | K188: 102.38 | L188: 97.55 | M188: 91.1 | N188: 29762200 | O188: -1.22%
A189: 179 | B189: Power | C189: TATAPOWER | D189: 64.60 | E189: 65.18 | F189: 63.72 | G189: 62.83 | H189: 61.37 | I189: 66.07 | J189: 67.53 | K189: 68.42 | L189: 66.65 | M189: 64.3 | N189: 64170000 | O189: -1.38%
A190: 180 | B190: Metals | C190: TATASTEEL | D190: 532.85 | E190: 536.73 | F190: 527.67 | G190: 522.48 | H190: 513.42 | I190: 541.92 | J190: 550.98 | K190: 556.17 | L190: 545.8 | M190: 531.55 | N190: 26674601 | O190: -3.52%
A191: 181 | B191: Technology | C191: TCS | D191: 2150.05 | E191: 2158.40 | F191: 2134.85 | G191: 2119.65 | H191: 2096.10 | I191: 2173.60 | J191: 2197.15 | K191: 2212.35 | L191: 2181.95 | M191: 2143.2 | N191: 11998750 | O191: 0.05%
A192: 182 | B192: Technology | C192: TECHM | D192: 817.75 | E192: 819.45 | F192: 811.95 | G192: 806.15 | H192: 798.65 | I192: 825.25 | J192: 832.75 | K192: 838.55 | L192: 826.95 | M192: 813.65 | N192: 10852800 | O192: 0.37%
A193: 183 | B193: FMCG | C193: TITAN | D193: 1092.95 | E193: 1097.38 | F193: 1084.82 | G193: 1076.68 | H193: 1064.12 | I193: 1105.52 | J193: 1118.08 | K193: 1126.22 | L193: 1109.95 | M193: 1089.25 | N193: 8983500 | O193: -1.47%
A194: 184 | B194: Pharma | C194: TORNTPHARM | D194: 1710.80 | E194: 1717.33 | F194: 1695.07 | G194: 1679.33 | H194: 1657.07 | I194: 1733.07 | J194: 1755.33 | K194: 1771.07 | L194: 1739.6 | M194: 1701.6 | N194: 876500 | O194: 4.04%
A195: 185 | B195: Power | C195: TORNTPOWER | D195: 252.20 | E195: 252.75 | F195: 250.65 | G195: 249.10 | H195: 247.00 | I195: 254.30 | J195: 256.40 | K195: 257.95 | L195: 254.85 | M195: 251.2 | N195: 2418000 | O195: -4.05%
A196: 186 | B196: Media | C196: TV18BRDCST | D196: 30.35 | E196: 30.77 | F196: 29.43 | G196: 28.52 | H196: 27.18 | I196: 31.68 | J196: 33.02 | K196: 33.93 | L196: 32.1 | M196: 29.85 | N196: 63986000 | O196: -4.54%
A197: 187 | B197: Automobile | C197: TVSMOTOR | D197: 477.20 | E197: 477.58 | F197: 471.57 | G197: 465.93 | H197: 459.92 | I197: 483.22 | J197: 489.23 | K197: 494.87 | L197: 483.6 | M197: 471.95 | N197: 7244000 | O197: 1.80%
A198: 188 | B198: FMCG | C198: UBL | D198: 1382.20 | E198: 1385.15 | F198: 1376.50 | G198: 1370.80 | H198: 1362.15 | I198: 1390.85 | J198: 1399.50 | K198: 1405.20 | L198: 1393.8 | M198: 1379.45 | N198: 1747200 | O198: -6.73%
A199: 189 | B199: Finance | C199: UJJIVAN | D199: 312.30 | E199: 314.03 | F199: 306.07 | G199: 299.83 | H199: 291.87 | I199: 320.27 | J199: 328.23 | K199: 334.47 | L199: 322 | M199: 307.8 | N199: 3579200 | O199: 3.28%
A200: 190 | B200: Cement | C200: ULTRACEMCO | D200: 4546.90 | E200: 4554.80 | F200: 4522.10 | G200: 4497.30 | H200: 4464.60 | I200: 4579.60 | J200: 4612.30 | K200: 4637.10 | L200: 4587.5 | M200: 4530 | N200: 2323800 | O200: -1.94%
A201: 191 | B201: Banking | C201: UNIONBANK | D201: 81.80 | E201: 82.73 | F201: 80.22 | G201: 78.63 | H201: 76.12 | I201: 84.32 | J201: 86.83 | K201: 88.42 | L201: 85.25 | M201: 81.15 | N201: 30436000 | O201: 0.67%
A202: 192 | B202: Fertilisers | C202: UPL | D202: 954.65 | E202: 950.53 | F202: 942.17 | G202: 929.68 | H202: 921.32 | I202: 963.02 | J202: 971.38 | K202: 983.87 | L202: 958.9 | M202: 938.05 | N202: 13225200 | O202: 1.17%
A203: 193 | B203: Metals | C203: VEDL | D203: 164.50 | E203: 166.37 | F203: 161.48 | G203: 158.47 | H203: 153.58 | I203: 169.38 | J203: 174.27 | K203: 177.28 | L203: 171.25 | M203: 163.35 | N203: 39735600 | O203: 3.69%
A204: 194 | B204: Others | C204: VGUARD | D204: 213.40 | E204: 214.12 | F204: 211.48 | G204: 209.57 | H204: 206.93 | I204: 216.03 | J204: 218.67 | K204: 220.58 | L204: 216.75 | M204: 212.2 | N204: 2760000 | O204: -2.95%
A205: 195 | B205: Capital_Goods | C205: VOLTAS | D205: 598.40 | E205: 601.42 | F205: 593.03 | G205: 587.67 | H205: 579.28 | I205: 606.78 | J205: 615.17 | K205: 620.53 | L205: 609.8 | M205: 596.05 | N205: 4512000 | O205: 0.53%
A206: 196 | B206: Technology | C206: WIPRO | D206: 294.05 | E206: 293.40 | F206: 292.05 | G206: 290.05 | H206: 288.70 | I206: 295.40 | J206: 296.75 | K206: 298.75 | L206: 294.75 | M206: 291.4 | N206: 30896000 | O206: 0.22%
... 18 more rows

Sheet Cash Intra
M5: Back to Main Page
A6: FOR INTRA DAY TRADING | K6: =Main!B10 -> 2019-05-08
A8: Sr.no | B8: Scrip | C8: CLOSE RATE | D8: Pivot Point | E8: Supports | H8: Resistances
C9: Point | E9: S1 | F9: S2 | G9: S3 | H9: R1 | I9: R2 | J9: R3 | K9: HIGH | L9: LOW | M9: Total Trade Quanity in Lakhs
A10: 1 | B10: Nifty 50 | C10: 11497.9 | D10: 11546.47 | E10: 11435.88 | F10: 11373.87 | G10: 11263.28 | H10: 11608.48 | I10: 11719.07 | J10: 11781.08 | K10: 11657.05 | L10: 11484.45
A11: 2 | B11: Nifty Bank | C11: 29288.2 | D11: 29455.98 | E11: 29076.47 | F11: 28864.73 | G11: 28485.22 | H11: 29667.72 | I11: 30047.23 | J11: 30258.97 | K11: 29835.5 | L11: 29244.25
A12: 3 | B12: Nifty CPSE | C12: 2256.95 | D12: 2264.62 | E12: 2244.13 | F12: 2231.32 | G12: 2210.83 | H12: 2277.43 | I12: 2297.92 | J12: 2310.73 | K12: 2285.1 | L12: 2251.8
A13: 4 | B13: Nifty Infra | C13: 3108.3 | D13: 3117.13 | E13: 3093.02 | F13: 3077.73 | G13: 3053.62 | H13: 3132.42 | I13: 3156.53 | J13: 3171.82 | K13: 3141.25 | L13: 3101.85
A14: 5 | B14: Nifty IT | C14: 16135.75 | D14: 16154.08 | E14: 16082.32 | F14: 16028.88 | G14: 15957.12 | H14: 16207.52 | I14: 16279.28 | J14: 16332.72 | K14: 16225.85 | L14: 16100.65
A15: 6 | B15: Nifty PSE | C15: 3515.6 | D15: 3528.45 | E15: 3496.65 | F15: 3477.70 | G15: 3445.90 | H15: 3547.40 | I15: 3579.20 | J15: 3598.15 | K15: 3560.25 | L15: 3509.5
A16: 7 | B16: Nifty Midcap 50 | C16: 4741.95 | D16: 4771.80 | E16: 4704.10 | F16: 4666.25 | G16: 4598.55 | H16: 4809.65 | I16: 4877.35 | J16: 4915.20 | K16: 4839.5 | L16: 4733.95
A17: 8 | B17: ABB | C17: 1478.8 | D17: 1480.42 | E17: 1463.93 | F17: 1449.07 | G17: 1432.58 | H17: 1495.28 | I17: 1511.77 | J17: 1526.63 | K17: 1496.9 | L17: 1465.55 | M17: 0.57445
A18: 9 | B18: ACC | C18: 1596.9 | D18: 1608.32 | E18: 1578.73 | F18: 1560.57 | G18: 1530.98 | H18: 1626.48 | I18: 1656.07 | J18: 1674.23 | K18: 1637.9 | L18: 1590.15 | M18: 4.27581
A19: 10 | B19: AUBANK | C19: 639.4 | D19: 636.80 | E19: 627.60 | F19: 615.80 | G19: 606.60 | H19: 648.60 | I19: 657.80 | J19: 669.60 | K19: 646 | L19: 625 | M19: 3.82191
A20: 11 | B20: ADANIPORTS | C20: 371.9 | D20: 375.32 | E20: 366.68 | F20: 361.47 | G20: 352.83 | H20: 380.53 | I20: 389.17 | J20: 394.38 | K20: 383.95 | L20: 370.1 | M20: 16.28805
A21: 12 | B21: ADANIPOWER | C21: 41.5 | D21: 42.07 | E21: 40.58 | F21: 39.67 | G21: 38.18 | H21: 42.98 | I21: 44.47 | J21: 45.38 | K21: 43.55 | L21: 41.15 | M21: 84.36065
A22: 13 | B22: ABCAPITAL | C22: 100.35 | D22: 100.68 | E22: 98.92 | F22: 97.48 | G22: 95.72 | H22: 102.12 | I22: 103.88 | J22: 105.32 | K22: 102.45 | L22: 99.25 | M22: 20.09126
A23: 14 | B23: ABFRL | C23: 209 | D23: 207.92 | E23: 205.43 | F23: 201.87 | G23: 199.38 | H23: 211.48 | I23: 213.97 | J23: 217.53 | K23: 210.4 | L23: 204.35 | M23: 4.48973
A24: 15 | B24: AJANTPHARM | C24: 1051.4 | D24: 1059.13 | E24: 1038.27 | F24: 1025.13 | G24: 1004.27 | H24: 1072.27 | I24: 1093.13 | J24: 1106.27 | K24: 1080 | L24: 1046 | M24: 3.52776
A25: 16 | B25: ALKEM | C25: 1684.05 | D25: 1689.43 | E25: 1664.62 | F25: 1645.18 | G25: 1620.37 | H25: 1708.87 | I25: 1733.68 | J25: 1753.12 | K25: 1714.25 | L25: 1670 | M25: 0.21201
A26: 17 | B26: AMARAJABAT | C26: 643.1 | D26: 645.07 | E26: 638.98 | F26: 634.87 | G26: 628.78 | H26: 649.18 | I26: 655.27 | J26: 659.38 | K26: 651.15 | L26: 640.95 | M26: 2.69817
A27: 18 | B27: AMBUJACEM | C27: 218.2 | D27: 219.38 | E27: 216.32 | F27: 214.43 | G27: 211.37 | H27: 221.27 | I27: 224.33 | J27: 226.22 | K27: 222.45 | L27: 217.5 | M27: 16.10407
A28: 19 | B28: APOLLOHOSP | C28: 1164.95 | D28: 1172.13 | E28: 1145.17 | F28: 1125.38 | G28: 1098.42 | H28: 1191.92 | I28: 1218.88 | J28: 1238.67 | K28: 1199.1 | L28: 1152.35 | M28: 3.20142
A29: 20 | B29: APOLLOTYRE | C29: 195.2 | D29: 196.28 | E29: 193.47 | F29: 191.73 | G29: 188.92 | H29: 198.02 | I29: 200.83 | J29: 202.57 | K29: 199.1 | L29: 194.55 | M29: 12.73921
A30: 21 | B30: ASHOKLEY | C30: 85.95 | D30: 86.78 | E30: 84.77 | F30: 83.58 | G30: 81.57 | H30: 87.97 | I30: 89.98 | J30: 91.17 | K30: 88.8 | L30: 85.6 | M30: 145.00633
A31: 22 | B31: ASIANPAINT | C31: 1387.8 | D31: 1396.98 | E31: 1367.17 | F31: 1346.53 | G31: 1316.72 | H31: 1417.62 | I31: 1447.43 | J31: 1468.07 | K31: 1426.8 | L31: 1376.35 | M31: 28.63939
A32: 23 | B32: AUROPHARMA | C32: 770.7 | D32: 774.93 | E32: 760.22 | F32: 749.73 | G32: 735.02 | H32: 785.42 | I32: 800.13 | J32: 810.62 | K32: 789.65 | L32: 764.45 | M32: 15.97737
A33: 24 | B33: DMART | C33: 1255.1 | D33: 1260.03 | E33: 1235.07 | F33: 1215.03 | G33: 1190.07 | H33: 1280.07 | I33: 1305.03 | J33: 1325.07 | K33: 1285 | L33: 1240 | M33: 6.99459
A34: 25 | B34: AXISBANK | C34: 741.85 | D34: 745.78 | E34: 736.07 | F34: 730.28 | G34: 720.57 | H34: 751.57 | I34: 761.28 | J34: 767.07 | K34: 755.5 | L34: 740 | M34: 50.71941
A35: 26 | B35: BAJAJ-AUTO | C35: 3033.05 | D35: 3035.78 | E35: 3018.57 | F35: 3004.08 | G35: 2986.87 | H35: 3050.27 | I35: 3067.48 | J35: 3081.97 | K35: 3053 | L35: 3021.3 | M35: 2.44684
A36: 27 | B36: BAJFINANCE | C36: 3017.05 | D36: 3031.48 | E36: 2993.17 | F36: 2969.28 | G36: 2930.97 | H36: 3055.37 | I36: 3093.68 | J36: 3117.57 | K36: 3069.8 | L36: 3007.6 | M36: 9.70264
A37: 28 | B37: BAJAJFINSV | C37: 7561.95 | D37: 7595.23 | E37: 7491.72 | F37: 7421.48 | G37: 7317.97 | H37: 7665.47 | I37: 7768.98 | J37: 7839.22 | K37: 7698.75 | L37: 7525 | M37: 1.03553
A38: 29 | B38: BAJAJHLDNG | C38: 3178.05 | D38: 3179.92 | E38: 3166.13 | F38: 3154.22 | G38: 3140.43 | H38: 3191.83 | I38: 3205.62 | J38: 3217.53 | K38: 3193.7 | L38: 3168 | M38: 0.09918
A39: 30 | B39: BALKRISIND | C39: 856.55 | D39: 862.48 | E39: 845.27 | F39: 833.98 | G39: 816.77 | H39: 873.77 | I39: 890.98 | J39: 902.27 | K39: 879.7 | L39: 851.2 | M39: 6.91072
A40: 31 | B40: BANDHANBNK | C40: 590.85 | D40: 596.87 | E40: 582.13 | F40: 573.42 | G40: 558.68 | H40: 605.58 | I40: 620.32 | J40: 629.03 | K40: 611.6 | L40: 588.15 | M40: 8.53243
A41: 32 | B41: BANKBARODA | C41: 112.55 | D41: 114.00 | E41: 110.55 | F41: 108.55 | G41: 105.10 | H41: 116.00 | I41: 119.45 | J41: 121.45 | K41: 117.45 | L41: 112 | M41: 135.50529
A42: 33 | B42: BANKINDIA | C42: 84.75 | D42: 85.90 | E42: 83.10 | F42: 81.45 | G42: 78.65 | H42: 87.55 | I42: 90.35 | J42: 92.00 | K42: 88.7 | L42: 84.25 | M42: 50.49227
A43: 34 | B43: BATAINDIA | C43: 1353.55 | D43: 1359.78 | E43: 1343.77 | F43: 1333.98 | G43: 1317.97 | H43: 1369.57 | I43: 1385.58 | J43: 1395.37 | K43: 1375.8 | L43: 1350 | M43: 12.25646
A44: 35 | B44: BERGEPAINT | C44: 304.7 | D44: 307.27 | E44: 300.73 | F44: 296.77 | G44: 290.23 | H44: 311.23 | I44: 317.77 | J44: 321.73 | K44: 313.8 | L44: 303.3 | M44: 4.26183
A45: 36 | B45: BEL | C45: 86.7 | D45: 87.50 | E45: 85.65 | F45: 84.60 | G45: 82.75 | H45: 88.55 | I45: 90.40 | J45: 91.45 | K45: 89.35 | L45: 86.45 | M45: 60.85306
A46: 37 | B46: BHARATFORG | C46: 465.35 | D46: 468.78 | E46: 460.57 | F46: 455.78 | G46: 447.57 | H46: 473.57 | I46: 481.78 | J46: 486.57 | K46: 477 | L46: 464 | M46: 9.29965
A47: 38 | B47: BHEL | C47: 63.8 | D47: 64.62 | E47: 62.53 | F47: 61.27 | G47: 59.18 | H47: 65.88 | I47: 67.97 | J47: 69.23 | K47: 66.7 | L47: 63.35 | M47: 86.47726
A48: 39 | B48: BPCL | C48: 378.85 | D48: 379.80 | E48: 371.15 | F48: 363.45 | G48: 354.80 | H48: 387.50 | I48: 396.15 | J48: 403.85 | K48: 388.45 | L48: 372.1 | M48: 74.97322
A49: 40 | B49: BHARTIARTL | C49: 324.95 | D49: 329.08 | E49: 317.32 | F49: 309.68 | G49: 297.92 | H49: 336.72 | I49: 348.48 | J49: 356.12 | K49: 340.85 | L49: 321.45 | M49: 174.08388
A50: 41 | B50: INFRATEL | C50: 268 | D50: 268.18 | E50: 265.57 | F50: 263.13 | G50: 260.52 | H50: 270.62 | I50: 273.23 | J50: 275.67 | K50: 270.8 | L50: 265.75 | M50: 29.72102
A51: 42 | B51: BIOCON | C51: 550.9 | D51: 551.70 | E51: 544.45 | F51: 538.00 | G51: 530.75 | H51: 558.15 | I51: 565.40 | J51: 571.85 | K51: 558.95 | L51: 545.25 | M51: 26.93607
A52: 43 | B52: BBTC | C52: 1194.9 | D52: 1201.95 | E52: 1183.95 | F52: 1173.00 | G52: 1155.00 | H52: 1212.90 | I52: 1230.90 | J52: 1241.85 | K52: 1219.95 | L52: 1191 | M52: 0.85501
A53: 44 | B53: BOSCHLTD | C53: 17784.7 | D53: 17810.47 | E53: 17547.03 | F53: 17309.37 | G53: 17045.93 | H53: 18048.13 | I53: 18311.57 | J53: 18549.23 | K53: 18073.9 | L53: 17572.8 | M53: 0.2569
A54: 45 | B54: BRITANNIA | C54: 2650.55 | D54: 2671.92 | E54: 2623.33 | F54: 2596.12 | G54: 2547.53 | H54: 2699.13 | I54: 2747.72 | J54: 2774.93 | K54: 2720.5 | L54: 2644.7 | M54: 11.82277
A55: 46 | B55: CADILAHC | C55: 299.2 | D55: 302.15 | E55: 294.30 | F55: 289.40 | G55: 281.55 | H55: 307.05 | I55: 314.90 | J55: 319.80 | K55: 310 | L55: 297.25 | M55: 14.34753
A56: 47 | B56: CANBK | C56: 257.5 | D56: 260.58 | E56: 252.42 | F56: 247.33 | G56: 239.17 | H56: 265.67 | I56: 273.83 | J56: 278.92 | K56: 268.75 | L56: 255.5 | M56: 37.1346
A57: 48 | B57: CASTROLIND | C57: 148.7 | D57: 149.30 | E57: 147.60 | F57: 146.50 | G57: 144.80 | H57: 150.40 | I57: 152.10 | J57: 153.20 | K57: 151 | L57: 148.2 | M57: 7.39402
A58: 49 | B58: CHOLAFIN | C58: 1304.55 | D58: 1310.85 | E58: 1289.70 | F58: 1274.85 | G58: 1253.70 | H58: 1325.70 | I58: 1346.85 | J58: 1361.70 | K58: 1332 | L58: 1296 | M58: 3.37552
A59: 50 | B59: CIPLA | C59: 557.95 | D59: 559.80 | E59: 553.30 | F59: 548.65 | G59: 542.15 | H59: 564.45 | I59: 570.95 | J59: 575.60 | K59: 566.3 | L59: 555.15 | M59: 14.78212
A60: 51 | B60: COALINDIA | C60: 248.8 | D60: 250.58 | E60: 245.92 | F60: 243.03 | G60: 238.37 | H60: 253.47 | I60: 258.13 | J60: 261.02 | K60: 255.25 | L60: 247.7 | M60: 43.20204
A61: 52 | B61: COLPAL | C61: 1158.65 | D61: 1162.02 | E61: 1149.23 | F61: 1139.82 | G61: 1127.03 | H61: 1171.43 | I61: 1184.22 | J61: 1193.63 | K61: 1174.8 | L61: 1152.6 | M61: 2.95446
A62: 53 | B62: CONCOR | C62: 489.85 | D62: 493.18 | E62: 485.42 | F62: 480.98 | G62: 473.22 | H62: 497.62 | I62: 505.38 | J62: 509.82 | K62: 500.95 | L62: 488.75 | M62: 2.87311
A63: 54 | B63: COROMANDEL | C63: 419.9 | D63: 421.47 | E63: 415.98 | F63: 412.07 | G63: 406.58 | H63: 425.38 | I63: 430.87 | J63: 434.78 | K63: 426.95 | L63: 417.55 | M63: 0.25233
A64: 55 | B64: CROMPTON | C64: 222.1 | D64: 224.58 | E64: 217.32 | F64: 212.53 | G64: 205.27 | H64: 229.37 | I64: 236.63 | J64: 241.42 | K64: 231.85 | L64: 219.8 | M64: 1.38586
A65: 56 | B65: CUMMINSIND | C65: 703.15 | D65: 705.83 | E65: 696.37 | F65: 689.58 | G65: 680.12 | H65: 712.62 | I65: 722.08 | J65: 728.87 | K65: 715.3 | L65: 699.05 | M65: 2.54972
A66: 57 | B66: DLF | C66: 169.6 | D66: 171.07 | E66: 165.93 | F66: 162.27 | G66: 157.13 | H66: 174.73 | I66: 179.87 | J66: 183.53 | K66: 176.2 | L66: 167.4 | M66: 84.43779
A67: 58 | B67: DABUR | C67: 375.5 | D67: 378.10 | E67: 371.85 | F67: 368.20 | G67: 361.95 | H67: 381.75 | I67: 388.00 | J67: 391.65 | K67: 384.35 | L67: 374.45 | M67: 35.10917
A68: 59 | B68: DHFL | C68: 116.6 | D68: 122.32 | E68: 109.13 | F68: 101.67 | G68: 88.48 | H68: 129.78 | I68: 142.97 | J68: 150.43 | K68: 135.5 | L68: 114.85 | M68: 402.82663
A69: 60 | B69: DBL | C69: 478.55 | D69: 476.27 | E69: 467.43 | F69: 456.32 | G69: 447.48 | H69: 487.38 | I69: 496.22 | J69: 507.33 | K69: 485.1 | L69: 465.15 | M69: 6.22223
A70: 61 | B70: DISHTV | C70: 31.65 | D70: 32.52 | E70: 29.88 | F70: 28.12 | G70: 25.48 | H70: 34.28 | I70: 36.92 | J70: 38.68 | K70: 35.15 | L70: 30.75 | M70: 309.17993
A71: 62 | B71: DIVISLAB | C71: 1689.15 | D71: 1688.48 | E71: 1670.67 | F71: 1652.18 | G71: 1634.37 | H71: 1706.97 | I71: 1724.78 | J71: 1743.27 | K71: 1706.3 | L71: 1670 | M71: 5.59625
A72: 63 | B72: DRREDDY | C72: 2942.45 | D72: 2939.90 | E72: 2927.80 | F72: 2913.15 | G72: 2901.05 | H72: 2954.55 | I72: 2966.65 | J72: 2981.30 | K72: 2952 | L72: 2925.25 | M72: 4.5814
A73: 64 | B73: EDELWEISS | C73: 139.45 | D73: 140.28 | E73: 138.17 | F73: 136.88 | G73: 134.77 | H73: 141.57 | I73: 143.68 | J73: 144.97 | K73: 142.4 | L73: 139 | M73: 17.46664
A74: 65 | B74: EICHERMOT | C74: 20353.2 | D74: 20401.05 | E74: 20222.20 | F74: 20091.20 | G74: 19912.35 | H74: 20532.05 | I74: 20710.90 | J74: 20841.90 | K74: 20579.9 | L74: 20270.05 | M74: 0.48978
A75: 66 | B75: ENDURANCE | C75: 1150.1 | D75: 1157.97 | E75: 1140.93 | F75: 1131.77 | G75: 1114.73 | H75: 1167.13 | I75: 1184.17 | J75: 1193.33 | K75: 1175 | L75: 1148.8 | M75: 0.48891
A76: 67 | B76: ENGINERSIN | C76: 108.3 | D76: 109.05 | E76: 107.05 | F76: 105.80 | G76: 103.80 | H76: 110.30 | I76: 112.30 | J76: 113.55 | K76: 111.05 | L76: 107.8 | M76: 7.00875
A77: 68 | B77: ESCORTS | C77: 648.75 | D77: 653.12 | E77: 637.63 | F77: 626.52 | G77: 611.03 | H77: 664.23 | I77: 679.72 | J77: 690.83 | K77: 668.6 | L77: 642 | M77: 27.82681
A78: 69 | B78: EXIDEIND | C78: 212.65 | D78: 213.62 | E78: 210.48 | F78: 208.32 | G78: 205.18 | H78: 215.78 | I78: 218.92 | J78: 221.08 | K78: 216.75 | L78: 211.45 | M78: 22.47883
A79: 70 | B79: FEDERALBNK | C79: 98.7 | D79: 99.50 | E79: 97.20 | F79: 95.70 | G79: 93.40 | H79: 101.00 | I79: 103.30 | J79: 104.80 | K79: 101.8 | L79: 98 | M79: 274.10464
A80: 71 | B80: FCONSUMER | C80: 41.5 | D80: 41.47 | E80: 40.83 | F80: 40.17 | G80: 39.53 | H80: 42.13 | I80: 42.77 | J80: 43.43 | K80: 42.1 | L80: 40.8 | M80: 8.04156
A81: 72 | B81: FRETAIL | C81: 410.3 | D81: 409.40 | E81: 398.90 | F81: 387.50 | G81: 377.00 | H81: 420.80 | I81: 431.30 | J81: 442.70 | K81: 419.9 | L81: 398 | M81: 5.49114
A82: 73 | B82: GAIL | C82: 340.75 | D82: 345.78 | E82: 334.62 | F82: 328.48 | G82: 317.32 | H82: 351.92 | I82: 363.08 | J82: 369.22 | K82: 356.95 | L82: 339.65 | M82: 34.56457
A83: 74 | B83: GMRINFRA | C83: 16 | D83: 16.22 | E83: 15.58 | F83: 15.17 | G83: 14.53 | H83: 16.63 | I83: 17.27 | J83: 17.68 | K83: 16.85 | L83: 15.8 | M83: 159.54295
A84: 75 | B84: GICRE | C84: 238.45 | D84: 239.48 | E84: 236.47 | F84: 234.48 | G84: 231.47 | H84: 241.47 | I84: 244.48 | J84: 246.47 | K84: 242.5 | L84: 237.5 | M84: 0.33547
A85: 76 | B85: GSKCONS | C85: 7042.45 | D85: 7032.42 | E85: 6964.83 | F85: 6887.22 | G85: 6819.63 | H85: 7110.03 | I85: 7177.62 | J85: 7255.23 | K85: 7100 | L85: 6954.8 | M85: 0.11267
A86: 77 | B86: GLENMARK | C86: 634.85 | D86: 632.62 | E86: 626.23 | F86: 617.62 | G86: 611.23 | H86: 641.23 | I86: 647.62 | J86: 656.23 | K86: 639 | L86: 624 | M86: 3.77102
A87: 78 | B87: GODREJAGRO | C87: 519.25 | D87: 518.07 | E87: 513.18 | F87: 507.12 | G87: 502.23 | H87: 524.13 | I87: 529.02 | J87: 535.08 | K87: 522.95 | L87: 512 | M87: 1.41309
A88: 79 | B88: GODREJCP | C88: 636 | D88: 636.27 | E88: 628.43 | F88: 620.87 | G88: 613.03 | H88: 643.83 | I88: 651.67 | J88: 659.23 | K88: 644.1 | L88: 628.7 | M88: 12.73122
A89: 80 | B89: GODREJIND | C89: 484.3 | D89: 492.10 | E89: 472.20 | F89: 460.10 | G89: 440.20 | H89: 504.20 | I89: 524.10 | J89: 536.20 | K89: 512 | L89: 480 | M89: 7.08467
A90: 81 | B90: GRAPHITE | C90: 391.2 | D90: 394.87 | E90: 385.33 | F90: 379.47 | G90: 369.93 | H90: 400.73 | I90: 410.27 | J90: 416.13 | K90: 404.4 | L90: 389 | M90: 8.27565
A91: 82 | B91: GRASIM | C91: 872.35 | D91: 881.58 | E91: 856.27 | F91: 840.18 | G91: 814.87 | H91: 897.67 | I91: 922.98 | J91: 939.07 | K91: 906.9 | L91: 865.5 | M91: 13.75348
A92: 83 | B92: GRUH | C92: 310.9 | D92: 314.63 | E92: 304.27 | F92: 297.63 | G92: 287.27 | H92: 321.27 | I92: 331.63 | J92: 338.27 | K92: 325 | L92: 308 | M92: 5.13441
A93: 84 | B93: GSPL | C93: 182.25 | D93: 182.33 | E93: 177.97 | F93: 173.68 | G93: 169.32 | H93: 186.62 | I93: 190.98 | J93: 195.27 | K93: 186.7 | L93: 178.05 | M93: 3.21996
A94: 85 | B94: HEG | C94: 1750.05 | D94: 1775.02 | E94: 1715.03 | F94: 1680.02 | G94: 1620.03 | H94: 1810.03 | I94: 1870.02 | J94: 1905.03 | K94: 1835 | L94: 1740 | M94: 2.84147
A95: 86 | B95: HCLTECH | C95: 1131.75 | D95: 1132.58 | E95: 1115.17 | F95: 1098.58 | G95: 1081.17 | H95: 1149.17 | I95: 1166.58 | J95: 1183.17 | K95: 1150 | L95: 1116 | M95: 23.44602
A96: 87 | B96: HDFCAMC | C96: 1639.6 | D96: 1648.87 | E96: 1625.73 | F96: 1611.87 | G96: 1588.73 | H96: 1662.73 | I96: 1685.87 | J96: 1699.73 | K96: 1672 | L96: 1635 | M96: 1.00129
A97: 88 | B97: HDFCBANK | C97: 2322.35 | D97: 2332.78 | E97: 2307.57 | F97: 2292.78 | G97: 2267.57 | H97: 2347.57 | I97: 2372.78 | J97: 2387.57 | K97: 2358 | L97: 2318 | M97: 24.81051
A98: 89 | B98: HDFCLIFE | C98: 409.25 | D98: 409.37 | E98: 405.93 | F98: 402.62 | G98: 399.18 | H98: 412.68 | I98: 416.12 | J98: 419.43 | K98: 412.8 | L98: 406.05 | M98: 25.89598
A99: 90 | B99: HAVELLS | C99: 739.1 | D99: 742.97 | E99: 731.23 | F99: 723.37 | G99: 711.63 | H99: 750.83 | I99: 762.57 | J99: 770.43 | K99: 754.7 | L99: 735.1 | M99: 10.54648
A100: 91 | B100: HEROMOTOCO | C100: 2527.35 | D100: 2538.95 | E100: 2509.90 | F100: 2492.45 | G100: 2463.40 | H100: 2556.40 | I100: 2585.45 | J100: 2602.90 | K100: 2568 | L100: 2521.5 | M100: 3.47427
A101: 92 | B101: HEXAWARE | C101: 346.2 | D101: 343.62 | E101: 339.23 | F101: 332.27 | G101: 327.88 | H101: 350.58 | I101: 354.97 | J101: 361.93 | K101: 348 | L101: 336.65 | M101: 10.37786
A102: 93 | B102: HINDALCO | C102: 200.45 | D102: 201.30 | E102: 198.35 | F102: 196.25 | G102: 193.30 | H102: 203.40 | I102: 206.35 | J102: 208.45 | K102: 204.25 | L102: 199.2 | M102: 90.4264
A103: 94 | B103: HINDPETRO | C103: 285 | D103: 284.50 | E103: 278.00 | F103: 271.00 | G103: 264.50 | H103: 291.50 | I103: 298.00 | J103: 305.00 | K103: 291 | L103: 277.5 | M103: 73.98307
A104: 95 | B104: HINDUNILVR | C104: 1697.5 | D104: 1693.63 | E104: 1676.37 | F104: 1655.23 | G104: 1637.97 | H104: 1714.77 | I104: 1732.03 | J104: 1753.17 | K104: 1710.9 | L104: 1672.5 | M104: 22.12617
A105: 96 | B105: HINDZINC | C105: 268.05 | D105: 270.12 | E105: 265.28 | F105: 262.52 | G105: 257.68 | H105: 272.88 | I105: 277.72 | J105: 280.48 | K105: 274.95 | L105: 267.35 | M105: 3.18773
A106: 97 | B106: HUDCO | C106: 40.55 | D106: 40.72 | E106: 40.18 | F106: 39.82 | G106: 39.28 | H106: 41.08 | I106: 41.62 | J106: 41.98 | K106: 41.25 | L106: 40.35 | M106: 3.25418
A107: 98 | B107: HDFC | C107: 1966.3 | D107: 1978.22 | E107: 1947.28 | F107: 1928.27 | G107: 1897.33 | H107: 1997.23 | I107: 2028.17 | J107: 2047.18 | K107: 2009.15 | L107: 1959.2 | M107: 26.83956
A108: 99 | B108: ICICIBANK | C108: 386.5 | D108: 392.72 | E108: 378.08 | F108: 369.67 | G108: 355.03 | H108: 401.13 | I108: 415.77 | J108: 424.18 | K108: 407.35 | L108: 384.3 | M108: 415.19416
A109: 100 | B109: ICICIGI | C109: 1056.85 | D109: 1058.50 | E109: 1049.65 | F109: 1042.45 | G109: 1033.60 | H109: 1065.70 | I109: 1074.55 | J109: 1081.75 | K109: 1067.35 | L109: 1051.3 | M109: 2.05161
A110: 101 | B110: ICICIPRULI | C110: 365 | D110: 367.10 | E110: 360.90 | F110: 356.80 | G110: 350.60 | H110: 371.20 | I110: 377.40 | J110: 381.50 | K110: 373.3 | L110: 363 | M110: 5.89731
A111: 102 | B111: IDBI | C111: 37.25 | D111: 37.75 | E111: 36.55 | F111: 35.85 | G111: 34.65 | H111: 38.45 | I111: 39.65 | J111: 40.35 | K111: 38.95 | L111: 37.05 | M111: 43.01722
A112: 103 | B112: IDFCFIRSTB | C112: 48.75 | D112: 49.32 | E112: 47.93 | F112: 47.12 | G112: 45.73 | H112: 50.13 | I112: 51.52 | J112: 52.33 | K112: 50.7 | L112: 48.5 | M112: 115.07806
A113: 104 | B113: ITC | C113: 301.9 | D113: 304.08 | E113: 298.67 | F113: 295.43 | G113: 290.02 | H113: 307.32 | I113: 312.73 | J113: 315.97 | K113: 309.5 | L113: 300.85 | M113: 86.55871
A114: 105 | B114: IBULHSGFIN | C114: 678.6 | D114: 680.82 | E114: 669.83 | F114: 661.07 | G114: 650.08 | H114: 689.58 | I114: 700.57 | J114: 709.33 | K114: 691.8 | L114: 672.05 | M114: 80.06432
A115: 106 | B115: IBVENTURES | C115: 263.95 | D115: 269.28 | E115: 255.77 | F115: 247.58 | G115: 234.07 | H115: 277.47 | I115: 290.98 | J115: 299.17 | K115: 282.8 | L115: 261.1 | M115: 11.73357
A116: 107 | B116: INDIANB | C116: 241.35 | D116: 243.90 | E116: 237.80 | F116: 234.25 | G116: 228.15 | H116: 247.45 | I116: 253.55 | J116: 257.10 | K116: 250 | L116: 240.35 | M116: 10.84805
A117: 108 | B117: INDHOTEL | C117: 150.75 | D117: 151.43 | E117: 149.57 | F117: 148.38 | G117: 146.52 | H117: 152.62 | I117: 154.48 | J117: 155.67 | K117: 153.3 | L117: 150.25 | M117: 7.55573
A118: 109 | B118: IOC | C118: 153.45 | D118: 154.12 | E118: 151.53 | F118: 149.62 | G118: 147.03 | H118: 156.03 | I118: 158.62 | J118: 160.53 | K118: 156.7 | L118: 152.2 | M118: 84.13961
A119: 110 | B119: IGL | C119: 308.95 | D119: 310.78 | E119: 304.57 | F119: 300.18 | G119: 293.97 | H119: 315.17 | I119: 321.38 | J119: 325.77 | K119: 317 | L119: 306.4 | M119: 22.05693
A120: 111 | B120: INDUSINDBK | C120: 1515.8 | D120: 1517.77 | E120: 1493.53 | F120: 1471.27 | G120: 1447.03 | H120: 1540.03 | I120: 1564.27 | J120: 1586.53 | K120: 1542 | L120: 1495.5 | M120: 33.33379
A121: 112 | B121: NAUKRI | C121: 1961 | D121: 1970.90 | E121: 1945.10 | F121: 1929.20 | G121: 1903.40 | H121: 1986.80 | I121: 2012.60 | J121: 2028.50 | K121: 1996.7 | L121: 1955 | M121: 0.30009
A122: 113 | B122: INFY | C122: 724.55 | D122: 723.72 | E122: 719.53 | F122: 714.52 | G122: 710.33 | H122: 728.73 | I122: 732.92 | J122: 737.93 | K122: 727.9 | L122: 718.7 | M122: 57.47536
A123: 114 | B123: INDIGO | C123: 1576.75 | D123: 1570.33 | E123: 1553.72 | F123: 1530.68 | G123: 1514.07 | H123: 1593.37 | I123: 1609.98 | J123: 1633.02 | K123: 1586.95 | L123: 1547.3 | M123: 17.69334
A124: 115 | B124: JSWENERGY | C124: 69 | D124: 69.68 | E124: 68.22 | F124: 67.43 | G124: 65.97 | H124: 70.47 | I124: 71.93 | J124: 72.72 | K124: 71.15 | L124: 68.9 | M124: 3.79861
A125: 116 | B125: JSWSTEEL | C125: 288.1 | D125: 292.43 | E125: 282.67 | F125: 277.23 | G125: 267.47 | H125: 297.87 | I125: 307.63 | J125: 313.07 | K125: 302.2 | L125: 287 | M125: 67.62525
A126: 117 | B126: JINDALSTEL | C126: 169.3 | D126: 171.35 | E126: 165.95 | F126: 162.60 | G126: 157.20 | H126: 174.70 | I126: 180.10 | J126: 183.45 | K126: 176.75 | L126: 168 | M126: 99.14774
A127: 118 | B127: JUBLFOOD | C127: 1282.25 | D127: 1293.22 | E127: 1266.43 | F127: 1250.62 | G127: 1223.83 | H127: 1309.03 | I127: 1335.82 | J127: 1351.63 | K127: 1320 | L127: 1277.4 | M127: 13.09419
A128: 119 | B128: JUBILANT | C128: 638.5 | D128: 639.27 | E128: 634.68 | F128: 630.87 | G128: 626.28 | H128: 643.08 | I128: 647.67 | J128: 651.48 | K128: 643.85 | L128: 635.45 | M128: 0.82944
A129: 120 | B129: KOTAKBANK | C129: 1408.15 | D129: 1410.80 | E129: 1396.60 | F129: 1385.05 | G129: 1370.85 | H129: 1422.35 | I129: 1436.55 | J129: 1448.10 | K129: 1425 | L129: 1399.25 | M129: 27.86736
A130: 121 | B130: L&TFH | C130: 122.45 | D130: 123.32 | E130: 121.38 | F130: 120.32 | G130: 118.38 | H130: 124.38 | I130: 126.32 | J130: 127.38 | K130: 125.25 | L130: 122.25 | M130: 44.48504
A131: 122 | B131: LTTS | C131: 1682.7 | D131: 1697.55 | E131: 1655.15 | F131: 1627.60 | G131: 1585.20 | H131: 1725.10 | I131: 1767.50 | J131: 1795.05 | K131: 1739.95 | L131: 1670 | M131: 0.77993
A132: 123 | B132: LICHSGFIN | C132: 474 | D132: 477.72 | E132: 467.28 | F132: 460.57 | G132: 450.13 | H132: 484.43 | I132: 494.87 | J132: 501.58 | K132: 488.15 | L132: 471 | M132: 15.62444
A133: 124 | B133: LTI | C133: 1715.45 | D133: 1718.83 | E133: 1694.67 | F133: 1673.88 | G133: 1649.72 | H133: 1739.62 | I133: 1763.78 | J133: 1784.57 | K133: 1743 | L133: 1698.05 | M133: 1.08589
A134: 125 | B134: LT | C134: 1366.6 | D134: 1363.65 | E134: 1352.95 | F134: 1339.30 | G134: 1328.60 | H134: 1377.30 | I134: 1388.00 | J134: 1401.65 | K134: 1374.35 | L134: 1350 | M134: 25.96385
A135: 126 | B135: LUPIN | C135: 854.7 | D135: 859.02 | E135: 847.23 | F135: 839.77 | G135: 827.98 | H135: 866.48 | I135: 878.27 | J135: 885.73 | K135: 870.8 | L135: 851.55 | M135: 7.93964
A136: 127 | B136: MRF | C136: 52944.65 | D136: 53420.32 | E136: 52190.63 | F136: 51436.62 | G136: 50206.93 | H136: 54174.33 | I136: 55404.02 | J136: 56158.03 | K136: 54650 | L136: 52666.3 | M136: 0.05985
A137: 128 | B137: MGL | C137: 947 | D137: 952.12 | E137: 937.53 | F137: 928.07 | G137: 913.48 | H137: 961.58 | I137: 976.17 | J137: 985.63 | K137: 966.7 | L137: 942.65 | M137: 2.09818
A138: 129 | B138: M&MFIN | C138: 384.35 | D138: 388.85 | E138: 378.10 | F138: 371.85 | G138: 361.10 | H138: 395.10 | I138: 405.85 | J138: 412.10 | K138: 399.6 | L138: 382.6 | M138: 19.32202
A139: 130 | B139: M&M | C139: 636 | D139: 637.70 | E139: 632.50 | F139: 629.00 | G139: 623.80 | H139: 641.20 | I139: 646.40 | J139: 649.90 | K139: 642.9 | L139: 634.2 | M139: 31.60875
A140: 131 | B140: MANAPPURAM | C140: 116.35 | D140: 116.88 | E140: 115.17 | F140: 113.98 | G140: 112.27 | H140: 118.07 | I140: 119.78 | J140: 120.97 | K140: 118.6 | L140: 115.7 | M140: 17.69325
A141: 132 | B141: MRPL | C141: 68.6 | D141: 69.13 | E141: 67.67 | F141: 66.73 | G141: 65.27 | H141: 70.07 | I141: 71.53 | J141: 72.47 | K141: 70.6 | L141: 68.2 | M141: 5.7104
A142: 133 | B142: MARICO | C142: 359.4 | D142: 359.27 | E142: 351.18 | F142: 342.97 | G142: 334.88 | H142: 367.48 | I142: 375.57 | J142: 383.78 | K142: 367.35 | L142: 351.05 | M142: 185.34665
A143: 134 | B143: MARUTI | C143: 6702 | D143: 6722.42 | E143: 6659.58 | F143: 6617.17 | G143: 6554.33 | H143: 6764.83 | I143: 6827.67 | J143: 6870.08 | K143: 6785.25 | L143: 6680 | M143: 5.86684
A144: 135 | B144: MFSL | C144: 407.95 | D144: 413.75 | E144: 399.50 | F144: 391.05 | G144: 376.80 | H144: 422.20 | I144: 436.45 | J144: 444.90 | K144: 428 | L144: 405.3 | M144: 4.14315
A145: 136 | B145: MINDTREE | C145: 979.95 | D145: 979.98 | E145: 974.97 | F145: 969.98 | G145: 964.97 | H145: 984.97 | I145: 989.98 | J145: 994.97 | K145: 985 | L145: 975 | M145: 12.42934
A146: 137 | B146: MOTHERSUMI | C146: 131.65 | D146: 132.87 | E146: 130.08 | F146: 128.52 | G146: 125.73 | H146: 134.43 | I146: 137.22 | J146: 138.78 | K146: 135.65 | L146: 131.3 | M146: 76.88093
A147: 138 | B147: MPHASIS | C147: 965.3 | D147: 967.32 | E147: 959.08 | F147: 952.87 | G147: 944.63 | H147: 973.53 | I147: 981.77 | J147: 987.98 | K147: 975.55 | L147: 961.1 | M147: 0.63147
A148: 139 | B148: MUTHOOTFIN | C148: 566.4 | D148: 576.38 | E148: 553.62 | F148: 540.83 | G148: 518.07 | H148: 589.17 | I148: 611.93 | J148: 624.72 | K148: 599.15 | L148: 563.6 | M148: 7.59832
A149: 140 | B149: NATCOPHARM | C149: 534.65 | D149: 533.85 | E149: 527.80 | F149: 520.95 | G149: 514.90 | H149: 540.70 | I149: 546.75 | J149: 553.60 | K149: 539.9 | L149: 527 | M149: 1.58251
A150: 141 | B150: NBCC | C150: 56.25 | D150: 56.90 | E150: 55.45 | F150: 54.65 | G150: 53.20 | H150: 57.70 | I150: 59.15 | J150: 59.95 | K150: 58.35 | L150: 56.1 | M150: 43.56469
A151: 142 | B151: NHPC | C151: 23.25 | D151: 23.23 | E151: 23.02 | F151: 22.78 | G151: 22.57 | H151: 23.47 | I151: 23.68 | J151: 23.92 | K151: 23.45 | L151: 23 | M151: 36.97225
A152: 143 | B152: NMDC | C152: 96.65 | D152: 97.37 | E152: 95.58 | F152: 94.52 | G152: 92.73 | H152: 98.43 | I152: 100.22 | J152: 101.28 | K152: 99.15 | L152: 96.3 | M152: 37.24829
A153: 144 | B153: NTPC | C153: 134.1 | D153: 134.63 | E153: 133.07 | F153: 132.03 | G153: 130.47 | H153: 135.67 | I153: 137.23 | J153: 138.27 | K153: 136.2 | L153: 133.6 | M153: 91.37799
A154: 145 | B154: NATIONALUM | C154: 50.35 | D154: 50.73 | E154: 49.77 | F154: 49.18 | G154: 48.22 | H154: 51.32 | I154: 52.28 | J154: 52.87 | K154: 51.7 | L154: 50.15 | M154: 41.61052
A155: 146 | B155: OBEROIRLTY | C155: 521.25 | D155: 522.03 | E155: 515.22 | F155: 509.18 | G155: 502.37 | H155: 528.07 | I155: 534.88 | J155: 540.92 | K155: 528.85 | L155: 516 | M155: 1.51283
A156: 147 | B156: ONGC | C156: 171.7 | D156: 170.93 | E156: 169.37 | F156: 167.03 | G156: 165.47 | H156: 173.27 | I156: 174.83 | J156: 177.17 | K156: 172.5 | L156: 168.6 | M156: 90.4279
A157: 148 | B157: OIL | C157: 180.8 | D157: 181.43 | E157: 179.47 | F157: 178.13 | G157: 176.17 | H157: 182.77 | I157: 184.73 | J157: 186.07 | K157: 183.4 | L157: 180.1 | M157: 6.13508
A158: 149 | B158: OFSS | C158: 3451.25 | D158: 3441.67 | E158: 3425.08 | F158: 3398.92 | G158: 3382.33 | H158: 3467.83 | I158: 3484.42 | J158: 3510.58 | K158: 3458.25 | L158: 3415.5 | M158: 0.19924
A159: 150 | B159: PIIND | C159: 1030.65 | D159: 1038.90 | E159: 1012.80 | F159: 994.95 | G159: 968.85 | H159: 1056.75 | I159: 1082.85 | J159: 1100.70 | K159: 1065 | L159: 1021.05 | M159: 0.55724
A160: 151 | B160: PNBHOUSING | C160: 702.8 | D160: 705.35 | E160: 692.75 | F160: 682.70 | G160: 670.10 | H160: 715.40 | I160: 728.00 | J160: 738.05 | K160: 717.95 | L160: 695.3 | M160: 4.00776
A161: 152 | B161: PAGEIND | C161: 21799.3 | D161: 21900.27 | E161: 21600.53 | F161: 21401.77 | G161: 21102.03 | H161: 22099.03 | I161: 22398.77 | J161: 22597.53 | K161: 22200 | L161: 21701.5 | M161: 0.24665
A162: 153 | B162: PETRONET | C162: 238 | D162: 237.18 | E162: 235.37 | F162: 232.73 | G162: 230.92 | H162: 239.82 | I162: 241.63 | J162: 244.27 | K162: 239 | L162: 234.55 | M162: 17.42722
A163: 154 | B163: PFIZER | C163: 3127.85 | D163: 3132.28 | E163: 3100.57 | F163: 3073.28 | G163: 3041.57 | H163: 3159.57 | I163: 3191.28 | J163: 3218.57 | K163: 3164 | L163: 3105 | M163: 0.06651
A164: 155 | B164: PIDILITIND | C164: 1178.7 | D164: 1184.20 | E164: 1168.50 | F164: 1158.30 | G164: 1142.60 | H164: 1194.40 | I164: 1210.10 | J164: 1220.30 | K164: 1199.9 | L164: 1174 | M164: 3.45642
A165: 156 | B165: PEL | C165: 2267.95 | D165: 2270.68 | E165: 2222.37 | F165: 2176.78 | G165: 2128.47 | H165: 2316.27 | I165: 2364.58 | J165: 2410.17 | K165: 2319 | L165: 2225.1 | M165: 7.2346
A166: 157 | B166: PFC | C166: 110.6 | D166: 111.95 | E166: 108.90 | F166: 107.20 | G166: 104.15 | H166: 113.65 | I166: 116.70 | J166: 118.40 | K166: 115 | L166: 110.25 | M166: 30.47815
A167: 158 | B167: POWERGRID | C167: 191.55 | D167: 191.95 | E167: 190.10 | F167: 188.65 | G167: 186.80 | H167: 193.40 | I167: 195.25 | J167: 196.70 | K167: 193.8 | L167: 190.5 | M167: 53.15789
A168: 159 | B168: PRESTIGE | C168: 264.15 | D168: 262.98 | E168: 259.17 | F168: 254.18 | G168: 250.37 | H168: 267.97 | I168: 271.78 | J168: 276.77 | K168: 266.8 | L168: 258 | M168: 2.31659
A169: 160 | B169: PGHH | C169: 10346.8 | D169: 10370.52 | E169: 10256.28 | F169: 10165.77 | G169: 10051.53 | H169: 10461.03 | I169: 10575.27 | J169: 10665.78 | K169: 10484.75 | L169: 10280 | M169: 0.02502
A170: 161 | B170: PNB | C170: 83.95 | D170: 84.83 | E170: 82.52 | F170: 81.08 | G170: 78.77 | H170: 86.27 | I170: 88.58 | J170: 90.02 | K170: 87.15 | L170: 83.4 | M170: 163.56567
A171: 162 | B171: QUESS | C171: 661.25 | D171: 668.73 | E171: 651.52 | F171: 641.78 | G171: 624.57 | H171: 678.47 | I171: 695.68 | J171: 705.42 | K171: 685.95 | L171: 659 | M171: 1.40212
A172: 163 | B172: RBLBANK | C172: 665.95 | D172: 668.08 | E172: 659.67 | F172: 653.38 | G172: 644.97 | H172: 674.37 | I172: 682.78 | J172: 689.07 | K172: 676.5 | L172: 661.8 | M172: 8.97661
A173: 164 | B173: RECLTD | C173: 139.7 | D173: 140.72 | E173: 138.23 | F173: 136.77 | G173: 134.28 | H173: 142.18 | I173: 144.67 | J173: 146.13 | K173: 143.2 | L173: 139.25 | M173: 33.60716
A174: 165 | B174: RAJESHEXPO | C174: 689.4 | D174: 685.67 | E174: 680.08 | F174: 670.77 | G174: 665.18 | H174: 694.98 | I174: 700.57 | J174: 709.88 | K174: 691.25 | L174: 676.35 | M174: 2.89283
A175: 166 | B175: RELCAPITAL | C175: 121.05 | D175: 123.90 | E175: 117.15 | F175: 113.25 | G175: 106.50 | H175: 127.80 | I175: 134.55 | J175: 138.45 | K175: 130.65 | L175: 120 | M175: 184.53924
A176: 167 | B176: RELIANCE | C176: 1343.5 | D176: 1359.57 | E176: 1324.13 | F176: 1304.77 | G176: 1269.33 | H176: 1378.93 | I176: 1414.37 | J176: 1433.73 | K176: 1395 | L176: 1340.2 | M176: 88.77095
A177: 168 | B177: RELINFRA | C177: 100.9 | D177: 103.30 | E177: 97.60 | F177: 94.30 | G177: 88.60 | H177: 106.60 | I177: 112.30 | J177: 115.60 | K177: 109 | L177: 100 | M177: 105.79715
A178: 169 | B178: RPOWER | C178: 6.05 | D178: 6.28 | E178: 5.77 | F178: 5.48 | G178: 4.97 | H178: 6.57 | I178: 7.08 | J178: 7.37 | K178: 6.8 | L178: 6 | M178: 795.52448
A179: 170 | B179: SBILIFE | C179: 662.1 | D179: 661.78 | E179: 658.32 | F179: 654.53 | G179: 651.07 | H179: 665.57 | I179: 669.03 | J179: 672.82 | K179: 665.25 | L179: 658 | M179: 4.0033
A180: 171 | B180: SRF | C180: 2504.5 | D180: 2527.17 | E180: 2476.93 | F180: 2449.37 | G180: 2399.13 | H180: 2554.73 | I180: 2604.97 | J180: 2632.53 | K180: 2577.4 | L180: 2499.6 | M180: 1.51194
A181: 172 | B181: SHREECEM | C181: 19766.6 | D181: 19772.20 | E181: 19549.40 | F181: 19332.20 | G181: 19109.40 | H181: 19989.40 | I181: 20212.20 | J181: 20429.40 | K181: 19995 | L181: 19555 | M181: 0.29843
A182: 173 | B182: SRTRANSFIN | C182: 1023 | D182: 1037.37 | E182: 1000.98 | F182: 978.97 | G182: 942.58 | H182: 1059.38 | I182: 1095.77 | J182: 1117.78 | K182: 1073.75 | L182: 1015.35 | M182: 10.11355
A183: 174 | B183: SIEMENS | C183: 1122 | D183: 1128.33 | E183: 1108.82 | F183: 1095.63 | G183: 1076.12 | H183: 1141.52 | I183: 1161.03 | J183: 1174.22 | K183: 1147.85 | L183: 1115.15 | M183: 6.81095
A184: 175 | B184: SBIN | C184: 305.45 | D184: 307.53 | E184: 301.67 | F184: 297.88 | G184: 292.02 | H184: 311.32 | I184: 317.18 | J184: 320.97 | K184: 313.4 | L184: 303.75 | M184: 152.19845
A185: 176 | B185: SAIL | C185: 53 | D185: 53.85 | E185: 51.80 | F185: 50.60 | G185: 48.55 | H185: 55.05 | I185: 57.10 | J185: 58.30 | K185: 55.9 | L185: 52.65 | M185: 196.03477
A186: 177 | B186: STRTECH | C186: 193.1 | D186: 196.38 | E186: 188.37 | F186: 183.63 | G186: 175.62 | H186: 201.12 | I186: 209.13 | J186: 213.87 | K186: 204.4 | L186: 191.65 | M186: 38.63014
A187: 178 | B187: SPARC | C187: 163.55 | D187: 164.47 | E187: 158.73 | F187: 153.92 | G187: 148.18 | H187: 169.28 | I187: 175.02 | J187: 179.83 | K187: 170.2 | L187: 159.65 | M187: 10.3691
A188: 179 | B188: SUNPHARMA | C188: 448.2 | D188: 450.22 | E188: 444.43 | F188: 440.67 | G188: 434.88 | H188: 453.98 | I188: 459.77 | J188: 463.53 | K188: 456 | L188: 446.45 | M188: 41.89396
A189: 180 | B189: SUNTV | C189: 551.1 | D189: 551.55 | E189: 545.60 | F189: 540.10 | G189: 534.15 | H189: 557.05 | I189: 563.00 | J189: 568.50 | K189: 557.5 | L189: 546.05 | M189: 18.28542
A190: 181 | B190: SYNGENE | C190: 610.5 | D190: 610.23 | E190: 605.47 | F190: 600.43 | G190: 595.67 | H190: 615.27 | I190: 620.03 | J190: 625.07 | K190: 615 | L190: 605.2 | M190: 0.26291
A191: 182 | B191: TVSMOTOR | C191: 489.2 | D191: 486.48 | E191: 480.97 | F191: 472.73 | G191: 467.22 | H191: 494.72 | I191: 500.23 | J191: 508.47 | K191: 492 | L191: 478.25 | M191: 14.41619
A192: 183 | B192: TATACHEM | C192: 596 | D192: 599.78 | E192: 588.27 | F192: 580.53 | G192: 569.02 | H192: 607.52 | I192: 619.03 | J192: 626.77 | K192: 611.3 | L192: 592.05 | M192: 15.23112
A193: 184 | B193: TCS | C193: 2151.95 | D193: 2158.37 | E193: 2132.38 | F193: 2112.82 | G193: 2086.83 | H193: 2177.93 | I193: 2203.92 | J193: 2223.48 | K193: 2184.35 | L193: 2138.8 | M193: 22.01698
A194: 185 | B194: TATAGLOBAL | C194: 199.75 | D194: 201.52 | E194: 197.03 | F194: 194.32 | G194: 189.83 | H194: 204.23 | I194: 208.72 | J194: 211.43 | K194: 206 | L194: 198.8 | M194: 14.53964
A195: 186 | B195: TATAMTRDVR | C195: 91.55 | D195: 93.20 | E195: 89.15 | F195: 86.75 | G195: 82.70 | H195: 95.60 | I195: 99.65 | J195: 102.05 | K195: 97.25 | L195: 90.8 | M195: 35.36237
A196: 187 | B196: TATAMOTORS | C196: 190.95 | D196: 194.38 | E196: 185.92 | F196: 180.88 | G196: 172.42 | H196: 199.42 | I196: 207.88 | J196: 212.92 | K196: 202.85 | L196: 189.35 | M196: 305.16908
A197: 188 | B197: TATAPOWER | C197: 64.35 | D197: 64.98 | E197: 63.47 | F197: 62.58 | G197: 61.07 | H197: 65.87 | I197: 67.38 | J197: 68.27 | K197: 66.5 | L197: 64.1 | M197: 61.53618
A198: 189 | B198: TATASTEEL | C198: 530.6 | D198: 534.85 | E198: 524.75 | F198: 518.90 | G198: 508.80 | H198: 540.70 | I198: 550.80 | J198: 556.65 | K198: 544.95 | L198: 529 | M198: 65.41498
A199: 190 | B199: TECHM | C199: 814.65 | D199: 816.22 | E199: 808.13 | F199: 801.62 | G199: 793.53 | H199: 822.73 | I199: 830.82 | J199: 837.33 | K199: 824.3 | L199: 809.7 | M199: 18.10222
A200: 191 | B200: NIACL | C200: 177.1 | D200: 177.55 | E200: 175.60 | F200: 174.10 | G200: 172.15 | H200: 179.05 | I200: 181.00 | J200: 182.50 | K200: 179.5 | L200: 176.05 | M200: 0.24542
A201: 192 | B201: RAMCOCEM | C201: 752.5 | D201: 760.43 | E201: 742.27 | F201: 732.03 | G201: 713.87 | H201: 770.67 | I201: 788.83 | J201: 799.07 | K201: 778.6 | L201: 750.2 | M201: 3.37066
A202: 193 | B202: TITAN | C202: 1086.5 | D202: 1091.50 | E202: 1078.00 | F202: 1069.50 | G202: 1056.00 | H202: 1100.00 | I202: 1113.50 | J202: 1122.00 | K202: 1105 | L202: 1083 | M202: 26.05643
A203: 194 | B203: TORNTPHARM | C203: 1701.25 | D203: 1709.10 | E203: 1684.10 | F203: 1666.95 | G203: 1641.95 | H203: 1726.25 | I203: 1751.25 | J203: 1768.40 | K203: 1734.1 | L203: 1691.95 | M203: 3.24082
A204: 195 | B204: TORNTPOWER | C204: 255.05 | D204: 254.57 | E204: 252.73 | F204: 250.42 | G204: 248.58 | H204: 256.88 | I204: 258.72 | J204: 261.03 | K204: 256.4 | L204: 252.25 | M204: 3.95133
A205: 196 | B205: UPL | C205: 951.15 | D205: 946.75 | E205: 938.45 | F205: 925.75 | G205: 917.45 | H205: 959.45 | I205: 967.75 | J205: 980.45 | K205: 955.05 | L205: 934.05 | M205: 21.12971
... 30 more rows

Sheet MidCap Intra
L5: Back To Main Page
A6: FOR INTRA DAY TRADING | K6: =Main!B10 -> 2019-05-08
A9: Sr.no | B9: Scrip | C9: CLOSE RATE | D9: Pivot Point | E9: Supports | H9: Resistances
C10: Point | E10: S1 | F10: S2 | G10: S3 | H10: R1 | I10: R2 | J10: R3 | K10: HIGH | L10: LOW | M10: Total Trade Quanity in Lakhs
A11: 1 | B11: 3MINDIA | C11: 23225.7 | D11: 23063.82 | E11: 22799.63 | F11: 22373.57 | G11: 22109.38 | H11: 23489.88 | I11: 23754.07 | J11: 24180.13 | K11: 23328 | L11: 22637.75 | M11: 0.00786
A12: 2 | B12: ABB | C12: 1478.8 | D12: 1480.42 | E12: 1463.93 | F12: 1449.07 | G12: 1432.58 | H12: 1495.28 | I12: 1511.77 | J12: 1526.63 | K12: 1496.9 | L12: 1465.55 | M12: 0.57445
A13: 3 | B13: ACC | C13: 1596.9 | D13: 1608.32 | E13: 1578.73 | F13: 1560.57 | G13: 1530.98 | H13: 1626.48 | I13: 1656.07 | J13: 1674.23 | K13: 1637.9 | L13: 1590.15 | M13: 4.27581
A14: 4 | B14: AIAENG | C14: 1722.1 | D14: 1730.73 | E14: 1701.37 | F14: 1680.63 | G14: 1651.27 | H14: 1751.47 | I14: 1780.83 | J14: 1801.57 | K14: 1760.1 | L14: 1710 | M14: 0.05161
A15: 5 | B15: APLAPOLLO | C15: 1512.05 | D15: 1509.12 | E15: 1482.23 | F15: 1452.42 | G15: 1425.53 | H15: 1538.93 | I15: 1565.82 | J15: 1595.63 | K15: 1536 | L15: 1479.3 | M15: 0.22256
A16: 6 | B16: AUBANK | C16: 639.4 | D16: 636.80 | E16: 627.60 | F16: 615.80 | G16: 606.60 | H16: 648.60 | I16: 657.80 | J16: 669.60 | K16: 646 | L16: 625 | M16: 3.82191
A17: 7 | B17: AAVAS | C17: 1411.6 | D17: 1408.52 | E17: 1354.08 | F17: 1296.57 | G17: 1242.13 | H17: 1466.03 | I17: 1520.47 | J17: 1577.98 | K17: 1462.95 | L17: 1351 | M17: 4.26869
A18: 8 | B18: ADANIGREEN | C18: 39.45 | D18: 40.07 | E18: 38.48 | F18: 37.52 | G18: 35.93 | H18: 41.03 | I18: 42.62 | J18: 43.58 | K18: 41.65 | L18: 39.1 | M18: 7.52888
A19: 9 | B19: ADANIPORTS | C19: 371.9 | D19: 375.32 | E19: 366.68 | F19: 361.47 | G19: 352.83 | H19: 380.53 | I19: 389.17 | J19: 394.38 | K19: 383.95 | L19: 370.1 | M19: 16.28805
A20: 10 | B20: ADANIPOWER | C20: 41.5 | D20: 42.07 | E20: 40.58 | F20: 39.67 | G20: 38.18 | H20: 42.98 | I20: 44.47 | J20: 45.38 | K20: 43.55 | L20: 41.15 | M20: 84.36065
A21: 11 | B21: ADANITRANS | C21: 211.1 | D21: 213.52 | E21: 207.03 | F21: 202.97 | G21: 196.48 | H21: 217.58 | I21: 224.07 | J21: 228.13 | K21: 220 | L21: 209.45 | M21: 0.62355
A22: 12 | B22: ABCAPITAL | C22: 100.35 | D22: 100.68 | E22: 98.92 | F22: 97.48 | G22: 95.72 | H22: 102.12 | I22: 103.88 | J22: 105.32 | K22: 102.45 | L22: 99.25 | M22: 20.09126
A23: 13 | B23: ABFRL | C23: 209 | D23: 207.92 | E23: 205.43 | F23: 201.87 | G23: 199.38 | H23: 211.48 | I23: 213.97 | J23: 217.53 | K23: 210.4 | L23: 204.35 | M23: 4.48973
A24: 14 | B24: ADVENZYMES | C24: 183.75 | D24: 185.87 | E24: 180.23 | F24: 176.72 | G24: 171.08 | H24: 189.38 | I24: 195.02 | J24: 198.53 | K24: 191.5 | L24: 182.35 | M24: 1.25064
A25: 15 | B25: AEGISCHEM | C25: 196.1 | D25: 197.70 | E25: 192.65 | F25: 189.20 | G25: 184.15 | H25: 201.15 | I25: 206.20 | J25: 209.65 | K25: 202.75 | L25: 194.25 | M25: 1.21983
A26: 16 | B26: AJANTPHARM | C26: 1051.4 | D26: 1059.13 | E26: 1038.27 | F26: 1025.13 | G26: 1004.27 | H26: 1072.27 | I26: 1093.13 | J26: 1106.27 | K26: 1080 | L26: 1046 | M26: 3.52776
A27: 17 | B27: AKZOINDIA | C27: 1669.4 | D27: 1678.45 | E27: 1656.95 | F27: 1644.50 | G27: 1623.00 | H27: 1690.90 | I27: 1712.40 | J27: 1724.85 | K27: 1699.95 | L27: 1666 | M27: 0.01819
A28: 18 | B28: APLLTD | C28: 549.7 | D28: 553.82 | E28: 542.63 | F28: 535.57 | G28: 524.38 | H28: 560.88 | I28: 572.07 | J28: 579.13 | K28: 565 | L28: 546.75 | M28: 0.18531
A29: 19 | B29: ALKEM | C29: 1684.05 | D29: 1689.43 | E29: 1664.62 | F29: 1645.18 | G29: 1620.37 | H29: 1708.87 | I29: 1733.68 | J29: 1753.12 | K29: 1714.25 | L29: 1670 | M29: 0.21201
A30: 20 | B30: ALBK | C30: 44.9 | D30: 45.53 | E30: 44.12 | F30: 43.33 | G30: 41.92 | H30: 46.32 | I30: 47.73 | J30: 48.52 | K30: 46.95 | L30: 44.75 | M30: 28.05252
A31: 21 | B31: ALLCARGO | C31: 103.6 | D31: 104.12 | E31: 102.58 | F31: 101.57 | G31: 100.03 | H31: 105.13 | I31: 106.67 | J31: 107.68 | K31: 105.65 | L31: 103.1 | M31: 1.082
A32: 22 | B32: AMARAJABAT | C32: 643.1 | D32: 645.07 | E32: 638.98 | F32: 634.87 | G32: 628.78 | H32: 649.18 | I32: 655.27 | J32: 659.38 | K32: 651.15 | L32: 640.95 | M32: 2.69817
A33: 23 | B33: AMBUJACEM | C33: 218.2 | D33: 219.38 | E33: 216.32 | F33: 214.43 | G33: 211.37 | H33: 221.27 | I33: 224.33 | J33: 226.22 | K33: 222.45 | L33: 217.5 | M33: 16.10407
A34: 24 | B34: ANDHRABANK | C34: 24.15 | D34: 24.30 | E34: 23.90 | F34: 23.65 | G34: 23.25 | H34: 24.55 | I34: 24.95 | J34: 25.20 | K34: 24.7 | L34: 24.05 | M34: 6.88804
A35: 25 | B35: APOLLOHOSP | C35: 1164.95 | D35: 1172.13 | E35: 1145.17 | F35: 1125.38 | G35: 1098.42 | H35: 1191.92 | I35: 1218.88 | J35: 1238.67 | K35: 1199.1 | L35: 1152.35 | M35: 3.20142
A36: 26 | B36: APOLLOTYRE | C36: 195.2 | D36: 196.28 | E36: 193.47 | F36: 191.73 | G36: 188.92 | H36: 198.02 | I36: 200.83 | J36: 202.57 | K36: 199.1 | L36: 194.55 | M36: 12.73921
A37: 27 | B37: ASHOKLEY | C37: 85.95 | D37: 86.78 | E37: 84.77 | F37: 83.58 | G37: 81.57 | H37: 87.97 | I37: 89.98 | J37: 91.17 | K37: 88.8 | L37: 85.6 | M37: 145.00633
A38: 28 | B38: ASHOKA | C38: 118.1 | D38: 119.90 | E38: 115.65 | F38: 113.20 | G38: 108.95 | H38: 122.35 | I38: 126.60 | J38: 129.05 | K38: 124.15 | L38: 117.45 | M38: 0.68586
A39: 29 | B39: ASIANPAINT | C39: 1387.8 | D39: 1396.98 | E39: 1367.17 | F39: 1346.53 | G39: 1316.72 | H39: 1417.62 | I39: 1447.43 | J39: 1468.07 | K39: 1426.8 | L39: 1376.35 | M39: 28.63939
A40: 30 | B40: ASTERDM | C40: 142.55 | D40: 142.75 | E40: 140.50 | F40: 138.45 | G40: 136.20 | H40: 144.80 | I40: 147.05 | J40: 149.10 | K40: 145 | L40: 140.7 | M40: 0.19919
A41: 31 | B41: ASTRAZEN | C41: 2313.85 | D41: 2324.28 | E41: 2284.57 | F41: 2255.28 | G41: 2215.57 | H41: 2353.57 | I41: 2393.28 | J41: 2422.57 | K41: 2364 | L41: 2295 | M41: 0.08669
A42: 32 | B42: ASTRAL | C42: 1175.1 | D42: 1185.38 | E42: 1150.82 | F42: 1126.53 | G42: 1091.97 | H42: 1209.67 | I42: 1244.23 | J42: 1268.52 | K42: 1219.95 | L42: 1161.1 | M42: 0.36674
A43: 33 | B43: ATUL | C43: 3537.1 | D43: 3537.35 | E43: 3504.70 | F43: 3472.30 | G43: 3439.65 | H43: 3569.75 | I43: 3602.40 | J43: 3634.80 | K43: 3570 | L43: 3504.95 | M43: 0.1593
A44: 34 | B44: AUROPHARMA | C44: 770.7 | D44: 774.93 | E44: 760.22 | F44: 749.73 | G44: 735.02 | H44: 785.42 | I44: 800.13 | J44: 810.62 | K44: 789.65 | L44: 764.45 | M44: 15.97737
A45: 35 | B45: AVANTIFEED | C45: 359.25 | D45: 361.32 | E45: 354.63 | F45: 350.02 | G45: 343.33 | H45: 365.93 | I45: 372.62 | J45: 377.23 | K45: 368 | L45: 356.7 | M45: 1.51994
A46: 36 | B46: DMART | C46: 1255.1 | D46: 1260.03 | E46: 1235.07 | F46: 1215.03 | G46: 1190.07 | H46: 1280.07 | I46: 1305.03 | J46: 1325.07 | K46: 1285 | L46: 1240 | M46: 6.99459
A47: 37 | B47: AXISBANK | C47: 741.85 | D47: 745.78 | E47: 736.07 | F47: 730.28 | G47: 720.57 | H47: 751.57 | I47: 761.28 | J47: 767.07 | K47: 755.5 | L47: 740 | M47: 50.71941
A48: 38 | B48: BASF | C48: 1292.95 | D48: 1302.73 | E48: 1273.62 | F48: 1254.28 | G48: 1225.17 | H48: 1322.07 | I48: 1351.18 | J48: 1370.52 | K48: 1331.85 | L48: 1283.4 | M48: 0.05891
A49: 39 | B49: BEML | C49: 835.35 | D49: 842.18 | E49: 824.37 | F49: 813.38 | G49: 795.57 | H49: 853.17 | I49: 870.98 | J49: 881.97 | K49: 860 | L49: 831.2 | M49: 7.51407
A50: 40 | B50: BSE | C50: 637.15 | D50: 640.05 | E50: 632.10 | F50: 627.05 | G50: 619.10 | H50: 645.10 | I50: 653.05 | J50: 658.10 | K50: 648 | L50: 635 | M50: 1.37617
A51: 41 | B51: BAJAJ-AUTO | C51: 3033.05 | D51: 3035.78 | E51: 3018.57 | F51: 3004.08 | G51: 2986.87 | H51: 3050.27 | I51: 3067.48 | J51: 3081.97 | K51: 3053 | L51: 3021.3 | M51: 2.44684
A52: 42 | B52: BAJAJCON | C52: 349.85 | D52: 345.38 | E52: 335.87 | F52: 321.88 | G52: 312.37 | H52: 359.37 | I52: 368.88 | J52: 382.87 | K52: 354.9 | L52: 331.4 | M52: 5.56742
A53: 43 | B53: BAJAJELEC | C53: 557.75 | D53: 558.27 | E53: 551.53 | F53: 545.32 | G53: 538.58 | H53: 564.48 | I53: 571.22 | J53: 577.43 | K53: 565 | L53: 552.05 | M53: 0.68237
A54: 44 | B54: BAJFINANCE | C54: 3017.05 | D54: 3031.48 | E54: 2993.17 | F54: 2969.28 | G54: 2930.97 | H54: 3055.37 | I54: 3093.68 | J54: 3117.57 | K54: 3069.8 | L54: 3007.6 | M54: 9.70264
A55: 45 | B55: BAJAJFINSV | C55: 7561.95 | D55: 7595.23 | E55: 7491.72 | F55: 7421.48 | G55: 7317.97 | H55: 7665.47 | I55: 7768.98 | J55: 7839.22 | K55: 7698.75 | L55: 7525 | M55: 1.03553
A56: 46 | B56: BAJAJHLDNG | C56: 3178.05 | D56: 3179.92 | E56: 3166.13 | F56: 3154.22 | G56: 3140.43 | H56: 3191.83 | I56: 3205.62 | J56: 3217.53 | K56: 3193.7 | L56: 3168 | M56: 0.09918
A57: 47 | B57: BALKRISIND | C57: 856.55 | D57: 862.48 | E57: 845.27 | F57: 833.98 | G57: 816.77 | H57: 873.77 | I57: 890.98 | J57: 902.27 | K57: 879.7 | L57: 851.2 | M57: 6.91072
A58: 48 | B58: BALMLAWRIE | C58: 167.8 | D58: 168.23 | E58: 166.62 | F58: 165.43 | G58: 163.82 | H58: 169.42 | I58: 171.03 | J58: 172.22 | K58: 169.85 | L58: 167.05 | M58: 0.34154
A59: 49 | B59: BALRAMCHIN | C59: 143.55 | D59: 146.35 | E59: 138.20 | F59: 132.85 | G59: 124.70 | H59: 151.70 | I59: 159.85 | J59: 165.20 | K59: 154.5 | L59: 141 | M59: 11.10849
A60: 50 | B60: BANDHANBNK | C60: 590.85 | D60: 596.87 | E60: 582.13 | F60: 573.42 | G60: 558.68 | H60: 605.58 | I60: 620.32 | J60: 629.03 | K60: 611.6 | L60: 588.15 | M60: 8.53243
A61: 51 | B61: BANKBARODA | C61: 112.55 | D61: 114.00 | E61: 110.55 | F61: 108.55 | G61: 105.10 | H61: 116.00 | I61: 119.45 | J61: 121.45 | K61: 117.45 | L61: 112 | M61: 135.50529
A62: 52 | B62: BANKINDIA | C62: 84.75 | D62: 85.90 | E62: 83.10 | F62: 81.45 | G62: 78.65 | H62: 87.55 | I62: 90.35 | J62: 92.00 | K62: 88.7 | L62: 84.25 | M62: 50.49227
A63: 53 | B63: MAHABANK | C63: 15.2 | D63: 15.35 | E63: 14.95 | F63: 14.70 | G63: 14.30 | H63: 15.60 | I63: 16.00 | J63: 16.25 | K63: 15.75 | L63: 15.1 | M63: 11.90863
A64: 54 | B64: BATAINDIA | C64: 1353.55 | D64: 1359.78 | E64: 1343.77 | F64: 1333.98 | G64: 1317.97 | H64: 1369.57 | I64: 1385.58 | J64: 1395.37 | K64: 1375.8 | L64: 1350 | M64: 12.25646
A65: 55 | B65: BERGEPAINT | C65: 304.7 | D65: 307.27 | E65: 300.73 | F65: 296.77 | G65: 290.23 | H65: 311.23 | I65: 317.77 | J65: 321.73 | K65: 313.8 | L65: 303.3 | M65: 4.26183
A66: 56 | B66: BDL | C66: 281.6 | D66: 283.65 | E66: 278.30 | F66: 275.00 | G66: 269.65 | H66: 286.95 | I66: 292.30 | J66: 295.60 | K66: 289 | L66: 280.35 | M66: 0.16243
A67: 57 | B67: BEL | C67: 86.7 | D67: 87.50 | E67: 85.65 | F67: 84.60 | G67: 82.75 | H67: 88.55 | I67: 90.40 | J67: 91.45 | K67: 89.35 | L67: 86.45 | M67: 60.85306
A68: 58 | B68: BHARATFORG | C68: 465.35 | D68: 468.78 | E68: 460.57 | F68: 455.78 | G68: 447.57 | H68: 473.57 | I68: 481.78 | J68: 486.57 | K68: 477 | L68: 464 | M68: 9.29965
A69: 59 | B69: BHEL | C69: 63.8 | D69: 64.62 | E69: 62.53 | F69: 61.27 | G69: 59.18 | H69: 65.88 | I69: 67.97 | J69: 69.23 | K69: 66.7 | L69: 63.35 | M69: 86.47726
A70: 60 | B70: BPCL | C70: 378.85 | D70: 379.80 | E70: 371.15 | F70: 363.45 | G70: 354.80 | H70: 387.50 | I70: 396.15 | J70: 403.85 | K70: 388.45 | L70: 372.1 | M70: 74.97322
A71: 61 | B71: BHARTIARTL | C71: 324.95 | D71: 329.08 | E71: 317.32 | F71: 309.68 | G71: 297.92 | H71: 336.72 | I71: 348.48 | J71: 356.12 | K71: 340.85 | L71: 321.45 | M71: 174.08388
A72: 62 | B72: INFRATEL | C72: 268 | D72: 268.18 | E72: 265.57 | F72: 263.13 | G72: 260.52 | H72: 270.62 | I72: 273.23 | J72: 275.67 | K72: 270.8 | L72: 265.75 | M72: 29.72102
A73: 63 | B73: BIOCON | C73: 550.9 | D73: 551.70 | E73: 544.45 | F73: 538.00 | G73: 530.75 | H73: 558.15 | I73: 565.40 | J73: 571.85 | K73: 558.95 | L73: 545.25 | M73: 26.93607
A74: 64 | B74: BIRLACORPN | C74: 553.5 | D74: 546.80 | E74: 534.70 | F74: 515.90 | G74: 503.80 | H74: 565.60 | I74: 577.70 | J74: 596.50 | K74: 558.9 | L74: 528 | M74: 4.28443
A75: 65 | B75: BLISSGVS | C75: 161.55 | D75: 162.42 | E75: 159.33 | F75: 157.12 | G75: 154.03 | H75: 164.63 | I75: 167.72 | J75: 169.93 | K75: 165.5 | L75: 160.2 | M75: 11.477
A76: 66 | B76: BLUEDART | C76: 3028.65 | D76: 3032.55 | E76: 2948.10 | F76: 2867.55 | G76: 2783.10 | H76: 3113.10 | I76: 3197.55 | J76: 3278.10 | K76: 3117 | L76: 2952 | M76: 0.08761
A77: 67 | B77: BLUESTARCO | C77: 741.75 | D77: 735.55 | E77: 718.20 | F77: 694.65 | G77: 677.30 | H77: 759.10 | I77: 776.45 | J77: 800.00 | K77: 752.9 | L77: 712 | M77: 3.25201
A78: 68 | B78: BBTC | C78: 1194.9 | D78: 1201.95 | E78: 1183.95 | F78: 1173.00 | G78: 1155.00 | H78: 1212.90 | I78: 1230.90 | J78: 1241.85 | K78: 1219.95 | L78: 1191 | M78: 0.85501
A79: 69 | B79: BOMDYEING | C79: 121.45 | D79: 124.68 | E79: 117.37 | F79: 113.28 | G79: 105.97 | H79: 128.77 | I79: 136.08 | J79: 140.17 | K79: 132 | L79: 120.6 | M79: 14.78084
A80: 70 | B80: BOSCHLTD | C80: 17784.7 | D80: 17810.47 | E80: 17547.03 | F80: 17309.37 | G80: 17045.93 | H80: 18048.13 | I80: 18311.57 | J80: 18549.23 | K80: 18073.9 | L80: 17572.8 | M80: 0.2569
A81: 71 | B81: BRIGADE | C81: 229.65 | D81: 227.63 | E81: 224.32 | F81: 218.98 | G81: 215.67 | H81: 232.97 | I81: 236.28 | J81: 241.62 | K81: 230.95 | L81: 222.3 | M81: 0.79732
A82: 72 | B82: BRITANNIA | C82: 2650.55 | D82: 2671.92 | E82: 2623.33 | F82: 2596.12 | G82: 2547.53 | H82: 2699.13 | I82: 2747.72 | J82: 2774.93 | K82: 2720.5 | L82: 2644.7 | M82: 11.82277
A83: 73 | B83: CARERATING | C83: 980 | D83: 980.85 | E83: 977.25 | F83: 974.50 | G83: 970.90 | H83: 983.60 | I83: 987.20 | J83: 989.95 | K83: 984.45 | L83: 978.1 | M83: 0.07637
A84: 74 | B84: CCL | C84: 258.45 | D84: 257.82 | E84: 255.63 | F84: 252.82 | G84: 250.63 | H84: 260.63 | I84: 262.82 | J84: 265.63 | K84: 260 | L84: 255 | M84: 0.19062
A85: 75 | B85: CESC | C85: 683.55 | D85: 688.88 | E85: 676.87 | F85: 670.18 | G85: 658.17 | H85: 695.57 | I85: 707.58 | J85: 714.27 | K85: 700.9 | L85: 682.2 | M85: 1.51254
A86: 77 | B86: CGPOWER | C86: 36.85 | D86: 36.43 | E86: 34.42 | F86: 31.98 | G86: 29.97 | H86: 38.87 | I86: 40.88 | J86: 43.32 | K86: 38.45 | L86: 34 | M86: 469.7574
A87: 78 | B87: CRISIL | C87: 1441.5 | D87: 1440.17 | E87: 1430.33 | F87: 1419.17 | G87: 1409.33 | H87: 1451.33 | I87: 1461.17 | J87: 1472.33 | K87: 1450 | L87: 1429 | M87: 0.06367
A88: 79 | B88: CADILAHC | C88: 299.2 | D88: 302.15 | E88: 294.30 | F88: 289.40 | G88: 281.55 | H88: 307.05 | I88: 314.90 | J88: 319.80 | K88: 310 | L88: 297.25 | M88: 14.34753
A89: 80 | B89: CANFINHOME | C89: 315.9 | D89: 319.97 | E89: 310.18 | F89: 304.47 | G89: 294.68 | H89: 325.68 | I89: 335.47 | J89: 341.18 | K89: 329.75 | L89: 314.25 | M89: 6.49421
A90: 81 | B90: CANBK | C90: 257.5 | D90: 260.58 | E90: 252.42 | F90: 247.33 | G90: 239.17 | H90: 265.67 | I90: 273.83 | J90: 278.92 | K90: 268.75 | L90: 255.5 | M90: 37.1346
A91: 82 | B91: CAPLIPOINT | C91: 334.6 | D91: 337.72 | E91: 326.08 | F91: 317.57 | G91: 305.93 | H91: 346.23 | I91: 357.87 | J91: 366.38 | K91: 349.35 | L91: 329.2 | M91: 0.74977
A92: 83 | B92: CARBORUNIV | C92: 359.05 | D92: 357.67 | E92: 353.33 | F92: 347.62 | G92: 343.28 | H92: 363.38 | I92: 367.72 | J92: 373.43 | K92: 362 | L92: 351.95 | M92: 1.41307
A93: 84 | B93: CASTROLIND | C93: 148.7 | D93: 149.30 | E93: 147.60 | F93: 146.50 | G93: 144.80 | H93: 150.40 | I93: 152.10 | J93: 153.20 | K93: 151 | L93: 148.2 | M93: 7.39402
A94: 85 | B94: CEATLTD | C94: 1037.2 | D94: 1040.70 | E94: 1027.50 | F94: 1017.80 | G94: 1004.60 | H94: 1050.40 | I94: 1063.60 | J94: 1073.30 | K94: 1053.9 | L94: 1031 | M94: 5.5728
A95: 86 | B95: CENTRALBK | C95: 28.95 | D95: 29.27 | E95: 28.53 | F95: 28.12 | G95: 27.38 | H95: 29.68 | I95: 30.42 | J95: 30.83 | K95: 30 | L95: 28.85 | M95: 6.95241
A96: 87 | B96: CDSL | C96: 230.7 | D96: 230.95 | E96: 229.70 | F96: 228.70 | G96: 227.45 | H96: 231.95 | I96: 233.20 | J96: 234.20 | K96: 232.2 | L96: 229.95 | M96: 1.73702
A97: 88 | B97: CENTURYPLY | C97: 163.15 | D97: 165.05 | E97: 158.50 | F97: 153.85 | G97: 147.30 | H97: 169.70 | I97: 176.25 | J97: 180.90 | K97: 171.6 | L97: 160.4 | M97: 1.97259
A98: 89 | B98: CERA | C98: 2766.2 | D98: 2779.22 | E98: 2740.83 | F98: 2715.47 | G98: 2677.08 | H98: 2804.58 | I98: 2842.97 | J98: 2868.33 | K98: 2817.6 | L98: 2753.85 | M98: 0.01034
A99: 90 | B99: CHAMBLFERT | C99: 149.7 | D99: 150.62 | E99: 147.63 | F99: 145.57 | G99: 142.58 | H99: 152.68 | I99: 155.67 | J99: 157.73 | K99: 153.6 | L99: 148.55 | M99: 2.13689
A100: 91 | B100: CHENNPETRO | C100: 246.85 | D100: 247.68 | E100: 239.37 | F100: 231.88 | G100: 223.57 | H100: 255.17 | I100: 263.48 | J100: 270.97 | K100: 256 | L100: 240.2 | M100: 11.54565
A101: 92 | B101: CHOLAHLDNG | C101: 509.85 | D101: 509.10 | E101: 503.25 | F101: 496.65 | G101: 490.80 | H101: 515.70 | I101: 521.55 | J101: 528.15 | K101: 514.95 | L101: 502.5 | M101: 0.69833
A102: 93 | B102: CHOLAFIN | C102: 1304.55 | D102: 1310.85 | E102: 1289.70 | F102: 1274.85 | G102: 1253.70 | H102: 1325.70 | I102: 1346.85 | J102: 1361.70 | K102: 1332 | L102: 1296 | M102: 3.37552
A103: 94 | B103: CIPLA | C103: 557.95 | D103: 559.80 | E103: 553.30 | F103: 548.65 | G103: 542.15 | H103: 564.45 | I103: 570.95 | J103: 575.60 | K103: 566.3 | L103: 555.15 | M103: 14.78212
A104: 95 | B104: CUB | C104: 197.8 | D104: 197.18 | E104: 196.12 | F104: 194.43 | G104: 193.37 | H104: 198.87 | I104: 199.93 | J104: 201.62 | K104: 198.25 | L104: 195.5 | M104: 5.4461
A105: 96 | B105: COALINDIA | C105: 248.8 | D105: 250.58 | E105: 245.92 | F105: 243.03 | G105: 238.37 | H105: 253.47 | I105: 258.13 | J105: 261.02 | K105: 255.25 | L105: 247.7 | M105: 43.20204
A106: 97 | B106: COCHINSHIP | C106: 371.6 | D106: 374.50 | E106: 367.10 | F106: 362.60 | G106: 355.20 | H106: 379.00 | I106: 386.40 | J106: 390.90 | K106: 381.9 | L106: 370 | M106: 0.32842
A107: 98 | B107: COFFEEDAY | C107: 251.25 | D107: 254.97 | E107: 246.53 | F107: 241.82 | G107: 233.38 | H107: 259.68 | I107: 268.12 | J107: 272.83 | K107: 263.4 | L107: 250.25 | M107: 0.71745
A108: 99 | B108: COLPAL | C108: 1158.65 | D108: 1162.02 | E108: 1149.23 | F108: 1139.82 | G108: 1127.03 | H108: 1171.43 | I108: 1184.22 | J108: 1193.63 | K108: 1174.8 | L108: 1152.6 | M108: 2.95446
A109: 100 | B109: CONCOR | C109: 489.85 | D109: 493.18 | E109: 485.42 | F109: 480.98 | G109: 473.22 | H109: 497.62 | I109: 505.38 | J109: 509.82 | K109: 500.95 | L109: 488.75 | M109: 2.87311
A110: 101 | B110: COROMANDEL | C110: 419.9 | D110: 421.47 | E110: 415.98 | F110: 412.07 | G110: 406.58 | H110: 425.38 | I110: 430.87 | J110: 434.78 | K110: 426.95 | L110: 417.55 | M110: 0.25233
A111: 102 | B111: CORPBANK | C111: 26.1 | D111: 26.30 | E111: 25.80 | F111: 25.50 | G111: 25.00 | H111: 26.60 | I111: 27.10 | J111: 27.40 | K111: 26.8 | L111: 26 | M111: 1.15381
A112: 103 | B112: COX&KINGS | C112: 114.8 | D112: 116.08 | E112: 112.57 | F112: 110.33 | G112: 106.82 | H112: 118.32 | I112: 121.83 | J112: 124.07 | K112: 119.6 | L112: 113.85 | M112: 0.69252
A113: 104 | B113: CREDITACC | C113: 517.2 | D113: 521.07 | E113: 496.18 | F113: 475.17 | G113: 450.28 | H113: 542.08 | I113: 566.97 | J113: 587.98 | K113: 545.95 | L113: 500.05 | M113: 0.68504
A114: 105 | B114: CROMPTON | C114: 222.1 | D114: 224.58 | E114: 217.32 | F114: 212.53 | G114: 205.27 | H114: 229.37 | I114: 236.63 | J114: 241.42 | K114: 231.85 | L114: 219.8 | M114: 1.38586
A115: 106 | B115: CUMMINSIND | C115: 703.15 | D115: 705.83 | E115: 696.37 | F115: 689.58 | G115: 680.12 | H115: 712.62 | I115: 722.08 | J115: 728.87 | K115: 715.3 | L115: 699.05 | M115: 2.54972
A116: 107 | B116: CYIENT | C116: 568.7 | D116: 567.47 | E116: 563.23 | F116: 557.77 | G116: 553.53 | H116: 572.93 | I116: 577.17 | J116: 582.63 | K116: 571.7 | L116: 562 | M116: 1.82462
A117: 108 | B117: DBCORP | C117: 184.8 | D117: 185.08 | E117: 180.47 | F117: 176.13 | G117: 171.52 | H117: 189.42 | I117: 194.03 | J117: 198.37 | K117: 189.7 | L117: 180.75 | M117: 0.65591
A118: 109 | B118: DCBBANK | C118: 214.55 | D118: 215.63 | E118: 211.77 | F118: 208.98 | G118: 205.12 | H118: 218.42 | I118: 222.28 | J118: 225.07 | K118: 219.5 | L118: 212.85 | M118: 19.81576
A119: 110 | B119: DCMSHRIRAM | C119: 467.25 | D119: 468.18 | E119: 461.47 | F119: 455.68 | G119: 448.97 | H119: 473.97 | I119: 480.68 | J119: 486.47 | K119: 474.9 | L119: 462.4 | M119: 1.71928
A120: 111 | B120: DLF | C120: 169.6 | D120: 171.07 | E120: 165.93 | F120: 162.27 | G120: 157.13 | H120: 174.73 | I120: 179.87 | J120: 183.53 | K120: 176.2 | L120: 167.4 | M120: 84.43779
A121: 112 | B121: DABUR | C121: 375.5 | D121: 378.10 | E121: 371.85 | F121: 368.20 | G121: 361.95 | H121: 381.75 | I121: 388.00 | J121: 391.65 | K121: 384.35 | L121: 374.45 | M121: 35.10917
A122: 113 | B122: DEEPAKFERT | C122: 138.4 | D122: 140.22 | E122: 135.43 | F122: 132.47 | G122: 127.68 | H122: 143.18 | I122: 147.97 | J122: 150.93 | K122: 145 | L122: 137.25 | M122: 2.1447
A123: 114 | B123: DEEPAKNTR | C123: 283.45 | D123: 286.15 | E123: 278.30 | F123: 273.15 | G123: 265.30 | H123: 291.30 | I123: 299.15 | J123: 304.30 | K123: 294 | L123: 281 | M123: 4.54958
A124: 115 | B124: DELTACORP | C124: 234.35 | D124: 236.83 | E124: 230.67 | F124: 226.98 | G124: 220.82 | H124: 240.52 | I124: 246.68 | J124: 250.37 | K124: 243 | L124: 233.15 | M124: 5.95373
A125: 116 | B125: DHFL | C125: 116.6 | D125: 122.32 | E125: 109.13 | F125: 101.67 | G125: 88.48 | H125: 129.78 | I125: 142.97 | J125: 150.43 | K125: 135.5 | L125: 114.85 | M125: 402.82663
A126: 117 | B126: DBL | C126: 478.55 | D126: 476.27 | E126: 467.43 | F126: 456.32 | G126: 447.48 | H126: 487.38 | I126: 496.22 | J126: 507.33 | K126: 485.1 | L126: 465.15 | M126: 6.22223
A127: 118 | B127: DISHTV | C127: 31.65 | D127: 32.52 | E127: 29.88 | F127: 28.12 | G127: 25.48 | H127: 34.28 | I127: 36.92 | J127: 38.68 | K127: 35.15 | L127: 30.75 | M127: 309.17993
A128: 119 | B128: DCAL | C128: 216.15 | D128: 216.72 | E128: 213.93 | F128: 211.72 | G128: 208.93 | H128: 218.93 | I128: 221.72 | J128: 223.93 | K128: 219.5 | L128: 214.5 | M128: 0.53091
A129: 120 | B129: DIVISLAB | C129: 1689.15 | D129: 1688.48 | E129: 1670.67 | F129: 1652.18 | G129: 1634.37 | H129: 1706.97 | I129: 1724.78 | J129: 1743.27 | K129: 1706.3 | L129: 1670 | M129: 5.59625
A130: 121 | B130: DIXON | C130: 2325.8 | D130: 2330.27 | E130: 2310.53 | F130: 2295.27 | G130: 2275.53 | H130: 2345.53 | I130: 2365.27 | J130: 2380.53 | K130: 2350 | L130: 2315 | M130: 0.01251
A131: 122 | B131: LALPATHLAB | C131: 1013.1 | D131: 1017.32 | E131: 1002.68 | F131: 992.27 | G131: 977.63 | H131: 1027.73 | I131: 1042.37 | J131: 1052.78 | K131: 1031.95 | L131: 1006.9 | M131: 0.20113
A132: 123 | B132: DRREDDY | C132: 2942.45 | D132: 2939.90 | E132: 2927.80 | F132: 2913.15 | G132: 2901.05 | H132: 2954.55 | I132: 2966.65 | J132: 2981.30 | K132: 2952 | L132: 2925.25 | M132: 4.5814
A133: 124 | B133: EIDPARRY | C133: 187.25 | D133: 189.00 | E133: 185.25 | F133: 183.25 | G133: 179.50 | H133: 191.00 | I133: 194.75 | J133: 196.75 | K133: 192.75 | L133: 187 | M133: 0.36423
A134: 125 | B134: EIHOTEL | C134: 179.3 | D134: 180.20 | E134: 177.35 | F134: 175.40 | G134: 172.55 | H134: 182.15 | I134: 185.00 | J134: 186.95 | K134: 183.05 | L134: 178.25 | M134: 2.73231
A135: 126 | B135: EDELWEISS | C135: 139.45 | D135: 140.28 | E135: 138.17 | F135: 136.88 | G135: 134.77 | H135: 141.57 | I135: 143.68 | J135: 144.97 | K135: 142.4 | L135: 139 | M135: 17.46664
A136: 127 | B136: EICHERMOT | C136: 20353.2 | D136: 20401.05 | E136: 20222.20 | F136: 20091.20 | G136: 19912.35 | H136: 20532.05 | I136: 20710.90 | J136: 20841.90 | K136: 20579.9 | L136: 20270.05 | M136: 0.48978
A137: 128 | B137: ELGIEQUIP | C137: 259.25 | D137: 260.23 | E137: 257.32 | F137: 255.38 | G137: 252.47 | H137: 262.17 | I137: 265.08 | J137: 267.02 | K137: 263.15 | L137: 258.3 | M137: 0.06314
A138: 129 | B138: EMAMILTD | C138: 374.85 | D138: 376.12 | E138: 368.73 | F138: 362.62 | G138: 355.23 | H138: 382.23 | I138: 389.62 | J138: 395.73 | K138: 383.5 | L138: 370 | M138: 1.58485
A139: 130 | B139: ENDURANCE | C139: 1150.1 | D139: 1157.97 | E139: 1140.93 | F139: 1131.77 | G139: 1114.73 | H139: 1167.13 | I139: 1184.17 | J139: 1193.33 | K139: 1175 | L139: 1148.8 | M139: 0.48891
A140: 131 | B140: ENGINERSIN | C140: 108.3 | D140: 109.05 | E140: 107.05 | F140: 105.80 | G140: 103.80 | H140: 110.30 | I140: 112.30 | J140: 113.55 | K140: 111.05 | L140: 107.8 | M140: 7.00875
A141: 132 | B141: EQUITAS | C141: 127.9 | D141: 128.80 | E141: 125.10 | F141: 122.30 | G141: 118.60 | H141: 131.60 | I141: 135.30 | J141: 138.10 | K141: 132.5 | L141: 126 | M141: 28.75788
A142: 133 | B142: ERIS | C142: 601.05 | D142: 602.15 | E142: 591.35 | F142: 581.65 | G142: 570.85 | H142: 611.85 | I142: 622.65 | J142: 632.35 | K142: 612.95 | L142: 592.45 | M142: 0.03114
A143: 134 | B143: ESCORTS | C143: 648.75 | D143: 653.12 | E143: 637.63 | F143: 626.52 | G143: 611.03 | H143: 664.23 | I143: 679.72 | J143: 690.83 | K143: 668.6 | L143: 642 | M143: 27.82681
A144: 135 | B144: ESSELPACK | C144: 133.5 | D144: 133.93 | E144: 132.62 | F144: 131.73 | G144: 130.42 | H144: 134.82 | I144: 136.13 | J144: 137.02 | K144: 135.25 | L144: 133.05 | M144: 1.317
A145: 136 | B145: EXIDEIND | C145: 212.65 | D145: 213.62 | E145: 210.48 | F145: 208.32 | G145: 205.18 | H145: 215.78 | I145: 218.92 | J145: 221.08 | K145: 216.75 | L145: 211.45 | M145: 22.47883
A146: 137 | B146: FDC | C146: 166.3 | D146: 167.30 | E146: 164.05 | F146: 161.80 | G146: 158.55 | H146: 169.55 | I146: 172.80 | J146: 175.05 | K146: 170.55 | L146: 165.05 | M146: 0.34098
A147: 138 | B147: FEDERALBNK | C147: 98.7 | D147: 99.50 | E147: 97.20 | F147: 95.70 | G147: 93.40 | H147: 101.00 | I147: 103.30 | J147: 104.80 | K147: 101.8 | L147: 98 | M147: 274.10464
A148: 139 | B148: FINEORG | C148: 1419.5 | D148: 1417.97 | E148: 1403.53 | F148: 1387.57 | G148: 1373.13 | H148: 1433.93 | I148: 1448.37 | J148: 1464.33 | K148: 1432.4 | L148: 1402 | M148: 0.03369
A149: 140 | B149: FINCABLES | C149: 412 | D149: 412.73 | E149: 407.47 | F149: 402.93 | G149: 397.67 | H149: 417.27 | I149: 422.53 | J149: 427.07 | K149: 418 | L149: 408.2 | M149: 4.49898
A150: 141 | B150: FINPIPE | C150: 459.35 | D150: 459.45 | E150: 455.15 | F150: 450.95 | G150: 446.65 | H150: 463.65 | I150: 467.95 | J150: 472.15 | K150: 463.75 | L150: 455.25 | M150: 0.11774
A151: 142 | B151: FSL | C151: 50.9 | D151: 50.68 | E151: 49.97 | F151: 49.03 | G151: 48.32 | H151: 51.62 | I151: 52.33 | J151: 53.27 | K151: 51.4 | L151: 49.75 | M151: 27.95027
A152: 143 | B152: FORTIS | C152: 135.2 | D152: 135.63 | E152: 134.57 | F152: 133.93 | G152: 132.87 | H152: 136.27 | I152: 137.33 | J152: 137.97 | K152: 136.7 | L152: 135 | M152: 1.65465
A153: 144 | B153: FCONSUMER | C153: 41.5 | D153: 41.47 | E153: 40.83 | F153: 40.17 | G153: 39.53 | H153: 42.13 | I153: 42.77 | J153: 43.43 | K153: 42.1 | L153: 40.8 | M153: 8.04156
A154: 145 | B154: FLFL | C154: 484.5 | D154: 487.30 | E154: 478.20 | F154: 471.90 | G154: 462.80 | H154: 493.60 | I154: 502.70 | J154: 509.00 | K154: 496.4 | L154: 481 | M154: 3.42442
A155: 146 | B155: FRETAIL | C155: 410.3 | D155: 409.40 | E155: 398.90 | F155: 387.50 | G155: 377.00 | H155: 420.80 | I155: 431.30 | J155: 442.70 | K155: 419.9 | L155: 398 | M155: 5.49114
A156: 147 | B156: GAIL | C156: 340.75 | D156: 345.78 | E156: 334.62 | F156: 328.48 | G156: 317.32 | H156: 351.92 | I156: 363.08 | J156: 369.22 | K156: 356.95 | L156: 339.65 | M156: 34.56457
A157: 148 | B157: GEPIL | C157: 906.2 | D157: 911.40 | E157: 895.80 | F157: 885.40 | G157: 869.80 | H157: 921.80 | I157: 937.40 | J157: 947.80 | K157: 927 | L157: 901 | M157: 0.16971
A158: 149 | B158: GET&D | C158: 240.55 | D158: 242.22 | E158: 238.13 | F158: 235.72 | G158: 231.63 | H158: 244.63 | I158: 248.72 | J158: 251.13 | K158: 246.3 | L158: 239.8 | M158: 0.16841
A159: 150 | B159: GHCL | C159: 243.8 | D159: 244.78 | E159: 241.17 | F159: 238.53 | G159: 234.92 | H159: 247.42 | I159: 251.03 | J159: 253.67 | K159: 248.4 | L159: 242.15 | M159: 1.62798
A160: 151 | B160: GMRINFRA | C160: 16 | D160: 16.22 | E160: 15.58 | F160: 15.17 | G160: 14.53 | H160: 16.63 | I160: 17.27 | J160: 17.68 | K160: 16.85 | L160: 15.8 | M160: 159.54295
A161: 152 | B161: GALAXYSURF | C161: 995.35 | D161: 998.40 | E161: 986.95 | F161: 978.55 | G161: 967.10 | H161: 1006.80 | I161: 1018.25 | J161: 1026.65 | K161: 1009.85 | L161: 990 | M161: 0.00993
A162: 153 | B162: GDL | C162: 129.8 | D162: 130.22 | E162: 127.68 | F162: 125.57 | G162: 123.03 | H162: 132.33 | I162: 134.87 | J162: 136.98 | K162: 132.75 | L162: 128.1 | M162: 0.27979
A163: 154 | B163: GAYAPROJ | C163: 160 | D163: 161.58 | E163: 157.72 | F163: 155.43 | G163: 151.57 | H163: 163.87 | I163: 167.73 | J163: 170.02 | K163: 165.45 | L163: 159.3 | M163: 0.46488
A164: 155 | B164: GICRE | C164: 238.45 | D164: 239.48 | E164: 236.47 | F164: 234.48 | G164: 231.47 | H164: 241.47 | I164: 244.48 | J164: 246.47 | K164: 242.5 | L164: 237.5 | M164: 0.33547
A165: 156 | B165: GILLETTE | C165: 7397.5 | D165: 7420.48 | E165: 7347.02 | F165: 7296.53 | G165: 7223.07 | H165: 7470.97 | I165: 7544.43 | J165: 7594.92 | K165: 7493.95 | L165: 7370 | M165: 0.03016
A166: 157 | B166: GSKCONS | C166: 7042.45 | D166: 7032.42 | E166: 6964.83 | F166: 6887.22 | G166: 6819.63 | H166: 7110.03 | I166: 7177.62 | J166: 7255.23 | K166: 7100 | L166: 6954.8 | M166: 0.11267
A167: 158 | B167: GLAXO | C167: 1283.15 | D167: 1280.05 | E167: 1270.10 | F167: 1257.05 | G167: 1247.10 | H167: 1293.10 | I167: 1303.05 | J167: 1316.10 | K167: 1290 | L167: 1267 | M167: 0.23672
A168: 159 | B168: GLENMARK | C168: 634.85 | D168: 632.62 | E168: 626.23 | F168: 617.62 | G168: 611.23 | H168: 641.23 | I168: 647.62 | J168: 656.23 | K168: 639 | L168: 624 | M168: 3.77102
A169: 160 | B169: GODFRYPHLP | C169: 1027.15 | D169: 1040.58 | E169: 1008.17 | F169: 989.18 | G169: 956.77 | H169: 1059.57 | I169: 1091.98 | J169: 1110.97 | K169: 1073 | L169: 1021.6 | M169: 1.42977
A170: 161 | B170: GODREJAGRO | C170: 519.25 | D170: 518.07 | E170: 513.18 | F170: 507.12 | G170: 502.23 | H170: 524.13 | I170: 529.02 | J170: 535.08 | K170: 522.95 | L170: 512 | M170: 1.41309
A171: 162 | B171: GODREJCP | C171: 636 | D171: 636.27 | E171: 628.43 | F171: 620.87 | G171: 613.03 | H171: 643.83 | I171: 651.67 | J171: 659.23 | K171: 644.1 | L171: 628.7 | M171: 12.73122
A172: 163 | B172: GODREJIND | C172: 484.3 | D172: 492.10 | E172: 472.20 | F172: 460.10 | G172: 440.20 | H172: 504.20 | I172: 524.10 | J172: 536.20 | K172: 512 | L172: 480 | M172: 7.08467
A173: 164 | B173: GODREJPROP | C173: 774 | D173: 786.57 | E173: 758.43 | F173: 742.87 | G173: 714.73 | H173: 802.13 | I173: 830.27 | J173: 845.83 | K173: 814.7 | L173: 771 | M173: 3.17715
A174: 165 | B174: GRANULES | C174: 111 | D174: 112.78 | E174: 108.32 | F174: 105.63 | G174: 101.17 | H174: 115.47 | I174: 119.93 | J174: 122.62 | K174: 117.25 | L174: 110.1 | M174: 9.65666
A175: 166 | B175: GRAPHITE | C175: 391.2 | D175: 394.87 | E175: 385.33 | F175: 379.47 | G175: 369.93 | H175: 400.73 | I175: 410.27 | J175: 416.13 | K175: 404.4 | L175: 389 | M175: 8.27565
A176: 167 | B176: GRASIM | C176: 872.35 | D176: 881.58 | E176: 856.27 | F176: 840.18 | G176: 814.87 | H176: 897.67 | I176: 922.98 | J176: 939.07 | K176: 906.9 | L176: 865.5 | M176: 13.75348
A177: 168 | B177: GESHIP | C177: 277.15 | D177: 279.68 | E177: 272.52 | F177: 267.88 | G177: 260.72 | H177: 284.32 | I177: 291.48 | J177: 296.12 | K177: 286.85 | L177: 275.05 | M177: 8.99323
A178: 169 | B178: GREAVESCOT | C178: 146.55 | D178: 147.25 | E178: 145.20 | F178: 143.85 | G178: 141.80 | H178: 148.60 | I178: 150.65 | J178: 152.00 | K178: 149.3 | L178: 145.9 | M178: 2.19382
A179: 170 | B179: GRINDWELL | C179: 599.4 | D179: 598.08 | E179: 591.42 | F179: 583.43 | G179: 576.77 | H179: 606.07 | I179: 612.73 | J179: 620.72 | K179: 604.75 | L179: 590.1 | M179: 0.14405
A180: 171 | B180: GRUH | C180: 310.9 | D180: 314.63 | E180: 304.27 | F180: 297.63 | G180: 287.27 | H180: 321.27 | I180: 331.63 | J180: 338.27 | K180: 325 | L180: 308 | M180: 5.13441
A181: 172 | B181: GUJALKALI | C181: 545.85 | D181: 545.33 | E181: 526.77 | F181: 507.68 | G181: 489.12 | H181: 564.42 | I181: 582.98 | J181: 602.07 | K181: 563.9 | L181: 526.25 | M181: 3.89706
A182: 173 | B182: GUJFLUORO | C182: 1022.05 | D182: 1017.23 | E182: 994.82 | F182: 967.58 | G182: 945.17 | H182: 1044.47 | I182: 1066.88 | J182: 1094.12 | K182: 1039.65 | L182: 990 | M182: 2.13249
A183: 174 | B183: GUJGASLTD | C183: 161.65 | D183: 161.85 | E183: 156.80 | F183: 151.95 | G183: 146.90 | H183: 166.70 | I183: 171.75 | J183: 176.60 | K183: 166.9 | L183: 157 | M183: 17.19457
A184: 175 | B184: GMDCLTD | C184: 73.45 | D184: 73.43 | E184: 71.92 | F184: 70.38 | G184: 68.87 | H184: 74.97 | I184: 76.48 | J184: 78.02 | K184: 74.95 | L184: 71.9 | M184: 1.93528
A185: 176 | B185: GNFC | C185: 301.1 | D185: 305.52 | E185: 295.58 | F185: 290.07 | G185: 280.13 | H185: 311.03 | I185: 320.97 | J185: 326.48 | K185: 315.45 | L185: 300 | M185: 1.37936
A186: 177 | B186: GPPL | C186: 82.35 | D186: 82.58 | E186: 80.77 | F186: 79.18 | G186: 77.37 | H186: 84.17 | I186: 85.98 | J186: 87.57 | K186: 84.4 | L186: 81 | M186: 2.23242
A187: 178 | B187: GSFC | C187: 94.4 | D187: 95.70 | E187: 92.70 | F187: 91.00 | G187: 88.00 | H187: 97.40 | I187: 100.40 | J187: 102.10 | K187: 98.7 | L187: 94 | M187: 7.97318
A188: 179 | B188: GSPL | C188: 182.25 | D188: 182.33 | E188: 177.97 | F188: 173.68 | G188: 169.32 | H188: 186.62 | I188: 190.98 | J188: 195.27 | K188: 186.7 | L188: 178.05 | M188: 3.21996
A189: 180 | B189: GULFOILLUB | C189: 830 | D189: 827.53 | E189: 822.47 | F189: 814.93 | G189: 809.87 | H189: 835.07 | I189: 840.13 | J189: 847.67 | K189: 832.6 | L189: 820 | M189: 1.06174
A190: 181 | B190: HEG | C190: 1750.05 | D190: 1775.02 | E190: 1715.03 | F190: 1680.02 | G190: 1620.03 | H190: 1810.03 | I190: 1870.02 | J190: 1905.03 | K190: 1835 | L190: 1740 | M190: 2.84147
A191: 182 | B191: HCLTECH | C191: 1131.75 | D191: 1132.58 | E191: 1115.17 | F191: 1098.58 | G191: 1081.17 | H191: 1149.17 | I191: 1166.58 | J191: 1183.17 | K191: 1150 | L191: 1116 | M191: 23.44602
A192: 183 | B192: HDFCAMC | C192: 1639.6 | D192: 1648.87 | E192: 1625.73 | F192: 1611.87 | G192: 1588.73 | H192: 1662.73 | I192: 1685.87 | J192: 1699.73 | K192: 1672 | L192: 1635 | M192: 1.00129
A193: 184 | B193: HDFCBANK | C193: 2322.35 | D193: 2332.78 | E193: 2307.57 | F193: 2292.78 | G193: 2267.57 | H193: 2347.57 | I193: 2372.78 | J193: 2387.57 | K193: 2358 | L193: 2318 | M193: 24.81051
A194: 185 | B194: HDFCLIFE | C194: 409.25 | D194: 409.37 | E194: 405.93 | F194: 402.62 | G194: 399.18 | H194: 412.68 | I194: 416.12 | J194: 419.43 | K194: 412.8 | L194: 406.05 | M194: 25.89598
A195: 186 | B195: HATHWAY | C195: 28.8 | D195: 29.07 | E195: 28.48 | F195: 28.17 | G195: 27.58 | H195: 29.38 | I195: 29.97 | J195: 30.28 | K195: 29.65 | L195: 28.75 | M195: 0.96526
A196: 187 | B196: HATSUN | C196: 719.2 | D196: 717.43 | E196: 709.87 | F196: 700.53 | G196: 692.97 | H196: 726.77 | I196: 734.33 | J196: 743.67 | K196: 725 | L196: 708.1 | M196: 0.054
A197: 188 | B197: HAVELLS | C197: 739.1 | D197: 742.97 | E197: 731.23 | F197: 723.37 | G197: 711.63 | H197: 750.83 | I197: 762.57 | J197: 770.43 | K197: 754.7 | L197: 735.1 | M197: 10.54648
A198: 189 | B198: HEIDELBERG | C198: 175.4 | D198: 177.08 | E198: 173.27 | F198: 171.13 | G198: 167.32 | H198: 179.22 | I198: 183.03 | J198: 185.17 | K198: 180.9 | L198: 174.95 | M198: 2.37275
A199: 190 | B199: HERITGFOOD | C199: 463.75 | D199: 468.33 | E199: 456.87 | F199: 449.98 | G199: 438.52 | H199: 475.22 | I199: 486.68 | J199: 493.57 | K199: 479.8 | L199: 461.45 | M199: 0.50205
A200: 191 | B200: HEROMOTOCO | C200: 2527.35 | D200: 2538.95 | E200: 2509.90 | F200: 2492.45 | G200: 2463.40 | H200: 2556.40 | I200: 2585.45 | J200: 2602.90 | K200: 2568 | L200: 2521.5 | M200: 3.47427
A201: 192 | B201: HEXAWARE | C201: 346.2 | D201: 343.62 | E201: 339.23 | F201: 332.27 | G201: 327.88 | H201: 350.58 | I201: 354.97 | J201: 361.93 | K201: 348 | L201: 336.65 | M201: 10.37786
A202: 193 | B202: HFCL | C202: 22.3 | D202: 22.40 | E202: 22.10 | F202: 21.90 | G202: 21.60 | H202: 22.60 | I202: 22.90 | J202: 23.10 | K202: 22.7 | L202: 22.2 | M202: 11.82576
A203: 194 | B203: HSCL | C203: 104.9 | D203: 105.87 | E203: 102.53 | F203: 100.17 | G203: 96.83 | H203: 108.23 | I203: 111.57 | J203: 113.93 | K203: 109.2 | L203: 103.5 | M203: 2.53926
A204: 195 | B204: HIMATSEIDE | C204: 204.7 | D204: 207.43 | E204: 201.27 | F204: 197.83 | G204: 191.67 | H204: 210.87 | I204: 217.03 | J204: 220.47 | K204: 213.6 | L204: 204 | M204: 0.56428
A205: 196 | B205: HINDALCO | C205: 200.45 | D205: 201.30 | E205: 198.35 | F205: 196.25 | G205: 193.30 | H205: 203.40 | I205: 206.35 | J205: 208.45 | K205: 204.25 | L205: 199.2 | M205: 90.4264
A206: 197 | B206: HAL | C206: 646.85 | D206: 649.15 | E206: 641.70 | F206: 636.55 | G206: 629.10 | H206: 654.30 | I206: 661.75 | J206: 666.90 | K206: 656.6 | L206: 644 | M206: 0.04981
... 320 more rows

Sheet Bulk Deals
E6: Back To Main Page
A7: Subject : | B7: BULK DEAL | D7: =Main!B10 -> 2019-05-08
A9: Date | B9: Scrip code | C9: Scrip Name | D9: Client Name | E9: Buy / Sell | F9: Quantity Traded | G9: Trade Price / Wt.Avg.trade price | H9: Exchange
A10: 2019-05-07 | B10: 537766 | C10: BCP | D10: JITAL ASHISH THAKAR | E10: BUY | F10: 300,000 | G10: 38.30 | H10: BSE
A11: 2019-05-07 | B11: 537766 | C11: BCP | D11: ACHINTYA SECURITIES PVT. LTD. | E11: BUY | F11: 645,513 | G11: 39.03 | H11: BSE
A12: 2019-05-07 | B12: 537766 | C12: BCP | D12: ACHINTYA SECURITIES PVT. LTD. | E12: SELL | F12: 645,513 | G12: 38.35 | H12: BSE
A13: 2019-05-07 | B13: 537766 | C13: BCP | D13: ITJ RETAILS PRIVATE LIMITED | E13: SELL | F13: 400,000 | G13: 38.55 | H13: BSE
A14: 2019-05-07 | B14: 542627 | C14: CHANDNIMACH | D14: ASHWINI JITEN AJMERA | E14: SELL | F14: 22,000 | G14: 16.2 | H14: BSE
A15: 2019-05-07 | B15: 538432 | C15: DIVINUS | D15: ASHARI AGENCIES LIMITED | E15: BUY | F15: 50,000 | G15: 22.1 | H15: BSE
A16: 2019-05-07 | B16: 538432 | C16: DIVINUS | D16: MANOJKUMAR GUNVANTRAI SOMANI | E16: BUY | F16: 23 | G16: 21.95 | H16: BSE
A17: 2019-05-07 | B17: 538432 | C17: DIVINUS | D17: MANOJKUMAR GUNVANTRAI SOMANI | E17: SELL | F17: 38,430 | G17: 22.02 | H17: BSE
A18: 2019-05-07 | B18: 538432 | C18: DIVINUS | D18: SAMADHAN SHANKAR KADAM | E18: BUY | F18: 36,000 | G18: 22.00 | H18: BSE
A19: 2019-05-07 | B19: 533090 | C19: EXCEL | D19: SHRIRAM CREDIT COMPANY LIMITED | E19: SELL | F19: 523,820 | G19: 1.04 | H19: BSE
A20: 2019-05-07 | B20: 541276 | C20: GARVIND | D20: SWATI KAPOOR | E20: SELL | F20: 80,000 | G20: 10.1 | H20: BSE
A21: 2019-05-07 | B21: 541276 | C21: GARVIND | D21: SAMBHAV GARG | E21: BUY | F21: 100,000 | G21: 10.12 | H21: BSE
A22: 2019-05-07 | B22: 539486 | C22: GEETANJ | D22: SHIV SHANKAR BHOOTRA | E22: BUY | F22: 36,200 | G22: 1.85 | H22: BSE
A23: 2019-05-07 | B23: 532951 | C23: GSS | D23: SWING INFRASPACE PRIVATE LIMITED | E23: BUY | F23: 229,183 | G23: 133.48 | H23: BSE
A24: 2019-05-07 | B24: 532951 | C24: GSS | D24: JHAVERI TRADING & INVESTMENT PVT LTD | E24: BUY | F24: 14,789 | G24: 127.67 | H24: BSE
A25: 2019-05-07 | B25: 532951 | C25: GSS | D25: JHAVERI TRADING & INVESTMENT PVT LTD | E25: SELL | F25: 121,266 | G25: 133.54 | H25: BSE
A26: 2019-05-07 | B26: 540938 | C26: GUJHYSPIN | D26: MARISHA HARDIK MOTTA | E26: BUY | F26: 160,000 | G26: 5.86 | H26: BSE
A27: 2019-05-07 | B27: 540938 | C27: GUJHYSPIN | D27: MARISHA HARDIK MOTTA | E27: SELL | F27: 30,000 | G27: 5.47 | H27: BSE
A28: 2019-05-07 | B28: 540938 | C28: GUJHYSPIN | D28: JAYSHREE KISHOR MOTTA | E28: SELL | F28: 100,000 | G28: 6.22 | H28: BSE
A29: 2019-05-07 | B29: 532467 | C29: HAZOOR | D29: MAHENDRAKUMAR SESHMALJI SONI | E29: SELL | F29: 132,499 | G29: 0.66 | H29: BSE
A30: 2019-05-07 | B30: 539175 | C30: INDRAIND | D30: RATNAPRABHA BABAN MESTRY | E30: BUY | F30: 57,900 | G30: 28.9 | H30: BSE
A31: 2019-05-07 | B31: 519319 | C31: JATALIA | D31: SURAJ GARG | E31: SELL | F31: 20,000 | G31: 9.04 | H31: BSE
A32: 2019-05-07 | B32: 539408 | C32: KUBERJI | D32: NILESHKUMAR MADHUKARBHAI JOSHI | E32: BUY | F32: 36,248 | G32: 3.26 | H32: BSE
A33: 2019-05-07 | B33: 539408 | C33: KUBERJI | D33: VINOD BRIJMOHANLAL AGRAWAL | E33: SELL | F33: 46,548 | G33: 3.26 | H33: BSE
A34: 2019-05-07 | B34: 526263 | C34: MOLDTEK | D34: AKG FINVEST LIMITED | E34: BUY | F34: 300,000 | G34: 61.62 | H34: BSE
A35: 2019-05-07 | B35: 526263 | C35: MOLDTEK | D35: UNO METALS LIMITED | E35: BUY | F35: 585,000 | G35: 61.25 | H35: BSE
A36: 2019-05-07 | B36: 526263 | C36: MOLDTEK | D36: ASHOK KUMAR GOENKA | E36: SELL | F36: 285,000 | G36: 61.1 | H36: BSE
A37: 2019-05-07 | B37: 526263 | C37: MOLDTEK | D37: GOENKA SECURITIES PVT LTD | E37: SELL | F37: 400,000 | G37: 61.4 | H37: BSE
A38: 2019-05-07 | B38: 538668 | C38: NAYSAA | D38: DEVANG LABHSHANKAR JANI | E38: BUY | F38: 20,000 | G38: 41.5 | H38: BSE
A39: 2019-05-07 | B39: 538668 | C39: NAYSAA | D39: NIRANJANA A. SANGHVI | E39: SELL | F39: 20,000 | G39: 41.5 | H39: BSE
A40: 2019-05-07 | B40: 538668 | C40: NAYSAA | D40: BABULAL TARACHAND SANGHVI | E40: SELL | F40: 28,000 | G40: 41 | H40: BSE
A41: 2019-05-07 | B41: 538668 | C41: NAYSAA | D41: GORDHANBHAI CHIMANBHAI SOLANKI | E41: BUY | F41: 28,000 | G41: 41 | H41: BSE
A42: 2019-05-07 | B42: 540243 | C42: NEWLIGHT | D42: MANISH NITIN THAKUR | E42: BUY | F42: 23,000 | G42: 42.92 | H42: BSE
A43: 2019-05-07 | B43: 540243 | C43: NEWLIGHT | D43: RAJESH SHARMA . | E43: SELL | F43: 12,000 | G43: 42.8 | H43: BSE
A44: 2019-05-07 | B44: 540243 | C44: NEWLIGHT | D44: RAMAN MALHOTRA . | E44: SELL | F44: 14,900 | G44: 42.78 | H44: BSE
A45: 2019-05-07 | B45: 539520 | C45: SHAILJA | D45: ARVIND SHANTILAL SHAH | E45: BUY | F45: 46000 | G45: 20.67 | H45: BSE
A46: 2019-05-07 | B46: 539520 | C46: SHAILJA | D46: SAMIR PRAKASH MEHTA | E46: BUY | F46: 84090 | G46: 21.38 | H46: BSE
A47: 2019-05-07 | B47: 539520 | C47: SHAILJA | D47: SAMIR PRAKASH MEHTA | E47: SELL | F47: 14424 | G47: 21.39 | H47: BSE
A48: 2019-05-07 | B48: 539520 | C48: SHAILJA | D48: KUSUM AGARWAL | E48: SELL | F48: 30000 | G48: 21.52 | H48: BSE
A49: 2019-05-07 | B49: 539520 | C49: SHAILJA | D49: SATISH KUMAR DALMIYA | E49: BUY | F49: 30000 | G49: 19.98 | H49: BSE
A50: 2019-05-07 | B50: 539520 | C50: SHAILJA | D50: ROUSHAN KUMAR MISHRA | E50: SELL | F50: 23363 | G50: 18.29 | H50: BSE
A51: 2019-05-07 | B51: 539520 | C51: SHAILJA | D51: CHIMANLAL MANEKLAL SECURITIES PRIVATE LIMITED | E51: BUY | F51: 18566 | G51: 21.15 | H51: BSE
A52: 2019-05-07 | B52: 539520 | C52: SHAILJA | D52: CHIMANLAL MANEKLAL SECURITIES PRIVATE LIMITED | E52: SELL | F52: 22964 | G52: 20.82 | H52: BSE
A53: 2019-05-07 | B53: 539520 | C53: SHAILJA | D53: NAVEEN GUPTA | E53: BUY | F53: 26490 | G53: 20.87 | H53: BSE
A54: 2019-05-07 | B54: 539520 | C54: SHAILJA | D54: NAVEEN GUPTA | E54: SELL | F54: 26284 | G54: 20.94 | H54: BSE
A55: 2019-05-07 | B55: 539520 | C55: SHAILJA | D55: ASTHA MUKESH BAJARIA | E55: SELL | F55: 26000 | G55: 21.42 | H55: BSE
A56: 2019-05-07 | B56: 502180 | C56: SHREDIGCEM | D56: SHARAD KANAYALAL SHAH | E56: BUY | F56: 931513 | G56: 16.81 | H56: BSE
A57: 2019-05-07 | B57: 539026 | C57: SSPNFIN | D57: RAMESH RAMSHANKAR VYAS | E57: BUY | F57: 12000 | G57: 26.55 | H57: BSE
A58: 2019-05-07 | B58: 539041 | C58: SVPHOUSING | D58: RATNAPRABHA BABAN MESTRY | E58: SELL | F58: 82500 | G58: 15.95 | H58: BSE
A59: 2019-05-07 | B59: 538607 | C59: TOYAMIND | D59: SHREYA NISHIL MARFATIA | E59: BUY | F59: 2830000 | G59: 5.3 | H59: BSE
A60: 2019-05-07 | B60: 532090 | C60: VANDANA | D60: POKHAR MAL GUJAR | E60: BUY | F60: 680500 | G60: 0.2 | H60: BSE
A61: 2019-05-07 | B61: 532090 | C61: VANDANA | D61: GAYATRI DEVI BIYANI | E61: BUY | F61: 700000 | G61: 0.2 | H61: BSE
A62: 2019-05-07 | B62: 532090 | C62: VANDANA | D62: KAILASH INANI | E62: BUY | F62: 700000 | G62: 0.2 | H62: BSE
A63: 2019-05-07 | B63: 532090 | C63: VANDANA | D63: ASHA SANDEEP JAIN | E63: SELL | F63: 1000000 | G63: 0.2 | H63: BSE
A64: 2019-05-07 | B64: 532090 | C64: VANDANA | D64: SHEETAL DHARMESH JAIN | E64: SELL | F64: 1000000 | G64: 0.2 | H64: BSE
A65: 2019-05-07 | B65: 539097 | C65: YOGYA | D65: SANJAY NATWARLAL DESAI | E65: SELL | F65: 24000 | G65: 22.67 | H65: BSE
A66: 2019-05-07 | B66: CGPOWER | C66: CG Power & Ind. Sol. Ltd. | D66: BHARTI SBM HOLDINGS PRIVATE LIMITED | E66: BUY | F66: 6510919 | G66: 36.5 | H66: NSE
A67: 2019-05-07 | B67: CGPOWER | C67: CG Power & Ind. Sol. Ltd. | D67: TOWER RESEARCH CAPITAL MARKETS INDIA PRIVATE LIMITED | E67: BUY | F67: 3845051 | G67: 36.65 | H67: NSE
A68: 2019-05-07 | B68: DHFL | C68: Dewan Housing Fin Corp | D68: ALPHAGREP SECURITIES PRIVATE LIMITED | E68: BUY | F68: 2560844 | G68: 123.09 | H68: NSE
A69: 2019-05-07 | B69: DHFL | C69: Dewan Housing Fin Corp | D69: CROSSLAND TRADING CO | E69: BUY | F69: 3418080 | G69: 123.43 | H69: NSE
A70: 2019-05-07 | B70: DHFL | C70: Dewan Housing Fin Corp | D70: TOWER RESEARCH CAPITAL MARKETS INDIA PRIVATE LIMITED | E70: BUY | F70: 2953444 | G70: 124.97 | H70: NSE
A71: 2019-05-07 | B71: FELIX | C71: Felix Industries Ltd. | D71: ANIL RATILAL RAMANI | E71: BUY | F71: 48000 | G71: 22.3 | H71: NSE
A72: 2019-05-07 | B72: FELIX | C72: Felix Industries Ltd. | D72: MONARCH NETWORTH CAPITAL LIMITED | E72: BUY | F72: 4000 | G72: 25 | H72: NSE
A73: 2019-05-07 | B73: FELIX | C73: Felix Industries Ltd. | D73: RAMANI SATISH RATILAL | E73: BUY | F73: 56000 | G73: 22.2 | H73: NSE
A74: 2019-05-07 | B74: FELIX | C74: Felix Industries Ltd. | D74: SHREE SHIDHI VINAYAK MARKETING PVT LTD | E74: BUY | F74: 116000 | G74: 24 | H74: NSE
A75: 2019-05-07 | B75: GSS | C75: GSS Infotech Limited | D75: JHAVERI TRADING AND INVESTMENT PVT. LTD. | E75: BUY | F75: 86965 | G75: 127.88 | H75: NSE
A76: 2019-05-07 | B76: GSS | C76: GSS Infotech Limited | D76: VOLGA INTERNATIONAL LIMITED | E76: BUY | F76: 152414 | G76: 131.05 | H76: NSE
A77: 2019-05-07 | B77: JETAIRWAYS | C77: Jet Airways (India) Ltd. | D77: ALPHAGREP SECURITIES PRIVATE LIMITED | E77: BUY | F77: 586679 | G77: 128.53 | H77: NSE
A78: 2019-05-07 | B78: JETAIRWAYS | C78: Jet Airways (India) Ltd. | D78: TOWER RESEARCH CAPITAL MARKETS INDIA PRIVATE LIMITED | E78: BUY | F78: 1144455 | G78: 129.15 | H78: NSE
A79: 2019-05-07 | B79: MINDTREE | C79: MindTree Limited | D79: LARSEN & TOUBRO LIMITED | E79: BUY | F79: 843382 | G79: 979.9 | H79: NSE
A80: 2019-05-07 | B80: PCJEWELLER | C80: PC Jeweller Ltd | D80: CROSSLAND TRADING CO | E80: BUY | F80: 2919217 | G80: 127.14 | H80: NSE
A81: 2019-05-07 | B81: PCJEWELLER | C81: PC Jeweller Ltd | D81: TOWER RESEARCH CAPITAL MARKETS INDIA PRIVATE LIMITED | E81: BUY | F81: 3348971 | G81: 127.31 | H81: NSE
A82: 2019-05-07 | B82: PFOCUS | C82: Prime Focus Limited | D82: MARINA IV LP | E82: BUY | F82: 4176961 | G82: 60.62 | H82: NSE
A83: 2019-05-07 | B83: RELCAPITAL | C83: Reliance Capital Limited | D83: ALPHAGREP SECURITIES PRIVATE LIMITED | E83: BUY | F83: 1289251 | G83: 124.8 | H83: NSE
A84: 2019-05-07 | B84: RELCAPITAL | C84: Reliance Capital Limited | D84: TOWER RESEARCH CAPITAL MARKETS INDIA PRIVATE LIMITED | E84: BUY | F84: 1314993 | G84: 126.79 | H84: NSE
A85: 2019-05-07 | B85: SINTERCOM | C85: Sintercom India Limited | D85: BELLWETHER CAPITAL PRIVATE LIMITED | E85: BUY | F85: 140000 | G85: 70 | H85: NSE
A86: 2019-05-07 | B86: CGPOWER | C86: CG Power & Ind. Sol. Ltd. | D86: TOWER RESEARCH CAPITAL MARKETS INDIA PRIVATE LIMITED | E86: SELL | F86: 3845051 | G86: 36.59 | H86: NSE
A87: 2019-05-07 | B87: DHFL | C87: Dewan Housing Fin Corp | D87: ALPHAGREP SECURITIES PRIVATE LIMITED | E87: SELL | F87: 2560473 | G87: 123.24 | H87: NSE
A88: 2019-05-07 | B88: DHFL | C88: Dewan Housing Fin Corp | D88: CROSSLAND TRADING CO | E88: SELL | F88: 3418080 | G88: 123.45 | H88: NSE
A89: 2019-05-07 | B89: DHFL | C89: Dewan Housing Fin Corp | D89: TOWER RESEARCH CAPITAL MARKETS INDIA PRIVATE LIMITED | E89: SELL | F89: 2953444 | G89: 125.15 | H89: NSE
A90: 2019-05-07 | B90: FELIX | C90: Felix Industries Ltd. | D90: AMISHABEN MANISHBHAI MEHTA | E90: SELL | F90: 68000 | G90: 24 | H90: NSE
A91: 2019-05-07 | B91: FELIX | C91: Felix Industries Ltd. | D91: DISHANT JIGISH VASA | E91: SELL | F91: 48000 | G91: 24 | H91: NSE
A92: 2019-05-07 | B92: FELIX | C92: Felix Industries Ltd. | D92: MONARCH NETWORTH CAPITAL LIMITED | E92: SELL | F92: 112000 | G92: 22.41 | H92: NSE
A93: 2019-05-07 | B93: FELIX | C93: Felix Industries Ltd. | D93: SHREE SHIDHI VINAYAK MARKETING PVT LTD | E93: SELL | F93: 4000 | G93: 25 | H93: NSE
A94: 2019-05-07 | B94: GSS | C94: GSS Infotech Limited | D94: VOLGA INTERNATIONAL LIMITED | E94: SELL | F94: 152414 | G94: 128.89 | H94: NSE
A95: 2019-05-07 | B95: JETAIRWAYS | C95: Jet Airways (India) Ltd. | D95: ALPHAGREP SECURITIES PRIVATE LIMITED | E95: SELL | F95: 588360 | G95: 128.56 | H95: NSE
A96: 2019-05-07 | B96: JETAIRWAYS | C96: Jet Airways (India) Ltd. | D96: TOWER RESEARCH CAPITAL MARKETS INDIA PRIVATE LIMITED | E96: SELL | F96: 1144455 | G96: 129.52 | H96: NSE
A97: 2019-05-07 | B97: KEERTI | C97: Keerti Know & Skill Ltd. | D97: DAYAL TAHILRAM PARWANI | E97: SELL | F97: 20000 | G97: 71.2 | H97: NSE
A98: 2019-05-07 | B98: PCJEWELLER | C98: PC Jeweller Ltd | D98: CROSSLAND TRADING CO | E98: SELL | F98: 2919217 | G98: 127.16 | H98: NSE
A99: 2019-05-07 | B99: PCJEWELLER | C99: PC Jeweller Ltd | D99: TOWER RESEARCH CAPITAL MARKETS INDIA PRIVATE LIMITED | E99: SELL | F99: 3348971 | G99: 127.45 | H99: NSE
A100: 2019-05-07 | B100: PFOCUS | C100: Prime Focus Limited | D100: STANDARD CHARTERED PRIVATE EQUITY (MAURITIUS) III LIMITED | E100: SELL | F100: 4179961 | G100: 60.5 | H100: NSE
A101: 2019-05-07 | B101: POWERFUL | C101: Powerful Technologies Ltd | D101: MANISH MITTAL | E101: SELL | F101: 176000 | G101: 16.9 | H101: NSE
A102: 2019-05-07 | B102: RELCAPITAL | C102: Reliance Capital Limited | D102: ALPHAGREP SECURITIES PRIVATE LIMITED | E102: SELL | F102: 1292270 | G102: 124.86 | H102: NSE
A103: 2019-05-07 | B103: RELCAPITAL | C103: Reliance Capital Limited | D103: TOWER RESEARCH CAPITAL MARKETS INDIA PRIVATE LIMITED | E103: SELL | F103: 1314993 | G103: 126.53 | H103: NSE
A104: 2019-05-07 | B104: SINTERCOM | C104: Sintercom India Limited | D104: JAGDISH N MASTER | E104: SELL | F104: 160000 | G104: 70 | H104: NSE

Sheet Call Tracker (Equity & F&O)
M5: Back To Main Page
A6: Retail Research Technical Calls & Fundamental Performance Report for the month of May-2019
M7: =Main!B10 -> 2019-05-08
B8: Positional Call
A9: Sr.no | B9: Date | D9: Company | E9: Rec | F9: Rec Price | G9: Stop Loss*** | H9: Call Closed At | I9: Target | J9: Remark | K9: Profit / Loss per Share | L9: Gain / Loss % | M9: Status | N9: Closed Date | O9: NSE Closed Price
A10: 1 | B10: 2019-04-03 | D10: BOSCHLTD | E10: Buy | F10: 17950-18000 | G10: 16850 | I10: 19500-20000 | J10: Open | O10: =VLOOKUP(D10,Sheet2!A22:M1817,6,0) -> 17784.7 | R10: R
A11: 2 | B11: 2019-04-08 | D11: BAJFINANCE | E11: Sell | F11: 3000-3010 | G11: 3166.6 | I11: 2750-2700 | J11: Open | O11: =VLOOKUP(D11,Sheet2!A25:M1820,6,0) -> 3017.05 | R11: R
A12: 3 | B12: 2019-04-23 | D12: DMART | E12: Buy | F12: 1300-1310 | G12: 1212 | I12: 1470-1500 | J12: Open | O12: =VLOOKUP(D12,Sheet2!A29:M1824,6,0) -> 1255.1 | R12: R
A13: 4 | B13: 2019-04-24 | D13: VEDL | E13: Buy | F13: 173 | G13: 164 | H13: 164 | I13: 190-195 | J13: Loss of Rs.9/- | K13: =H13-F13 -> -9 | L13: =K13/F13 -> -5.20% | M13: Unsuccessful | N13: 2019-05-07 | R13: H
A14: 5 | B14: 2019-04-25 | D14: GRASIM | E14: Sell | F14: 900.5 | G14: 945.6 | H14: 873 | I14: 820-810 | J14: Part Profit of Rs.27.5 | K14: =F14-H14 -> 27.5 | L14: =K14/F14 -> 3.05% | M14: Successful | N14: 2019-05-07 | R14: R
A15: 6 | B15: 2019-05-02 | D15: BAJAJFINSV | E15: Sell | F15: 7610-7630 | G15: 7880 | I15: 7200 | J15: Open | O15: =VLOOKUP(D15,Sheet2!A33:M1828,6,0) -> 7561.95 | R15: H
A16: 7 | B16: 2019-05-02 | D16: IDFCFIRSTB | E16: Buy | F16: 50.20-50.70 | G16: 48 | I16: 55-56 | J16: Open | O16: =VLOOKUP(D16,Sheet2!A34:M1829,6,0) -> 48.75 | R16: H
A17: 8 | B17: 2019-05-03 | D17: APOLLOTYRE | E17: Buy | F17: 202-204 | G17: 189 | I17: 225-230 | J17: Open | O17: =VLOOKUP(D17,Sheet2!A35:M1830,6,0) -> 195.2 | R17: H
A18: 9 | B18: 2019-05-03 | D18: M&M | E18: Buy | F18: 642-646 | G18: 615 | I18: 690-700 | J18: Open | O18: =VLOOKUP(D18,Sheet2!A36:M1831,6,0) -> 636 | R18: H
A19: 10 | B19: 2019-05-06 | D19: MARUTI | E19: Buy | F19: 6650-6700 | G19: 6400 | I19: 7200-7300 | J19: Open | O19: =VLOOKUP(D19,Sheet2!A37:M1832,6,0) -> 6702 | R19: H
A25: CLBS = Closing Basis *** | F25: Reinitiated $
A26: Dividend adjusted <> | F26: Revised stoploss #
A27: Part book {}
A28: Master Trade High Risk
A29: Sr.no | B29: Date | D29: Company | E29: Rec | F29: Rec Price | G29: Stop Loss | H29: Call Closed At | I29: Target | J29: Remark | K29: Profit / Loss per share | L29: Gain / Loss per Lot | M29: Lot | N29: Status | O29: Closed Date
A30: 1 | B30: 2019-05-02 | D30: NIFTY MAY FUT | E30: Sell | F30: 11827.5 | G30: 11945 | H30: 11750 | I30: 11650-11630 | J30: Profit of Rs.77.5/- | K30: =F30-H30 -> 77.5 | L30: =M30*K30 -> 5812.5 | M30: 75 | N30: Successful | O30: 2019-05-02 | R30: R
A31: 2 | B31: 2019-05-02 | D31: ICICIBANK MAY FUT | E31: Buy | F31: 398 | G31: 385 | H31: 404.5 | I31: 415 | J31: Profit of Rs.4.5/- | K31: =H31-F31 -> 6.5 | L31: =M31*4.5 -> 6187.5 | M31: 1375 | N31: Successful | O31: 2019-05-03 | R31: H
D32: ICICIBANK 415 CE | E32: Sell | F32: 9.5 | H32: 11.5 | K32: =F32-H32 -> -2
A33: 3 | B33: 2019-05-06 | D33: HDFC MAY FUT | E33: Buy | F33: 1992 | G33: 1945 | H33: 2017.5 | I33: 2050 | J33: Profit of Rs.19/- | K33: =H33-F33 -> 25.5 | L33: =M33*19 -> 9500 | M33: 500 | N33: Successful | O33: 2019-05-07 | R33: H
D34: HDFC MAY 2040 CE | E34: Sell | F34: 47.5 | H34: 54 | K34: =F34-H34 -> -6.5
A35: 4 | B35: 2019-05-06 | D35: HDFC MAY FUT | E35: Buy | F35: 1990-1993 | G35: 1945 | I35: 2050 | J35: Open | R35: H
D36: HDFC MAY 2040 CE | E36: Sell | F36: 45-50
A41: Master Trade Medium Risk
A42: Sr.no | B42: Date | D42: Company | E42: Rec | F42: Rec Price | G42: Stop Loss | H42: Call Closed At | I42: Target | J42: Remark | K42: Profit/ Loss per lot | L42: Gain / Loss per Lot | M42: Lot | N42: Status | O42: Closed Date
A43: 1 | B43: 2019-04-30 | D43: NIFTY 09-MAY 11600 PE | E43: Buy | F43: 46 | H43: 51 | I43: 100 | J43: Profit of Rs.5/- | K43: =H43-F43 -> 5 | L43: =K43*M43 -> 375 | M43: 75 | N43: Neutral | O43: 2019-05-06 | R43: H
A44: 2 | B44: 2019-05-07 | D44: NIFTY 09-MAY 11600 CE | E44: Buy | F44: 37-39 | I44: 90 | J44: Open | R44: H
B49: Smart Delivery Trade
A50: Sr.no | B50: Date | D50: Company | E50: Rec | F50: Rec Price | G50: Stop Loss*** | H50: Call Closed At | I50: Target | J50: Remark | K50: Profit / Loss per Share | L50: Gain / Loss % | M50: Status | N50: Closed Date | O50: NSE Closed Price
A51: 1 | B51: 2019-04-09 | D51: BRITANNIA | E51: Buy | F51: 2950 | G51: 2870 | H51: 2850 | I51: 3100 | J51: Loss of Rs.100/- | K51: =H51-F51 -> -100 | L51: =K51/F51 -> -3.39% | M51: Unsuccessful | N51: 2019-05-02 | R51: H
A52: 2 | B52: 2019-04-24 | D52: COLPAL | E52: Buy | F52: 1210 | G52: 1173 | H52: 1170.5 | I52: 1275-1285 | J52: Loss of Rs.39.5/- | K52: =H52-F52 -> -39.5 | L52: -3.26% | M52: Unsuccessful | N52: 2019-05-03 | R52: R
A53: 3 | B53: 2019-04-24 | D53: DABUR | E53: Buy | F53: 401 | G53: 387.7 | H53: 386 | I53: 418-422 | J53: Loss of Rs.15/- | K53: =H53-F53 -> -15 | L53: =K53/F53 -> -3.74% | M53: Unsuccessful | N53: 2019-05-02 | R53: R
A54: 4 | B54: 2019-04-26 | D54: MUTHOOTFIN | E54: Buy | F54: 588.5 | G54: 571 | H54: 604 | I54: 615-625 | J54: Profit of Rs.15.5/- | K54: =H54-F54 -> 15.5 | L54: =K54/F54 -> 2.63% | M54: Successful | N54: 2019-05-02 | R54: R
A55: 5 | B55: 2019-04-26 | D55: MGL | E55: Buy | F55: 968-970 | G55: 937.7 | I55: 1020-1030 | J55: Open | O55: =VLOOKUP(D55,Sheet2!A108:M1603,6,0) -> 947 | R55: R
A56: 6 | B56: 2019-04-26 | D56: PIDILITIND | E56: Buy | F56: 1211 | G56: 1172.2 | H56: 1244 | I56: 1275-1285 | J56: Profit of Rs.33/- | K56: =H56-F56 -> 33 | L56: =K56/F56 -> 2.73% | M56: Successful | N56: 2019-05-02 | R56: R
A57: 7 | B57: 2019-05-02 | D57: RAYMOND | E57: Buy | F57: 741 | G57: 714.4 | H57: 758 | I57: 785-795 | J57: Profit of Rs.17/- | K57: =H57-F57 -> 17 | L57: =K57/F57 -> 2.29% | M57: Successful | N57: 2019-05-03 | R57: R
A58: 8 | B58: 2019-05-03 | D58: PIDILITIND | E58: Buy | F58: 1207-1212 | G58: 1172.2 | I58: 1275-1285 | J58: Open | O58: =VLOOKUP(D58,Sheet2!A111:M1606,6,0) -> 1178.7 | R58: R
A59: 9 | B59: 2019-05-03 | D59: BIOCON | E59: Buy | F59: 559-561 | G59: 542.2 | I59: 595-605 | J59: Open | O59: =VLOOKUP(D59,Sheet2!A112:M1607,6,0) -> 550.9 | R59: R
A60: 10 | B60: 2019-05-06 | D60: INFY | E60: Buy | F60: 716-720 | G60: 694.4 | I60: 760-780 | J60: Open | O60: =VLOOKUP(D60,Sheet2!A113:M1608,6,0) -> 724.55 | R60: R
A61: 11 | B61: 2019-05-06 | D61: ASIANPAINT | E61: Buy | F61: 1418-1422 | G61: 1378 | I61: 1480-1500 | J61: Open | O61: =VLOOKUP(D61,Sheet2!A114:M1609,6,0) -> 1387.8 | R61: H
A62: 12 | B62: 2019-05-07 | D62: ICICIBANK | E62: Sell | F62: 401 | G62: 413 | H62: 391 | I62: 380-375 | J62: Profit of Rs.10/- | K62: =F62-H62 -> 10 | L62: =K62/F62 -> 2.49% | M62: Successful | N62: 2019-05-07 | R62: H
A67: CLBS = Closing Basis *** | F67: Reinitiated $
A68: Dividend adjusted <> | F68: Revised stoploss #
B71: Momentum Call
A72: Sr.no | B72: Date | D72: Company | E72: Rec | F72: Rec Price | G72: Stop Loss | H72: Call Closed At | I72: Target | J72: Remark | K72: Profit / Loss per Share/Lot | L72: Gain / Loss % | M72: Gain / Loss per Lot | N72: Lot | O72: Status | P72: Closed Date
A73: 1 | B73: 2019-04-23 | D73: JUBLFOOD | E73: Buy | F73: 1342.5 | G73: 1314 | H73: 1364 | I73: 1400 | J73: Profit of Rs.21.5/- | K73: =H73-F73 -> 21.5 | L73: =K73/F73 -> 1.60% | O73: Successful | P73: 2019-05-02 | R73: H
A74: 2 | B74: 2019-04-30 | D74: WIPRO MAY FUT | E74: Buy | F74: 297.75 | G74: 294 | H74: 294 | I74: 305 | J74: Loss of Rs.3.75/- | K74: =H74-F74 -> -3.75 | M74: =N74*K74 -> -12000 | N74: 3200 | O74: UnSuccessful | P74: 2019-05-02 | R74: N
A75: 3 | B75: 2019-05-03 | D75: CEATLTD MAY FUT | E75: Buy | F75: 1047.5 | G75: 1017.5 | H75: 1027.5 | I75: 1095 | J75: Loss of Rs.20/- | K75: =H75-F75 -> -20 | M75: -8000 | N75: 400 | O75: UnSuccessful | P75: 2019-05-07 | R75: N
A76: 4 | B76: 2019-05-03 | D76: UBL MAY FUT | E76: Buy | F76: 1413.5 | G76: 1399 | H76: 1399 | I76: 1440 | J76: Loss of Rs.-14.5/- | K76: =H76-F76 -> -14.5 | M76: -10150 | N76: 700 | O76: UnSuccessful | P76: 2019-05-03 | R76: R
A77: 5 | B77: 2019-05-06 | D77: EXIDEIND MAY FUT | E77: Buy | F77: 215-216 | G77: 210 | I77: 225 | J77: Open | R77: N
A78: 6 | B78: 2019-05-06 | D78: CONCOR MAY FUT | E78: Buy | F78: 505 | G78: 495 | H78: 497 | I78: 523 | J78: Loss of Rs.8/- | K78: =H78-F78 -> -8 | M78: -12504 | N78: 1563 | O78: UnSuccessful | P78: 2019-05-06 | R78: N
A79: 7 | B79: 2019-05-06 | D79: TITAN | E79: Buy | F79: 1125 | G79: 1098 | H79: 1095 | I79: 1170 | J79: Loss of Rs.30/- | K79: =H79-F79 -> -30 | L79: =K79/F79 -> -2.67% | O79: UnSuccessful | P79: 2019-05-06 | R79: H
A82: CLBS = Closing Basis ***
A83: Dividend adjusted <> | F83: Reinitiated $
F84: Revised stoploss #
B85: Quick Pick Intraday
A86: Sr.no | B86: Date | D86: Company | E86: Rec | F86: Rec Price | G86: Stop Loss*** | H86: Call Closed At | I86: Target | J86: Remark | K86: Profit / Loss per Share | L86: Status | M86: Closed Date
A100: Techno -Funda (positional)
A101: Sr.no | B101: Date | D101: Company | E101: Rec | F101: Rec Price | G101: Stop Loss*** | H101: Call Closed At | I101: Target | J101: Remark | K101: Profit / Loss per Share | L101: Gain / Loss % | M101: Status | N101: Closed Date | O101: NSE Closed Price
A102: 1 | B102: 2019-04-04 | D102: FINPIPE | E102: Buy | F102: 473-476 | G102: 435 | I102: 560 | J102: Open | O102: =VLOOKUP(D102,Sheet2!A142:M1637,6,0) -> 459.35 | R102: H
A106: CLBS = Closing Basis *** | F106: Reinitiated $
A107: Dividend adjusted <> | F107: Revised stoploss #
B112: Investment Idea
A113: Sr.no | B113: Date | D113: Company | E113: Rec | F113: Rec Price | G113: Point of Review | H113: Close Rate | I113: Target | J113: Remark | K113: Profit / Loss per Share | L113: Gain / Loss % | M113: Status | N113: Closed Date
A114: 1 | B114: 2013-11-01 | D114: L&T Finance Holding | E114: Accu | F114: 82.00 | G114: - | H114: 100 | I114: 100.00 | J114: Target Achieved | K114: =H114-F114 -> 18.00 | L114: =K114/F114 -> 21.95% | M114: Successful | N114: 2016-10-14
A115: 2 | B115: 2014-06-04 | D115: Finolex Inds | E115: Buy | F115: 257.00 | G115: - | H115: 300 | I115: 300.00 | J115: Target Achieved | K115: =H115-F115 -> 43.00 | L115: 16.73% | M115: Successful | N115: 2014-07-02
A116: =1+A115 -> 3 | B116: 2014-07-08 | D116: JK Cement | E116: Buy | F116: 393.00 | G116: - | H116: 468 | I116: 468.00 | J116: Target Achieved | K116: =H116-F116 -> 75.00 | L116: 19.08% | M116: Successful | N116: 2014-08-12
A117: 4 | B117: 2014-08-06 | D117: Finolex Cables | E117: Buy | F117: 205.00 | G117: - | H117: 275 | I117: 250.00 | J117: Target Achieved | K117: 70.00 | L117: 34.15% | M117: Successful | N117: 2014-11-19
A118: 5 | B118: 2014-09-04 | D118: Exide Inds | E118: Buy | F118: 162.00 | G118: - | H118: 190 | I118: 190.00 | J118: Target Achieved | K118: 28.00 | L118: 17.28% | M118: Successful | N118: 2015-01-02
A119: 6 | B119: 2014-09-04 | D119: Deepak Nitrite | E119: Buy | F119: 75.00 | G119: - | H119: 91.5 | I119: 95-100 | J119: Profit of Rs.16.50/- | K119: 16.50 | L119: 22.00% | M119: Successful | N119: 2014-11-11
A120: 7 | B120: 2014-10-01 | D120: Mercks | E120: Buy | F120: 850.00 | G120: - | H120: 982.5 | I120: 1050.00 | J120: Profit of Rs.132.50/- | K120: 132.50 | L120: 15.59% | M120: Successful | N120: 2015-02-04
A121: 8 | B121: 2014-10-01 | D121: Grindwell Norton | E121: Buy | F121: 475.00 | G121: - | H121: 515 | I121: 600.00 | J121: Profit of Rs.40/- | K121: 40.00 | L121: 8.42% | M121: Successful | N121: 2014-10-27
A122: 9 | B122: 2014-10-01 | D122: Snowman Logistics | E122: Buy | F122: 86.00 | G122: - | H122: 99 | I122: 140.00 | J122: Profit of Rs.13.00/- | K122: 13.00 | L122: 15.12% | M122: Successful | N122: 2014-10-27
A123: 10 | B123: 2014-10-14 | D123: Birla Corp | E123: Buy | F123: 496.60 | G123: - | H123: 621 | I123: 580.00 | J123: Target Achieved | K123: 124.40 | L123: 25.05% | M123: Successful | N123: 2016-08-23
A124: 11 | B124: 2014-10-14 | D124: Ultratech Cem | E124: Buy | F124: 2481.90 | G124: - | H124: 2840 | I124: 2870.00 | J124: Profit of Rs.358.10/- | K124: 358.10 | L124: 14.43% | M124: Successful | N124: 2015-01-13
A125: =1+A122 -> 10 | B125: 2014-10-16 | D125: Sintex Inds | E125: Buy | F125: 84.50 | G125: - | H125: 93 | I125: 110.00 | J125: Profit of Rs.8.50/- | K125: 8.50 | L125: 10.06% | M125: Successful | N125: 2014-10-27
A126: =1+A125 -> 11 | B126: 2014-10-16 | D126: HSIL | E126: Buy | F126: 401.00 | G126: - | H126: 428 | I126: 450.00 | J126: Profit of Rs.27.00/- | K126: 27.00 | L126: 6.73% | M126: Successful | N126: 2015-01-16
A127: 12 | B127: 2014-10-16 | D127: Eveready Inds | E127: Buy | F127: 101.00 | G127: - | H127: 112 | I127: 120.00 | J127: Profit of Rs.11.00/- | K127: 11.00 | L127: 10.89% | M127: Successful | N127: 2014-10-27
A128: 13 | B128: 2014-11-11 | D128: Pennar Inds | E128: Buy | F128: 59.00 | G128: - | H128: 76 | I128: 76.00 | J128: Target Achieved | K128: 17.00 | L128: 28.81% | M128: Successful | N128: 2017-10-24
A129: 14 | B129: 2014-11-11 | D129: Snowman Logistics | E129: Buy | F129: 99.00 | G129: - | H129: 120 | I129: 120.00 | J129: Profit of Rs.21/- | K129: 21.00 | L129: 21.21% | M129: Successful | N129: 2014-11-17
A130: 15 | B130: 2014-11-13 | D130: Dharamsi Morarji Chem | E130: Buy | F130: 22.00 | G130: - | H130: 33.55 | I130: 32.00 | J130: Profit of Rs 11.55/- | K130: 11.55 | L130: 52.50% | M130: Successful | N130: 2015-07-03
A131: 16 | B131: 2014-12-03 | D131: Tatachem | E131: Buy | F131: 440.00 | G131: - | H131: 520 | I131: 520.00 | J131: Profit of Rs 80.00/- | K131: 80.00 | L131: 18.18% | M131: Successful | N131: 2015-07-23
A132: 17 | B132: 2014-12-03 | D132: Advanta | E132: Buy | F132: 360.00 | G132: - | H132: 427 | I132: 425.00 | J132: Profit of Rs.67.00/- | K132: 67.00 | L132: 18.61% | M132: Successful | N132: 2015-02-23
A133: 18 | B133: 2015-01-08 | D133: GDL | E133: Buy | F133: 360.00 | G133: - | H133: 455 | I133: 420.00 | J133: Profit of Rs.95.00/- | K133: 95.00 | L133: 26.39% | M133: Successful | N133: 2015-01-20
A134: 19 | B134: 2015-01-08 | D134: NRB Bearing | E134: Buy | F134: 130.00 | H134: 175.5 | I134: 165.00 | J134: Profit of Rs 45.50/- | K134: 45.50 | L134: 35.00% | M134: Successful | N134: 2017-12-19
A135: 20 | B135: 2015-02-05 | D135: GSFC | E135: Accu | F135: 98.00 | H135: 120 | I135: 120.00 | J135: Target Achieved | K135: 22.00 | L135: 22.45% | M135: Successful | N135: 2017-01-18
A136: 21 | B136: 2015-02-05 | D136: Sundrmfast | E136: Accu | F136: 196.00 | H136: 262 | I136: 255.00 | J136: Target Achieved | K136: 66.00 | L136: 33.67% | M136: Successful | N136: 2016-08-17
A137: 22 | B137: 2015-03-04 | D137: GPPL | E137: Accu | F137: 235 | H137: 77.00 | I137: 280-285 | J137: Loss of Rs.158/- | K137: =H137-F137 -> -158.00 | L137: -67.23% | M137: Unsuccessful | N137: 2019-02-26
A138: 23 | B138: 2015-03-04 | D138: ORIENTCEM | E138: Accu | F138: 185.00 | H138: 224 | I138: 220-225 | J138: Target Achieved | K138: 39.00 | L138: =K138/F138 -> 21.08% | M138: Successful | N138: 2016-10-04
A139: 24 | B139: 2015-03-27 | D139: PFS | E139: Accu | F139: 49-50 | I139: 67.00 | J139: Open
A140: 25 | B140: 2015-03-30 | D140: Walchandnagar Ind Ltd | E140: Accu | F140: 183.50 | H140: 219 | I140: 218.00 | J140: Profit of Rs.35.50/- | K140: 35.50 | L140: =K140/F140 -> 19.35% | M140: Successful | N140: 2015-04-09
A141: 26 | B141: 2015-04-20 | D141: Kalpataru Power Transmission Ltd | E141: Accu | F141: =(227+237)/2 -> 232.00 | H141: 298 | I141: 298.00 | J141: Target Achieved | K141: 66.00 | L141: 28.45% | M141: Successful | N141: 2017-03-29
A142: 27 | B142: 2015-05-04 | D142: Mastek Ltd | E142: Buy | F142: 385.00 | H142: =212.5+331 -> 543.5 | I142: 510.00 | J142: Profit of Rs 158.50/- | K142: 158.50 | L142: 41.17% | M142: Successful | N142: 2015-08-19
A143: 28 | B143: 2015-05-04 | D143: Suprajit Eng | E143: Buy | F143: 115.50 | H143: 146 | I143: 142.00 | J143: Profit of Rs 30.50/- | K143: 30.50 | L143: 26.41% | M143: Successful | N143: 2015-07-17
A144: 29 | B144: 2015-05-27 | D144: TCI | E144: Buy | F144: 237.50 | H144: 279.5 | I144: 278.00 | J144: Target Achieved | K144: 42.00 | L144: 17.68% | M144: Successful | N144: 2015-08-06
A145: 30 | B145: 2015-06-19 | D145: HSIL | E145: Accu | F145: 340.00 | H145: 448 | I145: 448.00 | J145: Target Achieved | K145: 108.00 | L145: 31.76% | M145: Successful | N145: 2017-10-10
A146: 31 | B146: 2015-07-06 | D146: Capital First | E146: Accu | F146: 390.00 | H146: 460 | I146: 460.00 | J146: Target Achieved | K146: 70.00 | L146: 17.95% | M146: Successful | N146: 2016-04-18
A147: 32 | B147: 2015-07-10 | D147: Dolphin OffShore | E147: Accu | F147: 122.5 | H147: 61.00 | I147: 172.00 | J147: Loss of Rs.61.50/- | K147: -61.50 | L147: -50.20% | M147: Unsuccessful | N147: 2018-08-21
A148: 33 | B148: 2015-08-03 | D148: Allcargo logistics | E148: Accu | F148: 297.50 | H148: 350 | I148: 360.00 | J148: Profit of Rs 52.50/- | K148: 52.50 | L148: =K148/F148 -> 17.65% | M148: Successful | N148: 2015-08-16
A149: 34 | B149: 2015-08-03 | D149: Camline Fine | E149: Accu | F149: 115.50 | H149: 149 | I149: 140.00 | J149: Profit of Rs 33.50/- | K149: 33.50 | L149: 29.00% | M149: Successful | N149: 2017-01-05
A150: 35 | B150: 2015-09-04 | D150: TCI | E150: Accu | F150: 226.00 | H150: 292 | I150: 292.00 | J150: Target Achieved | K150: 66.00 | L150: 29.20% | M150: Successful | N150: 2015-10-09
A151: 36 | B151: 2015-09-07 | D151: Kalpataru Power Transmission Ltd | E151: Accu | F151: 232.50 | H151: 312.5 | I151: 310.00 | J151: Target Achieved | K151: 80.00 | L151: 34.41% | M151: Successful | N151: 2017-03-29
A152: 37 | B152: 2015-09-21 | D152: LLOYD ELECTRIC & ENG LTD | E152: Accu | F152: 196.50 | H152: 238 | I152: 238.00 | J152: Target Achieved | K152: 41.50 | L152: 21.12% | M152: Successful | N152: 2015-10-14
A153: 38 | B153: 2015-09-24 | D153: L&T Finance Holding | E153: Accu | F153: 65.00 | H153: 82 | I153: 82.00 | J153: Target Achieved | K153: 17.00 | L153: 26.15% | M153: Successful | N153: 2016-07-27
A154: 39 | B154: 2015-10-14 | D154: KEC International ltd | E154: Accu | F154: 144.00 | H154: 182.5 | I154: 181.00 | J154: Target Achieved | K154: 38.50 | L154: 26.74% | M154: Successful | N154: 2017-03-23
A155: 40 | B155: 2015-10-14 | D155: Gruh Finance | E155: Accu | F155: 264.00 | H155: 311 | I155: 311.00 | J155: Target Achieved | K155: 47.00 | L155: 17.80% | M155: Successful | N155: 2016-08-22
A156: 41 | B156: 2015-11-10 | D156: Pidilitind | E156: Buy | F156: 549.50 | H156: 630 | I156: 630.00 | J156: Target Achieved | K156: 80.50 | L156: 14.65% | M156: Successful | N156: 2016-02-19
A157: 42 | B157: 2015-12-04 | D157: Zensar Technology | E157: Accu | F157: 1027.50 | H157: 1315 | I157: 1250.00 | J157: Target Achieved | K157: =H157-F157 -> 287.50 | L157: 27.98% | M157: Successful | N157: 2018-05-24
A158: 43 | B158: 2015-12-29 | D158: Vinati Organics Ltd | E158: Accu | F158: 465.00 | H158: 540 | I158: 540.00 | J158: Target Achieved | K158: 75.00 | L158: =K158/F158 -> 16.13% | M158: Successful | N158: 2016-06-09
A159: 44 | B159: 2016-01-11 | D159: GSFC | E159: Buy | F159: 81.00 | H159: 110 | I159: 110.00 | J159: Target Achieved | K159: 29.00 | L159: 35.80% | M159: Successful | N159: 2017-01-10
A160: 45 | B160: 2016-01-13 | D160: SSWL | E160: Buy | F160: 417.50 | H160: 547 | I160: 535.00 | J160: Target Achieved | K160: 129.50 | L160: 31.02% | M160: Successful | N160: 2016-07-27
A161: 46 | B161: 2016-02-08 | D161: Persistent System Ltd | E161: Accu | F161: 650.00 | H161: 800 | I161: 800.00 | J161: Target Achieved | K161: 150.00 | L161: 23.08% | M161: Successful | N161: 2018-02-23
A162: 47 | B162: 2016-03-04 | D162: UPL | E162: Accu | F162: 437.50 | H162: 504.5 | I162: 522.00 | J162: Profit of Rs.67/- | K162: 67.00 | L162: 15.31% | M162: Successful | N162: 2016-04-20
A163: 48 | B163: 2016-03-09 | D163: Ashoka Buildcon Ltd | E163: Accu | F163: 189.50 | H163: 218 | I163: 218.00 | J163: Target Achieved | K163: 28.50 | L163: 15.04% | M163: Successful | N163: 2017-10-26
A164: 49 | B164: 2016-04-11 | D164: PTC INDIA FIN SERV LTD | E164: Accu | F164: 36-37 | I164: 60.00 | J164: Open
A165: 50 | B165: 2016-04-12 | D165: CAMLINFINE $ | E165: Accu | F165: 93.00 | H165: 149 | I165: 140.00 | J165: Profit of Rs 56/- | K165: 56.00 | L165: =K165/F165 -> 60.22% | M165: Successful | N165: 2017-01-05
A166: 51 | B166: 2016-04-12 | D166: Greaves Cotton Ltd. | E166: Accu | F166: 130.00 | H166: 150 | I166: 150-155 | J166: Target Achieved | K166: 20.00 | L166: 15.38% | M166: Successful | N166: 2016-07-13
A167: 52 | B167: 2016-04-13 | D167: DHFL | E167: Accu | F167: 196.00 | H167: 299 | I167: 299.00 | J167: Target Achieved | K167: 103.00 | L167: 52.55% | M167: Successful | N167: 2016-09-07
A168: 53 | B168: 2016-04-13 | D168: Magma | E168: Accu | F168: 88.00 | H168: 103 | I168: 103.00 | J168: Target Achieved | K168: 15.00 | L168: 17.05% | M168: Successful | N168: 2016-06-09
A169: 54 | B169: 2016-05-02 | D169: KEC International ltd $ | E169: Accu | F169: 127.50 | H169: 148 | I169: 148-150 | J169: Target Achieved | K169: 20.50 | L169: 16.08% | M169: Successful | N169: 2016-07-13
A170: 55 | B170: 2016-05-03 | D170: Mindtree | E170: Accu | F170: 675.00 | H170: 815 | I170: 790-800 | J170: Target Achieved | K170: 140.00 | L170: 20.74% | M170: Successful | N170: 2018-02-23
A171: 56 | B171: 2016-06-01 | D171: Atulauto | E171: Accu | F171: 495-505 | I171: 565-570 | J171: Open
A172: 57 | B172: 2016-06-06 | D172: TRITURBINE | E172: Accu | F172: 110.00 | H172: 126.5 | I172: 125.00 | J172: Profit of Rs.16.50/- | K172: 16.50 | L172: =K172/F172 -> 15.00% | M172: Successful | N172: 2016-07-01
A173: 58 | B173: 2016-06-17 | D173: Pennar Industries Ltd | E173: Accu | F173: 44.00 | H173: 69.5 | I173: 69.50 | J173: Profit of Rs.25.50/- | K173: 25.50 | L173: =K173/F173 -> 57.95% | M173: Successful | N173: 2017-08-30
A174: 59 | B174: 2016-06-28 | D174: EVEREADY INDS. IND. LTD. | E174: Accu | F174: 262.50 | H174: 340 | I174: 333.00 | J174: Profit of Rs.77.50/- | K174: 77.50 | L174: =K174/F174 -> 29.52% | M174: Successful | N174: 2017-10-09
A175: 60 | B175: 2016-06-28 | D175: FIEM INDUSTRIES LIMITED | E175: Accu | F175: 840.00 | H175: 1230 | I175: 1230.00 | J175: Target Achieved | K175: 390.00 | L175: =K175/F175 -> 46.43% | M175: Successful | N175: 2016-10-06
A176: 61 | B176: 2016-07-05 | D176: Bajaj Corp Ltd | E176: Accu | F176: 395 | H176: 468.50 | I176: 510.00 | J176: Part profit of Rs.73.50/- | K176: 73.50 | L176: =K176/F176 -> 19% | M176: Successful | N176: 2017-08-30
A177: 62 | B177: 2016-08-02 | D177: GPPL $ | E177: Buy | F177: 169.5 | H177: 77.00 | I177: 198-200 | J177: Loss of Rs.92.5/- | K177: -92.50 | L177: =K177/F177 -> -54.57% | M177: Unsuccessful | N177: 2019-02-26
A178: 63 | B178: 2016-08-04 | D178: WONDERLA HOLIDAYS LTD | E178: Accu | F178: 395-405 | I178: 475.00 | J178: Open
A179: 64 | B179: 2016-08-11 | D179: CAMLINFINE | E179: Accu | F179: 86.50 | H179: 130 | I179: 130.00 | J179: Profit of Rs.43.50/- | K179: =H179-F179 -> 43.50 | L179: =K179/F179 -> 50.29% | M179: Successful | N179: 2017-12-22
A180: 65 | B180: 2016-08-18 | D180: GRANULES | E180: Accu | F180: 133.5 | H180: 126.50 | I180: 178.00 | J180: Exit | K180: -7.00 | L180: -5.24% | M180: Unsuccessful | N180: 2016-09-02
A181: 66 | B181: 2016-08-31 | D181: VA TECH WABAG | E181: Accu | F181: 560.00 | H181: 725 | I181: 725.00 | J181: Target Achieved | K181: 165.00 | L181: 29.46% | M181: Successful | N181: 2016-03-27
A182: 67 | B182: 2016-09-01 | D182: SKIPPER LIMITED | E182: Accu | F182: 160.50 | H182: 210 | I182: 210.00 | J182: Target Achieved | K182: 49.50 | L182: 30.84% | M182: Successful | N182: 2017-05-16
A183: 68 | B183: 2016-10-03 | D183: IFB Industries | E183: Accu | F183: 430.00 | H183: 596 | I183: 575.00 | J183: Profit of Rs.166/- | K183: 166.00 | L183: 38.60% | M183: Successful | N183: 2017-02-03
A184: 69 | B184: 2016-10-14 | D184: ASIANTILES | E184: Accu | F184: 280.00 | H184: 345 | I184: 345.00 | J184: Target Achieved | K184: 65.00 | L184: 23.21% | M184: Successful | N184: 2017-03-20
A185: 70 | B185: 2016-10-14 | D185: DEEPIND | E185: Accu | F185: 245.00 | H185: 325.5 | I185: 330.00 | J185: Profit of Rs.80.5/- | K185: 80.50 | L185: 32.86% | M185: Successful | N185: 2017-02-03
A186: 71 | B186: 2016-10-17 | D186: DCBBANK | E186: Accu | F186: 125.00 | H186: 160 | I186: 160.00 | J186: Target Achieved | K186: 35.00 | L186: 28.00% | M186: Successful | N186: 2017-03-09
A187: 72 | B187: 2016-10-17 | D187: ORIENTREF | E187: Accu | F187: 114.00 | H187: 145 | I187: 145.00 | J187: Target Achieved | K187: 31.00 | L187: =K187/F187 -> 27.19% | M187: Successful | N187: 2017-05-04
A188: 73 | B188: 2016-10-17 | D188: GANECOS | E188: Accu | F188: 212.00 | H188: 280 | I188: 276.00 | J188: Profit of Rs.68/- | K188: 68.00 | L188: =K188/F188 -> 32.08% | M188: Successful | N188: 2017-05-03
A189: 74 | B189: 2016-11-04 | D189: NBCC | E189: Accu | F189: 155.00 | H189: 210 | I189: 210.00 | J189: Profit of Rs.55/- | K189: 55.00 | L189: =K189/F189 -> 35.48% | M189: Successful | N189: 2017-07-28
A190: 75 | B190: 2016-12-06 | D190: PRECAM | E190: Accu | F190: 150.5 | H190: 72.50 | I190: 174.00 | J190: Loss of Rs.78/- | K190: -78.00 | L190: =K190/F190 -> -51.83% | M190: Unsuccessful | N190: 2018-08-21
A191: 76 | B191: 2016-12-08 | D191: INFRATEL | E191: Accu | F191: 380.00 | H191: 478 | I191: 468.00 | J191: Target Achieved | K191: 98.00 | L191: =K191/F191 -> 25.79% | M191: Successful | N191: 2017-10-17
A192: 77 | B192: 2016-12-30 | D192: GODREJPROP | E192: Accu | F192: 305.00 | H192: 375 | I192: 375.00 | J192: Target Achieved | K192: 70.00 | L192: 22.95% | M192: Successful | N192: 2017-02-02
A193: 78 | B193: 2017-01-04 | D193: DEEPAKNTR | E193: Accu | F193: 99.50 | H193: 158 | I193: 158.00 | J193: Target Achieved | K193: 58.50 | L193: 58.79% | M193: Successful | N193: 2017-06-12
A194: 79 | B194: 2017-02-20 | D194: SUBROS | E194: Accu | F194: 202.50 | H194: 234 | I194: 234.00 | J194: Target Achieved | K194: 31.50 | L194: 15.56% | M194: Successful | N194: 2017-04-11
A195: 80 | B195: 2017-02-20 | D195: RECLTD | E195: Accu | F195: 140.50 | H195: 220 | I195: 220.00 | J195: Target Achieved | K195: 79.50 | L195: 56.58% | M195: Successful | N195: 2017-05-09
A196: 81 | B196: 2017-03-24 | D196: VRLLOG | E196: Accu | F196: 300.50 | H196: 417.5 | I196: 420.00 | J196: Profit of Rs.117/- | K196: 117.00 | L196: 38.94% | M196: Successful | N196: 2017-12-01
A197: 82 | B197: 2017-03-24 | D197: FIEMIND | E197: Accu | F197: 850.00 | H197: 1042.5 | I197: 1023.00 | J197: Profit of Rs 192.50/- | K197: 192.50 | L197: 22.65% | M197: Successful | N197: 2017-04-05
A198: 83 | B198: 2017-04-05 | D198: RATNAMANI | E198: Accu | F198: 785.00 | H198: 930 | I198: 920.00 | J198: Profit of Rs.145/- | K198: 145.00 | L198: 18.47% | M198: Successful | N198: 2017-08-29
A199: 84 | B199: 2017-04-06 | D199: ZEEMEDIA | E199: Accu | F199: 40 | H199: 13.10 | I199: 60.00 | J199: Loss of Rs.26.9/- | K199: =H199-F199 -> -26.90 | L199: -67.25% | M199: Unsuccessful | N199: 2018-02-07
A200: 85 | B200: 2017-04-12 | D200: DABUR | E200: Accu | F200: 289.50 | H200: 354 | I200: 360.00 | J200: Profit of Rs.64.5/- | K200: 64.50 | L200: =K200/F200 -> 22.28% | M200: Successful | N200: 2017-11-01
A201: 86 | B201: 2017-04-20 | D201: KPRMILL | E201: Accu | F201: 700.00 | H201: 840 | I201: 840.00 | J201: Profit of Rs.140/- | K201: 140.00 | L201: =K201/F201 -> 20.00% | M201: Successful | N201: 2017-06-07
A202: 87 | B202: 2017-05-22 | D202: GREAVESCOT | E202: Accu | F202: 153-158 | I202: 190.00 | J202: Open
A203: 88 | B203: 2017-06-01 | D203: ESSELPACK | E203: Accu | F203: 130 | H203: 155.50 | I203: 170.00 | J203: Part profit of Rs.51/- | K203: =H203-F203 -> 25.50 | L203: =K203/F203 -> 20% | M203: Successful | N203: 2017-11-17
A204: 89 | B204: 2017-06-15 | D204: KEI | E204: Accu | F204: 214.50 | H204: 262 | I204: 262.00 | J204: Profit of Rs.47.5/- | K204: =H204-F204 -> 47.50 | L204: 22.14% | M204: Successful | N204: 2017-08-30
A205: 90 | B205: 2017-07-17 | D205: MAYURUNIQ | E205: Accu | F205: 370.00 | H205: 447.5 | I205: 450.00 | J205: Target Achieved | K205: 77.50 | L205: 20.95% | M205: Successful | N205: 2017-10-27
A206: 91 | B206: 2017-07-27 | D206: RAMCOCEM | E206: Accu | F206: 657.50 | H206: 825 | I206: 820.00 | J206: Target Achieved | K206: 167.50 | L206: 25.48% | M206: Successful | N206: 2017-12-21
A207: 92 | B207: 2017-08-17 | D207: FINPIPE | E207: Accu | F207: 605.00 | H207: 750 | I207: 750.00 | J207: Profit of Rs.145/- | K207: 145.00 | L207: 23.97% | M207: Successful | N207: 2017-10-19
A208: 93 | B208: 2017-09-01 | D208: SHK | E208: Accu | F208: 255 | H208: 307.50 | I208: 320.00 | J208: Part profit of Rs.52.5/- | K208: 52.50 | L208: 21% | M208: Successful | N208: 2017-12-29
A209: 94 | B209: 2017-09-19 | D209: SKIPPER | E209: Accu | F209: 215.00 | H209: 258 | I209: 258.00 | J209: Target Achieved | K209: 43.00 | L209: 20.00% | M209: Successful | N209: 2017-11-01
A210: 95 | B210: 2017-09-20 | D210: CAMLINFINE | E210: Accu | F210: 75.00 | H210: 90 | I210: 90.00 | J210: Profit of Rs.15.00/- | K210: 15.00 | L210: 20.00% | M210: Successful | N210: 2017-10-11
A211: 96 | B211: 2017-10-03 | D211: GNA | E211: Accu | F211: 315.00 | H211: 392 | I211: 384.00 | J211: Profit of Rs.77/- | K211: 77.00 | L211: 24.44% | M211: Successful | N211: 2017-10-09
A212: 97 | B212: 2017-10-05 | D212: NOCIL | E212: Accu | F212: 145.00 | H212: 179 | I212: 180.00 | J212: Profit of Rs.34/- | K212: 34.00 | L212: 23.45% | M212: Successful | N212: 2017-10-17
A213: 98 | B213: 2017-10-06 | D213: CENTURYPLY | E213: Accu | F213: 256.00 | H213: 323 | I213: 320.00 | J213: Target Achieved | K213: 67.00 | L213: 26.17% | M213: Successful | N213: 2017-11-28
A214: 99 | B214: 2017-10-09 | D214: RECLTD | E214: Accu | F214: 152.5 | H214: 183.50 | I214: 210.00 | J214: Part Profit of Rs.31/- | K214: 31.00 | L214: 20% | M214: Successful | N214: 2017-11-03
A215: 100 | B215: 2017-10-09 | D215: EIHOTEL | E215: Accu | F215: 137.50 | H215: 184 | I215: 183.00 | J215: Profit of Rs.46.5/- | K215: 46.50 | L215: 33.82% | M215: Successful | N215: 2018-01-08
A216: 101 | B216: 2017-10-10 | D216: BOROSIL | E216: Accu | F216: 895.00 | H216: 1122.5 | I216: 1078.00 | J216: Profit of Rs.227.5/- | K216: 227.50 | L216: 25.42% | M216: Successful | N216: 2018-01-17
A217: 102 | B217: 2017-10-10 | D217: NRBBEARING | E217: Accu | F217: 125.50 | H217: 158 | I217: 155.00 | J217: Profit of Rs.32.5/- | K217: 32.50 | L217: 25.90% | M217: Successful | N217: 2017-11-28
A218: 103 | B218: 2017-10-12 | D218: CYIENT | E218: Accu | F218: 525.00 | H218: 629 | I218: 629.00 | J218: Target Achieved | K218: 104.00 | L218: 19.81% | M218: Successful | N218: 2018-01-19
A219: 104 | B219: 2017-11-07 | D219: HATSUN | E219: Accu | F219: 740.00 | H219: 892.5 | I219: 900.00 | J219: Profit of Rs.152.5/- | K219: 152.50 | L219: 20.61% | M219: Successful | N219: 2017-11-13
A220: 105 | B220: 2017-12-04 | D220: SANGHIIND | E220: Accu | F220: 118.50 | H220: 143.5 | I220: 145.00 | J220: Profit of Rs.25/- | K220: 25.00 | L220: 21.10% | M220: Successful | N220: 2017-12-28
A221: 106 | B221: 2017-12-05 | D221: ALLCARGO | E221: Accu | F221: 177.5 | H221: 215.00 | I221: 230.00 | J221: Part Profit of Rs.37.5/- | K221: 37.50 | L221: 21% | M221: Successful | N221: 2017-12-27
A222: 107 | B222: 2017-12-21 | D222: KAJARIACER | E222: Accu | F222: 710-720 | I222: 872.00 | J222: Open
A223: 108 | B223: 2017-12-29 | D223: GNA | E223: Accu | F223: 435.00 | H223: 542.5 | I223: 539.00 | J223: Target Achieved | K223: =H223-F223 -> 107.50 | L223: =K223/F223 -> 24.71% | M223: Successful | N223: 2018-04-16
A224: 109 | B224: 2017-12-29 | D224: ZENSARTECH | E224: Accu | F224: 885.00 | H224: 1090 | I224: 1084.00 | J224: Target Achieved | K224: 205.00 | L224: =K224/F224 -> 23.16% | M224: Successful | N224: 2018-04-23
A225: 110 | B225: 2018-02-07 | D225: GREAVESCOT | E225: Accu | F225: 130-132 | I225: 190.00 | J225: Open
A226: 111 | B226: 2018-02-27 | D226: MOLDTKPAC | E226: Accu | F226: 320-330 | I226: 398.00 | J226: Open
A227: 112 | B227: 2018-03-05 | D227: LICHSGFIN | E227: Accu | F227: 505-515 | I227: 672.00 | J227: Open
A228: 113 | B228: 2018-04-02 | D228: EVERESTIND | E228: Accu | F228: 492.5 | H228: 589.00 | I228: 613.00 | J228: Part Profit of Rs.37.5/- | K228: =H228-F228 -> 96.50 | L228: =K228/F228 -> 20% | M228: Successful | N228: 2018-08-21
A229: 114 | B229: 2018-04-04 | D229: GPPL | E229: Accu | F229: 141.5 | H229: 77.00 | I229: 180.00 | J229: Loss of Rs.64.5/- | K229: -64.50 | L229: -45.58% | M229: Unsuccessful | N229: 2019-02-26
A230: 115 | B230: 2018-04-19 | D230: MANPASAND | E230: Accu | F230: 430 | H230: 220.00 | I230: 537.00 | J230: Loss of Rs.210/- | K230: =H230-F230 -> -210.00 | L230: =K230/F230 -> -48.84% | M230: Unsuccessful | N230: 2018-06-01
A231: 116 | B231: 2018-04-30 | D231: HEIDELBERG | E231: Accu | F231: 156 | H231: 182.50 | I231: 196.00 | J231: Part Profit of Rs.26.5/- | K231: 26.50 | L231: 17% | M231: Successful | N231: 2019-03-11
A232: 117 | B232: 2018-05-17 | D232: PHILIPCARB | E232: Accu | F232: 230-240 | I232: 348.00 | J232: Open
A233: 118 | B233: 2018-06-07 | D233: KEC | E233: Accu | F233: 340-345 | I233: 439.00 | J233: Open
A234: 119 | B234: 2018-07-04 | D234: ASHOKLEY | E234: Accu | F234: 125-130 | I234: 170.00 | J234: Open
A235: 120 | B235: 2018-07-13 | D235: FCONSUMER | E235: Accu | F235: 46-47 | I235: 59.00 | J235: Open
A236: 121 | B236: 2018-07-25 | D236: ZEEMEDIA | E236: Accu | F236: 27.5 | H236: 13.10 | I236: 60.00 | J236: Loss of Rs.14.40/- | K236: =H236-F236 -> -14.40 | L236: =K236/F236 -> -52.36% | M236: Unsuccessful | N236: 2018-02-07
A237: 122 | B237: 2018-08-06 | D237: GABRIEL | E237: Accu | F237: 148-152 | I237: 182.00 | J237: Open
A238: 123 | B238: 2018-08-23 | D238: INDIANHUME | E238: Accu | F238: 285.00 | H238: 355 | I238: 364.00 | J238: Profit of Rs.70/- | K238: =H238-F238 -> 70.00 | L238: =K238/F238 -> 24.56% | M238: Successful | N238: 2018-12-21
A239: 124 | B239: 2018-08-29 | D239: GRINDWELL | E239: Accu | F239: 520-530 | I239: 635.00 | J239: Open
A240: 125 | B240: 2018-10-22 | D240: FINPIPE | E240: Accu | F240: 475.00 | H240: 574 | I240: 570.00 | J240: Target Achieved | K240: =H240-F240 -> 99.00 | L240: =K240/F240 -> 20.84% | M240: Successful | N240: 2018-10-30
A241: 126 | B241: 2018-10-23 | D241: JKPAPER | E241: Accu | F241: 158-162 | I241: 191.00 | J241: Open
A242: 127 | B242: 2018-10-24 | D242: GULFOILLUB | E242: Accu | F242: 707.50 | H242: 872 | I242: 872.00 | J242: Target Achieved | K242: =H242-F242 -> 164.50 | L242: =K242/F242 -> 23.25% | M242: Successful | N242: 2019-01-17
A243: 128 | B243: 2018-10-25 | D243: GODREJCP | E243: Accu | F243: 707.5 | H243: 850.00 | I243: 890.00 | J243: Part Profit of Rs.142.5/- | K243: =H243-F243 -> 142.50 | L243: =K243/F243 -> 20% | M243: Successful | N243: 2018-12-19
A244: 129 | B244: 2018-10-25 | D244: DBCORP | E244: Accu | F244: 164.00 | H244: 204 | I244: 209.00 | J244: Profit of Rs.40/- | K244: =H244-F244 -> 40.00 | L244: =K244/F244 -> 24.39% | M244: Successful | N244: 2019-03-15
A245: 130 | B245: 2018-10-26 | D245: RITES | E245: Accu | F245: 240.00 | H245: 297 | I245: 297.00 | J245: Target Achieved | K245: =H245-F245 -> 57.00 | L245: =K245/F245 -> 23.75% | M245: Successful | N245: 2018-11-13
... 20 more rows

Sheet Sheet2 (hidden)
A1: SYMBOL | B1: SERIES | C1: OPEN | D1: HIGH | E1: LOW | F1: CLOSE | G1: LAST | H1: PREVCLOSE | I1: TOTTRDQTY | J1: TOTTRDVAL | K1: TIMESTAMP | L1: TOTALTRADES | M1: ISIN | N1: ISIN
A2: 20MICRONS | B2: EQ | C2: 37.7 | D2: 37.75 | E2: 36.65 | F2: 37 | G2: 36.75 | H2: 37.3 | I2: 17100 | J2: 635716.35 | K2: 2019-05-07 | L2: 226 | M2: INE144J01027
A3: 21STCENMGM | B3: EQ | C3: 22.1 | D3: 22.5 | E3: 21.7 | F3: 21.7 | G3: 21.7 | H3: 22.1 | I3: 1887 | J3: 41267.8 | K3: 2019-05-07 | L3: 18 | M3: INE253B01015
A4: 3IINFOTECH | B4: EQ | C4: 3.85 | D4: 4 | E4: 3.75 | F4: 3.8 | G4: 3.75 | H4: 3.8 | I4: 2995986 | J4: 11614515.35 | K4: 2019-05-07 | L4: 992 | M4: INE748C01020
A5: 3MINDIA | B5: EQ | C5: 22830 | D5: 23328 | E5: 22637.75 | F5: 23225.7 | G5: 23210 | H5: 22831.65 | I5: 786 | J5: 18115799.4 | K5: 2019-05-07 | L5: 470 | M5: INE470A01017
A6: 3PLAND | B6: BE | C6: 11.3 | D6: 11.3 | E6: 11.3 | F6: 11.3 | G6: 11.3 | H6: 10.8 | I6: 1 | J6: 11.3 | K6: 2019-05-07 | L6: 1 | M6: INE105C01023
A7: 5PAISA | B7: EQ | C7: 280.05 | D7: 294.45 | E7: 280.05 | F7: 291.1 | G7: 290.65 | H7: 286.25 | I7: 5907 | J7: 1710006.1 | K7: 2019-05-07 | L7: 358 | M7: INE618L01018
A8: 63MOONS | B8: EQ | C8: 167.05 | D8: 167.05 | E8: 167.05 | F8: 167.05 | G8: 167.05 | H8: 159.1 | I8: 207767 | J8: 34707477.35 | K8: 2019-05-07 | L8: 849 | M8: INE111B01023
A9: 8KMILES | B9: EQ | C9: 108.4 | D9: 112 | E9: 105.95 | F9: 106.45 | G9: 106.7 | H9: 107.1 | I9: 158479 | J9: 17358477.55 | K9: 2019-05-07 | L9: 2361 | M9: INE650K01021
A10: A2ZINFRA | B10: EQ | C10: 16.6 | D10: 16.75 | E10: 16.4 | F10: 16.5 | G10: 16.45 | H10: 16.5 | I10: 92820 | J10: 1538454.95 | K10: 2019-05-07 | L10: 235 | M10: INE619I01012
A11: AARTIDRUGS | B11: EQ | C11: 613.6 | D11: 620.05 | E11: 608.5 | F11: 617.9 | G11: 620 | H11: 616.45 | I11: 5375 | J11: 3310634.75 | K11: 2019-05-07 | L11: 342 | M11: INE767A01016
A12: AARTIIND | B12: EQ | C12: 1587 | D12: 1610 | E12: 1587 | F12: 1599.5 | G12: 1600.6 | H12: 1577.1 | I12: 17792 | J12: 28462359.4 | K12: 2019-05-07 | L12: 2293 | M12: INE769A01020
A13: AARVEEDEN | B13: EQ | C13: 23.8 | D13: 26.3 | E13: 22.7 | F13: 23.8 | G13: 23.8 | H13: 23.55 | I13: 82041 | J13: 2025155.75 | K13: 2019-05-07 | L13: 552 | M13: INE273D01019
A14: AAVAS | B14: EQ | C14: 1357 | D14: 1462.95 | E14: 1351 | F14: 1411.6 | G14: 1405 | H14: 1343.15 | I14: 426869 | J14: 596813857.2 | K14: 2019-05-07 | L14: 16287 | M14: INE216P01012
A15: ABAN | B15: BE | C15: 50.5 | D15: 51.5 | E15: 50 | F15: 50.5 | G15: 50.3 | H15: 50.5 | I15: 28724 | J15: 1456314.25 | K15: 2019-05-07 | L15: 374 | M15: INE421A01028
A16: ABB | B16: EQ | C16: 1475 | D16: 1496.9 | E16: 1465.55 | F16: 1478.8 | G16: 1476 | H16: 1479.05 | I16: 57445 | J16: 84915399.7 | K16: 2019-05-07 | L16: 3974 | M16: INE117A01022
A17: ABBOTINDIA | B17: EQ | C17: 7420 | D17: 7430 | E17: 7252.3 | F17: 7287.3 | G17: 7280 | H17: 7381 | I17: 3922 | J17: 28708025.35 | K17: 2019-05-07 | L17: 808 | M17: INE358A01014
A18: ABCAPITAL | B18: EQ | C18: 102 | D18: 102.45 | E18: 99.25 | F18: 100.35 | G18: 99.35 | H18: 101.15 | I18: 2009126 | J18: 202693392.8 | K18: 2019-05-07 | L18: 10831 | M18: INE674K01013
A19: ABFRL | B19: EQ | C19: 209.5 | D19: 210.4 | E19: 204.35 | F19: 209 | G19: 208 | H19: 209.8 | I19: 448973 | J19: 93246564.4 | K19: 2019-05-07 | L19: 17199 | M19: INE647O01011
A20: ABSLNN50ET | B20: EQ | C20: 315 | D20: 319 | E20: 293 | F20: 313.2 | G20: 313.2 | H20: 318.9 | I20: 229 | J20: 69732.39 | K20: 2019-05-07 | L20: 28 | M20: INF209KB1B87
A21: ACC | B21: EQ | C21: 1624.15 | D21: 1637.9 | E21: 1590.15 | F21: 1596.9 | G21: 1603.9 | H21: 1620.4 | I21: 427581 | J21: 693524380.6 | K21: 2019-05-07 | L21: 12456 | M21: INE012A01025
A22: ACCELYA | B22: EQ | C22: 925.25 | D22: 932.35 | E22: 916.85 | F22: 922.05 | G22: 917 | H22: 925.25 | I22: 2121 | J22: 1959296.05 | K22: 2019-05-07 | L22: 340 | M22: INE793A01012
A23: ACE | B23: EQ | C23: 96.8 | D23: 98.2 | E23: 94.5 | F23: 95.1 | G23: 95 | H23: 96.65 | I23: 220365 | J23: 21344173.15 | K23: 2019-05-07 | L23: 1842 | M23: INE731H01025
A24: ADANIENT | B24: EQ | C24: 126.4 | D24: 127 | E24: 120.05 | F24: 122.35 | G24: 121.85 | H24: 125.6 | I24: 4593214 | J24: 571259198 | K24: 2019-05-07 | L24: 27660 | M24: INE423A01024
A25: ADANIGAS | B25: EQ | C25: 130.55 | D25: 137.4 | E25: 130.5 | F25: 134.8 | G25: 135.3 | H25: 129.75 | I25: 904522 | J25: 122275749.2 | K25: 2019-05-07 | L25: 14590 | M25: INE399L01023
A26: ADANIGREEN | B26: EQ | C26: 40.5 | D26: 41.65 | E26: 39.1 | F26: 39.45 | G26: 39.5 | H26: 40.2 | I26: 752888 | J26: 30453656.2 | K26: 2019-05-07 | L26: 4172 | M26: INE364U01010
A27: ADANIPORTS | B27: EQ | C27: 381 | D27: 383.95 | E27: 370.1 | F27: 371.9 | G27: 370.4 | H27: 379.8 | I27: 1628805 | J27: 614180562.9 | K27: 2019-05-07 | L27: 41146 | M27: INE742F01042
A28: ADANIPOWER | B28: EQ | C28: 43 | D28: 43.55 | E28: 41.15 | F28: 41.5 | G28: 41.4 | H28: 42.8 | I28: 8436065 | J28: 357348428.9 | K28: 2019-05-07 | L28: 16201 | M28: INE814H01011
A29: ADANITRANS | B29: EQ | C29: 215.1 | D29: 220 | E29: 209.45 | F29: 211.1 | G29: 209.6 | H29: 214.95 | I29: 62355 | J29: 13432254.1 | K29: 2019-05-07 | L29: 1870 | M29: INE931S01010
A30: ADFFOODS | B30: EQ | C30: 251.05 | D30: 251.05 | E30: 244 | F30: 245 | G30: 244 | H30: 247.85 | I30: 14660 | J30: 3619762.4 | K30: 2019-05-07 | L30: 378 | M30: INE982B01019
A31: ADHUNIK | B31: BE | C31: 2.6 | D31: 2.65 | E31: 2.45 | F31: 2.5 | G31: 2.65 | H31: 2.55 | I31: 107304 | J31: 277670.5 | K31: 2019-05-07 | L31: 96 | M31: INE400H01019
A32: ADHUNIKIND | B32: EQ | C32: 67.8 | D32: 70.5 | E32: 67.35 | F32: 69.55 | G32: 70.4 | H32: 67.45 | I32: 54138 | J32: 3723144.3 | K32: 2019-05-07 | L32: 336 | M32: INE452L01012
A33: ADLABS | B33: EQ | C33: 8.5 | D33: 8.5 | E33: 7.95 | F33: 8 | G33: 8 | H33: 8.3 | I33: 120849 | J33: 985683.45 | K33: 2019-05-07 | L33: 327 | M33: INE172N01012
A34: ADORWELD | B34: EQ | C34: 320.05 | D34: 321 | E34: 315 | F34: 315.4 | G34: 315 | H34: 319.9 | I34: 4014 | J34: 1277316.25 | K34: 2019-05-07 | L34: 132 | M34: INE045A01017
A35: ADROITINFO | B35: BE | C35: 15.8 | D35: 15.8 | E35: 15.2 | F35: 15.2 | G35: 15.25 | H35: 16 | I35: 131 | J35: 2011.3 | K35: 2019-05-07 | L35: 5 | M35: INE737B01033
A36: ADSL | B36: EQ | C36: 15.65 | D36: 15.7 | E36: 14.6 | F36: 15.15 | G36: 15.4 | H36: 15.05 | I36: 23562 | J36: 358534.25 | K36: 2019-05-07 | L36: 115 | M36: INE102I01027
A37: ADVANIHOTR | B37: EQ | C37: 63.5 | D37: 63.95 | E37: 61.3 | F37: 62.4 | G37: 62 | H37: 64.1 | I37: 1278 | J37: 80341.95 | K37: 2019-05-07 | L37: 53 | M37: INE199C01026
A38: ADVENZYMES | B38: EQ | C38: 188.5 | D38: 191.5 | E38: 182.35 | F38: 183.75 | G38: 183.5 | H38: 190.05 | I38: 125064 | J38: 23585019.1 | K38: 2019-05-07 | L38: 1937 | M38: INE837H01020
A39: AEGISCHEM | B39: EQ | C39: 195.1 | D39: 202.75 | E39: 194.25 | F39: 196.1 | G39: 194.35 | H39: 195.65 | I39: 121983 | J39: 24294205.3 | K39: 2019-05-07 | L39: 4793 | M39: INE208C01025
A40: AGARIND | B40: EQ | C40: 177.15 | D40: 183 | E40: 167.45 | F40: 173.75 | G40: 174.75 | H40: 172.05 | I40: 18243 | J40: 3213589.15 | K40: 2019-05-07 | L40: 409 | M40: INE204E01012
A41: AGCNET | B41: EQ | C41: 98.2 | D41: 103.5 | E41: 98.05 | F41: 102.75 | G41: 101.15 | H41: 100.1 | I41: 1547 | J41: 155453.25 | K41: 2019-05-07 | L41: 44 | M41: INE676A01019
A42: AGLSL | B42: EQ | C42: 59.75 | D42: 59.9 | E42: 58.6 | F42: 59.35 | G42: 59.5 | H42: 59.4 | I42: 440 | J42: 26210.8 | K42: 2019-05-07 | L42: 21 | M42: INE517U01013
A43: AGRITECH | B43: EQ | C43: 62.7 | D43: 64.4 | E43: 61.55 | F43: 62 | G43: 61.55 | H43: 62.75 | I43: 10172 | J43: 633105.4 | K43: 2019-05-07 | L43: 223 | M43: INE449G01018
A44: AGROPHOS | B44: BE | C44: 67.9 | D44: 73 | E44: 67.9 | F44: 71.75 | G44: 72.95 | H44: 71.4 | I44: 24964 | J44: 1811654.6 | K44: 2019-05-07 | L44: 23 | M44: INE740V01019
A45: AHLEAST | B45: EQ | C45: 235 | D45: 235 | E45: 230.5 | F45: 231.1 | G45: 231.1 | H45: 233 | I45: 85 | J45: 19830.7 | K45: 2019-05-07 | L45: 10 | M45: INE926K01017
A46: AHLUCONT | B46: EQ | C46: 318.05 | D46: 326.05 | E46: 315.2 | F46: 323.2 | G46: 322 | H46: 315.45 | I46: 4354 | J46: 1396984.25 | K46: 2019-05-07 | L46: 247 | M46: INE758C01029
A47: AHLWEST | B47: EQ | C47: 326 | D47: 326 | E47: 326 | F47: 326 | G47: 326 | H47: 324.75 | I47: 5 | J47: 1630 | K47: 2019-05-07 | L47: 3 | M47: INE915K01010
A48: AIAENG | B48: EQ | C48: 1754.75 | D48: 1760.1 | E48: 1710 | F48: 1722.1 | G48: 1729 | H48: 1731.55 | I48: 5161 | J48: 8925578.55 | K48: 2019-05-07 | L48: 1170 | M48: INE212H01026
A49: AIFL | B49: BE | C49: 9.8 | D49: 9.9 | E49: 9.45 | F49: 9.5 | G49: 9.5 | H49: 9.8 | I49: 21922 | J49: 210293.85 | K49: 2019-05-07 | L49: 113 | M49: INE428O01016
A50: AIONJSW | B50: EQ | C50: 23.15 | D50: 23.35 | E50: 22.65 | F50: 22.95 | G50: 22.65 | H50: 23.45 | I50: 46589 | J50: 1074332.05 | K50: 2019-05-07 | L50: 214 | M50: INE743C01021
A51: AIRAN | B51: EQ | C51: 38.5 | D51: 39.9 | E51: 36 | F51: 38.05 | G51: 38.25 | H51: 38.95 | I51: 23116 | J51: 890977.4 | K51: 2019-05-07 | L51: 233 | M51: INE645W01026
A52: AJANTPHARM | B52: EQ | C52: 1075 | D52: 1080 | E52: 1046 | F52: 1051.4 | G52: 1053.95 | H52: 1067.7 | I52: 352776 | J52: 375100703.1 | K52: 2019-05-07 | L52: 10294 | M52: INE031B01049
A53: AJMERA | B53: EQ | C53: 161.3 | D53: 163.9 | E53: 158.1 | F53: 158.65 | G53: 158.5 | H53: 159.7 | I53: 36132 | J53: 5818762.35 | K53: 2019-05-07 | L53: 1018 | M53: INE298G01027
A54: AKSHARCHEM | B54: EQ | C54: 309.15 | D54: 322 | E54: 301.05 | F54: 307.1 | G54: 301.05 | H54: 310.35 | I54: 3641 | J54: 1143280.65 | K54: 2019-05-07 | L54: 176 | M54: INE542B01011
A55: AKSHOPTFBR | B55: EQ | C55: 16.05 | D55: 16.4 | E55: 16.05 | F55: 16.1 | G55: 16.05 | H55: 16.05 | I55: 195595 | J55: 3176280.2 | K55: 2019-05-07 | L55: 598 | M55: INE523B01011
A56: AKZOINDIA | B56: EQ | C56: 1670.05 | D56: 1699.95 | E56: 1666 | F56: 1669.4 | G56: 1666.65 | H56: 1677.2 | I56: 1819 | J56: 3055509.7 | K56: 2019-05-07 | L56: 353 | M56: INE133A01011
A57: ALANKIT | B57: EQ | C57: 33.5 | D57: 33.95 | E57: 33.05 | F57: 33.5 | G57: 33.65 | H57: 33.2 | I57: 547077 | J57: 18389711 | K57: 2019-05-07 | L57: 4899 | M57: INE914E01040
A58: ALBERTDAVD | B58: EQ | C58: 402.95 | D58: 409.9 | E58: 390 | F58: 390.55 | G58: 394.95 | H58: 396.7 | I58: 4711 | J58: 1873682.05 | K58: 2019-05-07 | L58: 265 | M58: INE155C01010
A59: ALBK | B59: EQ | C59: 46.4 | D59: 46.95 | E59: 44.75 | F59: 44.9 | G59: 44.9 | H59: 46.35 | I59: 2805252 | J59: 128665544.7 | K59: 2019-05-07 | L59: 6797 | M59: INE428A01015
A60: ALCHEM | B60: BE | C60: 1.9 | D60: 1.95 | E60: 1.85 | F60: 1.95 | G60: 1.95 | H60: 1.9 | I60: 13240 | J60: 25146.25 | K60: 2019-05-07 | L60: 14 | M60: INE964B01033
A61: ALEMBICLTD | B61: EQ | C61: 41.75 | D61: 42.5 | E61: 41.7 | F61: 42 | G61: 41.85 | H61: 41.9 | I61: 71817 | J61: 3021920.4 | K61: 2019-05-07 | L61: 505 | M61: INE426A01027
A62: ALICON | B62: EQ | C62: 620.05 | D62: 622 | E62: 612.25 | F62: 612.25 | G62: 612.25 | H62: 620.9 | I62: 1301 | J62: 805621.7 | K62: 2019-05-07 | L62: 80 | M62: INE062D01024
A63: ALKALI | B63: EQ | C63: 41.6 | D63: 41.7 | E63: 40 | F63: 40.15 | G63: 40.35 | H63: 41.55 | I63: 5012 | J63: 202586.3 | K63: 2019-05-07 | L63: 101 | M63: INE773I01017
A64: ALKEM | B64: EQ | C64: 1712.1 | D64: 1714.25 | E64: 1670 | F64: 1684.05 | G64: 1676 | H64: 1710.85 | I64: 21201 | J64: 36026496.3 | K64: 2019-05-07 | L64: 3608 | M64: INE540L01014
A65: ALKYLAMINE | B65: EQ | C65: 833.05 | D65: 847.8 | E65: 825.55 | F65: 830 | G65: 832.2 | H65: 839.35 | I65: 1245 | J65: 1036869.25 | K65: 2019-05-07 | L65: 124 | M65: INE150B01021
A66: ALLCARGO | B66: EQ | C66: 104.45 | D66: 105.65 | E66: 103.1 | F66: 103.6 | G66: 103.4 | H66: 103.3 | I66: 108200 | J66: 11288301.75 | K66: 2019-05-07 | L66: 2335 | M66: INE418H01029
A67: ALLSEC | B67: BE | C67: 309 | D67: 311.8 | E67: 308.6 | F67: 310 | G67: 310 | H67: 308.65 | I67: 2482 | J67: 769266.4 | K67: 2019-05-07 | L67: 49 | M67: INE835G01018
A68: ALMONDZ | B68: EQ | C68: 18.7 | D68: 19.85 | E68: 18.65 | F68: 19.1 | G68: 18.8 | H68: 18.7 | I68: 4731 | J68: 90121.85 | K68: 2019-05-07 | L68: 51 | M68: INE326B01027
A69: ALOKTEXT | B69: BE | C69: 3.2 | D69: 3.5 | E69: 3.2 | F69: 3.5 | G69: 3.5 | H69: 3.35 | I69: 1502813 | J69: 5081294.3 | K69: 2019-05-07 | L69: 786 | M69: INE270A01011
A70: ALPA | B70: EQ | C70: 24.7 | D70: 28.8 | E70: 24.65 | F70: 28.6 | G70: 28.5 | H70: 24 | I70: 780894 | J70: 22287118.3 | K70: 2019-05-07 | L70: 2745 | M70: INE385I01010
A71: ALPHAGEO | B71: EQ | C71: 424.75 | D71: 428.9 | E71: 405 | F71: 406.75 | G71: 405.4 | H71: 420.75 | I71: 4846 | J71: 2021388.45 | K71: 2019-05-07 | L71: 503 | M71: INE137C01018
A72: ALPSINDUS | B72: BE | C72: 1.5 | D72: 1.5 | E72: 1.45 | F72: 1.45 | G72: 1.45 | H72: 1.5 | I72: 111 | J72: 163.5 | K72: 2019-05-07 | L72: 5 | M72: INE093B01015
A73: AMARAJABAT | B73: EQ | C73: 649 | D73: 651.15 | E73: 640.95 | F73: 643.1 | G73: 643.05 | H73: 643.5 | I73: 269817 | J73: 174694218.7 | K73: 2019-05-07 | L73: 6150 | M73: INE885A01032
A74: AMBER | B74: EQ | C74: 799 | D74: 812 | E74: 780 | F74: 790 | G74: 805 | H74: 797.5 | I74: 5235 | J74: 4149504 | K74: 2019-05-07 | L74: 635 | M74: INE371P01015
A75: AMBIKCO | B75: EQ | C75: 1123.9 | D75: 1125 | E75: 1105 | F75: 1109.7 | G75: 1109.95 | H75: 1117.05 | I75: 2327 | J75: 2596086.85 | K75: 2019-05-07 | L75: 227 | M75: INE540G01014
A76: AMBUJACEM | B76: EQ | C76: 221.25 | D76: 222.45 | E76: 217.5 | F76: 218.2 | G76: 218.85 | H76: 219.7 | I76: 1610407 | J76: 354424094.6 | K76: 2019-05-07 | L76: 26459 | M76: INE079A01024
A77: AMDIND | B77: EQ | C77: 19.9 | D77: 20.4 | E77: 19.65 | F77: 19.9 | G77: 19.8 | H77: 19.55 | I77: 2494 | J77: 49599 | K77: 2019-05-07 | L77: 29 | M77: INE005I01014
A78: AMJLAND | B78: EQ | C78: 19.6 | D78: 20 | E78: 19.55 | F78: 20 | G78: 20 | H78: 19.9 | I78: 7450 | J78: 147825.75 | K78: 2019-05-07 | L78: 21 | M78: INE606A01024
A79: AMRUTANJAN | B79: EQ | C79: 302.1 | D79: 305 | E79: 296.25 | F79: 297.55 | G79: 296.25 | H79: 297.65 | I79: 9423 | J79: 2827454.9 | K79: 2019-05-07 | L79: 612 | M79: INE098F01031
A80: ANANTRAJ | B80: EQ | C80: 30.1 | D80: 30.25 | E80: 29.1 | F80: 29.3 | G80: 29.1 | H80: 29.85 | I80: 164277 | J80: 4866158.1 | K80: 2019-05-07 | L80: 683 | M80: INE242C01024
A81: ANDHRABANK | B81: EQ | C81: 24.6 | D81: 24.7 | E81: 24.05 | F81: 24.15 | G81: 24.15 | H81: 24.5 | I81: 688804 | J81: 16784770.4 | K81: 2019-05-07 | L81: 2374 | M81: INE434A01013
A82: ANDHRACEMT | B82: BE | C82: 4.4 | D82: 4.5 | E82: 4.25 | F82: 4.3 | G82: 4.25 | H82: 4.4 | I82: 19799 | J82: 85844.4 | K82: 2019-05-07 | L82: 68 | M82: INE666E01012
A83: ANDHRSUGAR | B83: EQ | C83: 342 | D83: 353.9 | E83: 342 | F83: 343.3 | G83: 342.1 | H83: 343.3 | I83: 15179 | J83: 5281113.55 | K83: 2019-05-07 | L83: 658 | M83: INE715B01013
A84: ANIKINDS | B84: EQ | C84: 13.4 | D84: 13.4 | E84: 12.95 | F84: 13.05 | G84: 13 | H84: 13.4 | I84: 1526 | J84: 20014.1 | K84: 2019-05-07 | L84: 21 | M84: INE087B01017
A85: ANKITMETAL | B85: BE | C85: 0.45 | D85: 0.5 | E85: 0.45 | F85: 0.45 | G85: 0.5 | H85: 0.5 | I85: 4400 | J85: 2020 | K85: 2019-05-07 | L85: 7 | M85: INE106I01010
A86: ANSALAPI | B86: EQ | C86: 9.8 | D86: 9.95 | E86: 9.4 | F86: 9.55 | G86: 9.55 | H86: 9.85 | I86: 88787 | J86: 856388.55 | K86: 2019-05-07 | L86: 269 | M86: INE436A01026
A87: ANSALHSG | B87: EQ | C87: 11.15 | D87: 11.2 | E87: 10.75 | F87: 10.8 | G87: 10.85 | H87: 10.8 | I87: 26527 | J87: 289318.3 | K87: 2019-05-07 | L87: 154 | M87: INE880B01015
A88: ANTGRAPHIC | B88: BE | C88: 0.75 | D88: 0.8 | E88: 0.75 | F88: 0.8 | G88: 0.8 | H88: 0.8 | I88: 25152 | J88: 19043.05 | K88: 2019-05-07 | L88: 19 | M88: INE414B01021
A89: ANUP | B89: EQ | C89: 450.15 | D89: 456 | E89: 436.05 | F89: 437.15 | G89: 440 | H89: 451.7 | I89: 23471 | J89: 10485296.25 | K89: 2019-05-07 | L89: 3597 | M89: INE294Z01018
A90: APARINDS | B90: EQ | C90: 645.05 | D90: 660.4 | E90: 637 | F90: 648.2 | G90: 647.25 | H90: 651.55 | I90: 5552 | J90: 3576955 | K90: 2019-05-07 | L90: 432 | M90: INE372A01015
A91: APCL | B91: EQ | C91: 135.6 | D91: 139 | E91: 127.95 | F91: 129.2 | G91: 128.55 | H91: 137.75 | I91: 3064 | J91: 407542.5 | K91: 2019-05-07 | L91: 172 | M91: INE071F01012
A92: APCOTEXIND | B92: EQ | C92: 508 | D92: 522.85 | E92: 504 | F92: 516.05 | G92: 516.5 | H92: 506.1 | I92: 7076 | J92: 3641884.8 | K92: 2019-05-07 | L92: 426 | M92: INE116A01024
A93: APEX | B93: EQ | C93: 299.8 | D93: 301.75 | E93: 290 | F93: 291.75 | G93: 293 | H93: 294.95 | I93: 40543 | J93: 11970320.8 | K93: 2019-05-07 | L93: 1432 | M93: INE346W01013
A94: APLAPOLLO | B94: EQ | C94: 1523.9 | D94: 1536 | E94: 1479.3 | F94: 1512.05 | G94: 1515 | H94: 1533.45 | I94: 22256 | J94: 33461999 | K94: 2019-05-07 | L94: 2131 | M94: INE702C01019
A95: APLLTD | B95: EQ | C95: 557.75 | D95: 565 | E95: 546.75 | F95: 549.7 | G95: 549 | H95: 559.65 | I95: 18531 | J95: 10292525.95 | K95: 2019-05-07 | L95: 1601 | M95: INE901L01018
A96: APOLLO | B96: EQ | C96: 138.4 | D96: 144.6 | E96: 135.55 | F96: 141.2 | G96: 140.4 | H96: 136.75 | I96: 170304 | J96: 23864481.6 | K96: 2019-05-07 | L96: 3585 | M96: INE713T01010
A97: APOLLOHOSP | B97: EQ | C97: 1195.5 | D97: 1199.1 | E97: 1152.35 | F97: 1164.95 | G97: 1174 | H97: 1190.3 | I97: 320142 | J97: 376314347 | K97: 2019-05-07 | L97: 32481 | M97: INE437A01024
A98: APOLLOTYRE | B98: EQ | C98: 197.8 | D98: 199.1 | E98: 194.55 | F98: 195.2 | G98: 195.4 | H98: 197.05 | I98: 1273921 | J98: 250946267.1 | K98: 2019-05-07 | L98: 12675 | M98: INE438A01022
A99: APOLSINHOT | B99: EQ | C99: 946.95 | D99: 955 | E99: 881 | F99: 909.75 | G99: 919.9 | H99: 922.55 | I99: 818 | J99: 758098.85 | K99: 2019-05-07 | L99: 98 | M99: INE451F01024
A100: APTECHT | B100: EQ | C100: 152.25 | D100: 157 | E100: 148.5 | F100: 150.4 | G100: 149.55 | H100: 151.05 | I100: 185050 | J100: 28329157.9 | K100: 2019-05-07 | L100: 3082 | M100: INE266F01018
A101: ARCHIDPLY | B101: EQ | C101: 39 | D101: 39.8 | E101: 36.5 | F101: 37.2 | G101: 36.75 | H101: 38.6 | I101: 22932 | J101: 878003.45 | K101: 2019-05-07 | L101: 479 | M101: INE877I01016
A102: ARCHIES | B102: EQ | C102: 22.25 | D102: 22.4 | E102: 21.55 | F102: 21.9 | G102: 22 | H102: 22.1 | I102: 28825 | J102: 634807.85 | K102: 2019-05-07 | L102: 279 | M102: INE731A01020
A103: ARCOTECH | B103: BE | C103: 5 | D103: 5 | E103: 4.8 | F103: 4.85 | G103: 4.85 | H103: 4.9 | I103: 34334 | J103: 167030.6 | K103: 2019-05-07 | L103: 37 | M103: INE574I01035
A104: ARENTERP | B104: EQ | C104: 11.85 | D104: 11.85 | E104: 11.85 | F104: 11.85 | G104: 11.85 | H104: 12.45 | I104: 100 | J104: 1185 | K104: 2019-05-07 | L104: 1 | M104: INE610C01014
A105: ARIES | B105: EQ | C105: 76.7 | D105: 77.8 | E105: 74.05 | F105: 74.65 | G105: 74.75 | H105: 76.65 | I105: 6464 | J105: 488511.95 | K105: 2019-05-07 | L105: 210 | M105: INE298I01015
A106: ARIHANT | B106: EQ | C106: 26.05 | D106: 28 | E106: 26.05 | F106: 27 | G106: 27 | H106: 26.25 | I106: 9302 | J106: 251255.05 | K106: 2019-05-07 | L106: 22 | M106: INE413D01011
A107: ARIHANTSUP | B107: BE | C107: 58.9 | D107: 58.9 | E107: 56.1 | F107: 56.9 | G107: 57 | H107: 56.35 | I107: 12070 | J107: 689744.2 | K107: 2019-05-07 | L107: 77 | M107: INE643K01018
A108: ARMANFIN | B108: EQ | C108: 351.4 | D108: 355 | E108: 343.05 | F108: 347.5 | G108: 346.25 | H108: 357.4 | I108: 12678 | J108: 4441182.35 | K108: 2019-05-07 | L108: 277 | M108: INE109C01017
A109: AROGRANITE | B109: EQ | C109: 50.8 | D109: 51.6 | E109: 49.55 | F109: 49.85 | G109: 50 | H109: 51.65 | I109: 4446 | J109: 222664.65 | K109: 2019-05-07 | L109: 107 | M109: INE210C01013
A110: ARROWGREEN | B110: EQ | C110: 70.05 | D110: 74.65 | E110: 67.5 | F110: 67.7 | G110: 67.6 | H110: 71.5 | I110: 20508 | J110: 1423249.45 | K110: 2019-05-07 | L110: 417 | M110: INE570D01018
A111: ARROWTEX | B111: EQ | C111: 18.35 | D111: 18.35 | E111: 17.2 | F111: 17.7 | G111: 17.75 | H111: 17.45 | I111: 3710 | J111: 65769.7 | K111: 2019-05-07 | L111: 28 | M111: INE933J01015
A112: ARSHIYA | B112: EQ | C112: 30.3 | D112: 31 | E112: 29.65 | F112: 30.15 | G112: 29.85 | H112: 30.45 | I112: 19290 | J112: 579676.85 | K112: 2019-05-07 | L112: 318 | M112: INE968D01022
A113: ARSSINFRA | B113: BE | C113: 49.05 | D113: 49.05 | E113: 44.9 | F113: 44.9 | G113: 44.9 | H113: 47.25 | I113: 12171 | J113: 558612.05 | K113: 2019-05-07 | L113: 135 | M113: INE267I01010
A114: ARVIND | B114: EQ | C114: 81.8 | D114: 82.1 | E114: 78.6 | F114: 78.9 | G114: 79 | H114: 81.3 | I114: 1588631 | J114: 127170663.2 | K114: 2019-05-07 | L114: 9857 | M114: INE034A01011
A115: ARVINDFASN | B115: EQ | C115: 999.8 | D115: 999.8 | E115: 991.05 | F115: 995.1 | G115: 997.3 | H115: 991.6 | I115: 81738 | J115: 81330712.7 | K115: 2019-05-07 | L115: 2330 | M115: INE955V01021
A116: ARVSMART | B116: EQ | C116: 115 | D116: 116.95 | E116: 113.2 | F116: 114.7 | G116: 114.2 | H116: 114.85 | I116: 9897 | J116: 1135182.05 | K116: 2019-05-07 | L116: 279 | M116: INE034S01021
A117: ASAHIINDIA | B117: EQ | C117: 238.9 | D117: 240 | E117: 230 | F117: 230 | G117: 230 | H117: 235.4 | I117: 10656 | J117: 2463399 | K117: 2019-05-07 | L117: 336 | M117: INE439A01020
A118: ASAHISONG | B118: EQ | C118: 150.6 | D118: 150.7 | E118: 145 | F118: 145.15 | G118: 145.1 | H118: 147.75 | I118: 3038 | J118: 442631 | K118: 2019-05-07 | L118: 94 | M118: INE228I01012
A119: ASAL | B119: EQ | C119: 51.4 | D119: 52.2 | E119: 50.15 | F119: 50.55 | G119: 50.2 | H119: 51 | I119: 10683 | J119: 549364.85 | K119: 2019-05-07 | L119: 112 | M119: INE900C01027
A120: ASHAPURMIN | B120: BE | C120: 21.7 | D120: 22.9 | E120: 21 | F120: 21.4 | G120: 21.15 | H120: 22.1 | I120: 38938 | J120: 829909.85 | K120: 2019-05-07 | L120: 151 | M120: INE348A01023
A121: ASHIANA | B121: EQ | C121: 113.5 | D121: 114.9 | E121: 111.65 | F121: 112.65 | G121: 114 | H121: 114.8 | I121: 23957 | J121: 2717008.05 | K121: 2019-05-07 | L121: 324 | M121: INE365D01021
A122: ASHIMASYN | B122: EQ | C122: 10.75 | D122: 11.4 | E122: 10.75 | F122: 10.9 | G122: 10.9 | H122: 11 | I122: 29972 | J122: 334420.5 | K122: 2019-05-07 | L122: 264 | M122: INE440A01010
A123: ASHOKA | B123: EQ | C123: 118 | D123: 124.15 | E123: 117.45 | F123: 118.1 | G123: 117.5 | H123: 116.05 | I123: 68586 | J123: 8167796.1 | K123: 2019-05-07 | L123: 1690 | M123: INE442H01029
A124: ASHOKLEY | B124: EQ | C124: 88.7 | D124: 88.8 | E124: 85.6 | F124: 85.95 | G124: 86.1 | H124: 88.05 | I124: 14500633 | J124: 1263195363 | K124: 2019-05-07 | L124: 55245 | M124: INE208A01029
A125: ASIANHOTNR | B125: EQ | C125: 132.05 | D125: 133.4 | E125: 128.5 | F125: 133.35 | G125: 133.4 | H125: 129.5 | I125: 1274 | J125: 165715.5 | K125: 2019-05-07 | L125: 185 | M125: INE363A01022
A126: ASIANPAINT | B126: EQ | C126: 1426.8 | D126: 1426.8 | E126: 1376.35 | F126: 1387.8 | G126: 1391 | H126: 1412.8 | I126: 2863939 | J126: 4000436558 | K126: 2019-05-07 | L126: 78177 | M126: INE021A01026
A127: ASIANTILES | B127: EQ | C127: 183.8 | D127: 183.8 | E127: 178.35 | F127: 179.95 | G127: 180 | H127: 180.05 | I127: 200908 | J127: 36162314.45 | K127: 2019-05-07 | L127: 936 | M127: INE022I01019
A128: ASPINWALL | B128: EQ | C128: 151.95 | D128: 151.95 | E128: 148.55 | F128: 148.55 | G128: 148.55 | H128: 151 | I128: 111 | J128: 16746 | K128: 2019-05-07 | L128: 6 | M128: INE991I01015
A129: ASSAMCO | B129: BE | C129: 2 | D129: 2 | E129: 1.9 | F129: 1.95 | G129: 1.95 | H129: 1.95 | I129: 143917 | J129: 279482.25 | K129: 2019-05-07 | L129: 119 | M129: INE442A01024
A130: ASTEC | B130: EQ | C130: 536 | D130: 542 | E130: 491.5 | F130: 496.85 | G130: 495.9 | H130: 530.45 | I130: 35411 | J130: 18115486.1 | K130: 2019-05-07 | L130: 1838 | M130: INE563J01010
A131: ASTERDM | B131: EQ | C131: 142.75 | D131: 145 | E131: 140.7 | F131: 142.55 | G131: 143.05 | H131: 141.15 | I131: 19919 | J131: 2851022.8 | K131: 2019-05-07 | L131: 758 | M131: INE914M01019
A132: ASTRAL | B132: EQ | C132: 1193.95 | D132: 1219.95 | E132: 1161.1 | F132: 1175.1 | G132: 1177.1 | H132: 1178.35 | I132: 36674 | J132: 44001868.1 | K132: 2019-05-07 | L132: 2620 | M132: INE006I01046
A133: ASTRAMICRO | B133: EQ | C133: 87.95 | D133: 88.4 | E133: 82 | F133: 82.8 | G133: 82.35 | H133: 87.8 | I133: 177186 | J133: 15038239.3 | K133: 2019-05-07 | L133: 1931 | M133: INE386C01029
A134: ASTRAZEN | B134: EQ | C134: 2329.8 | D134: 2364 | E134: 2295 | F134: 2313.85 | G134: 2305.1 | H134: 2312.85 | I134: 8669 | J134: 20225536.7 | K134: 2019-05-07 | L134: 2369 | M134: INE203A01020
A135: ASTRON | B135: EQ | C135: 93 | D135: 95.4 | E135: 90 | F135: 90.7 | G135: 90.25 | H135: 92.55 | I135: 256443 | J135: 23905123.85 | K135: 2019-05-07 | L135: 2774 | M135: INE646X01014
A136: ATFL | B136: EQ | C136: 552 | D136: 568.85 | E136: 551.1 | F136: 567.1 | G136: 566 | H136: 551.75 | I136: 6616 | J136: 3699175.95 | K136: 2019-05-07 | L136: 3382 | M136: INE209A01019
A137: ATLANTA | B137: EQ | C137: 15.7 | D137: 15.75 | E137: 14.65 | F137: 14.8 | G137: 14.8 | H137: 15.25 | I137: 54460 | J137: 814416.7 | K137: 2019-05-07 | L137: 517 | M137: INE285H01022
A138: ATLASCYCLE | B138: BE | C138: 59.1 | D138: 62.5 | E138: 59 | F138: 59.3 | G138: 59 | H138: 60 | I138: 2834 | J138: 170678.1 | K138: 2019-05-07 | L138: 64 | M138: INE446A01025
A139: ATUL | B139: EQ | C139: 3519.9 | D139: 3570 | E139: 3504.95 | F139: 3537.1 | G139: 3550 | H139: 3498.75 | I139: 15930 | J139: 56375919.75 | K139: 2019-05-07 | L139: 2011 | M139: INE100A01010
A140: ATULAUTO | B140: EQ | C140: 326.65 | D140: 331 | E140: 326 | F140: 327 | G140: 327 | H140: 328.9 | I140: 5345 | J140: 1749851.7 | K140: 2019-05-07 | L140: 354 | M140: INE951D01028
A141: AUBANK | B141: EQ | C141: 625 | D141: 646 | E141: 625 | F141: 639.4 | G141: 639.75 | H141: 624.65 | I141: 382191 | J141: 244384756.2 | K141: 2019-05-07 | L141: 9637 | M141: INE949L01017
A142: AURIONPRO | B142: EQ | C142: 143.65 | D142: 144.45 | E142: 138 | F142: 139.05 | G142: 142 | H142: 144.2 | I142: 23790 | J142: 3352758.9 | K142: 2019-05-07 | L142: 396 | M142: INE132H01018
A143: AUROPHARMA | B143: EQ | C143: 782.7 | D143: 789.65 | E143: 764.45 | F143: 770.7 | G143: 770.7 | H143: 778.9 | I143: 1597737 | J143: 1244260500 | K143: 2019-05-07 | L143: 63588 | M143: INE406A01037
A144: AUSOMENT | B144: EQ | C144: 33.3 | D144: 35.95 | E144: 33.3 | F144: 35.8 | G144: 33.3 | H144: 35.95 | I144: 96 | J144: 3367.5 | K144: 2019-05-07 | L144: 15 | M144: INE218C01016
A145: AUTOAXLES | B145: EQ | C145: 1110 | D145: 1110 | E145: 1075 | F145: 1086.75 | G145: 1084 | H145: 1098.85 | I145: 3318 | J145: 3630717.15 | K145: 2019-05-07 | L145: 461 | M145: INE449A01011
A146: AUTOIND | B146: EQ | C146: 45.25 | D146: 45.25 | E146: 44.05 | F146: 44.45 | G146: 44.5 | H146: 44.65 | I146: 5322 | J146: 237793.15 | K146: 2019-05-07 | L146: 90 | M146: INE718H01014
A147: AUTOLITIND | B147: EQ | C147: 34.45 | D147: 34.45 | E147: 32.75 | F147: 33 | G147: 32.8 | H147: 33.2 | I147: 1224 | J147: 40662.75 | K147: 2019-05-07 | L147: 35 | M147: INE448A01013
A148: AVADHSUGAR | B148: EQ | C148: 451.5 | D148: 467.9 | E148: 451.5 | F148: 459.45 | G148: 460 | H148: 450.05 | I148: 62435 | J148: 28840310.75 | K148: 2019-05-07 | L148: 1557 | M148: INE349W01017
A149: AVANTIFEED | B149: EQ | C149: 365 | D149: 368 | E149: 356.7 | F149: 359.25 | G149: 358.8 | H149: 362.45 | I149: 151994 | J149: 55255975.1 | K149: 2019-05-07 | L149: 5307 | M149: INE871C01038
A150: AVTNPL | B150: EQ | C150: 23.15 | D150: 23.9 | E150: 22.8 | F150: 23.25 | G150: 23 | H150: 23.1 | I150: 9473 | J150: 219841.2 | K150: 2019-05-07 | L150: 166 | M150: INE488D01021
A151: AXISBANK | B151: EQ | C151: 751.85 | D151: 755.5 | E151: 740 | F151: 741.85 | G151: 744.85 | H151: 747.45 | I151: 5071941 | J151: 3796225620 | K151: 2019-05-07 | L151: 141094 | M151: INE238A01034
A152: AXISCADES | B152: EQ | C152: 49 | D152: 50.45 | E152: 48.5 | F152: 49.1 | G152: 49.3 | H152: 50.05 | I152: 310232 | J152: 15384539.15 | K152: 2019-05-07 | L152: 2720 | M152: INE555B01013
A153: AXISNIFTY | B153: EQ | C153: 1191.03 | D153: 1191.08 | E153: 1168.63 | F153: 1172.44 | G153: 1168.63 | H153: 1188.11 | I153: 67 | J153: 79170.54 | K153: 2019-05-07 | L153: 14 | M153: INF846K01ZL0
A154: AYMSYNTEX | B154: EQ | C154: 34.2 | D154: 36.3 | E154: 33.6 | F154: 34.8 | G154: 33.65 | H154: 33.6 | I154: 39687 | J154: 1402243.85 | K154: 2019-05-07 | L154: 107 | M154: INE193B01039
A155: BAFNAPHARM | B155: EQ | C155: 8.2 | D155: 8.2 | E155: 7.95 | F155: 8 | G155: 8.05 | H155: 8.15 | I155: 5670 | J155: 45396.55 | K155: 2019-05-07 | L155: 44 | M155: INE878I01014
A156: BAGFILMS | B156: EQ | C156: 4.45 | D156: 4.5 | E156: 4.3 | F156: 4.35 | G156: 4.35 | H156: 4.4 | I156: 91181 | J156: 403301.8 | K156: 2019-05-07 | L156: 124 | M156: INE116D01028
A157: BAJAJ-AUTO | B157: EQ | C157: 3026 | D157: 3053 | E157: 3021.3 | F157: 3033.05 | G157: 3038 | H157: 3026.2 | I157: 244684 | J157: 742829006.4 | K157: 2019-05-07 | L157: 26009 | M157: INE917I01010
A158: BAJAJCON | B158: EQ | C158: 333.2 | D158: 354.9 | E158: 331.4 | F158: 349.85 | G158: 350 | H158: 331.9 | I158: 556742 | J158: 192463402.2 | K158: 2019-05-07 | L158: 22185 | M158: INE933K01021
A159: BAJAJELEC | B159: EQ | C159: 561 | D159: 565 | E159: 552.05 | F159: 557.75 | G159: 558.2 | H159: 557.85 | I159: 68237 | J159: 38066482.6 | K159: 2019-05-07 | L159: 5173 | M159: INE193E01025
A160: BAJAJFINSV | B160: EQ | C160: 7684 | D160: 7698.75 | E160: 7525 | F160: 7561.95 | G160: 7553 | H160: 7667.95 | I160: 103553 | J160: 788010214.9 | K160: 2019-05-07 | L160: 15771 | M160: INE918I01018
A161: BAJAJHIND | B161: EQ | C161: 8.05 | D161: 8.1 | E161: 7.85 | F161: 7.9 | G161: 7.9 | H161: 8 | I161: 732906 | J161: 5841473.05 | K161: 2019-05-07 | L161: 1113 | M161: INE306A01021
A162: BAJAJHLDNG | B162: EQ | C162: 3185.2 | D162: 3193.7 | E162: 3168 | F162: 3178.05 | G162: 3175 | H162: 3181 | I162: 9918 | J162: 31528876.55 | K162: 2019-05-07 | L162: 2098 | M162: INE118A01012
A163: BAJFINANCE | B163: EQ | C163: 3052.9 | D163: 3069.8 | E163: 3007.6 | F163: 3017.05 | G163: 3023 | H163: 3034.3 | I163: 970264 | J163: 2950885672 | K163: 2019-05-07 | L163: 56586 | M163: INE296A01024
A164: BALAJITELE | B164: EQ | C164: 71.5 | D164: 73.65 | E164: 71 | F164: 72.9 | G164: 73.65 | H164: 72.4 | I164: 14896 | J164: 1081979.3 | K164: 2019-05-07 | L164: 327 | M164: INE794B01026
A165: BALAMINES | B165: EQ | C165: 442.5 | D165: 446 | E165: 428 | F165: 430.05 | G165: 428.1 | H165: 442.05 | I165: 9963 | J165: 4327426.1 | K165: 2019-05-07 | L165: 939 | M165: INE050E01027
A166: BALAXI | B166: BE | C166: 115.6 | D166: 115.6 | E166: 115.6 | F166: 115.6 | G166: 115.6 | H166: 110.1 | I166: 3323 | J166: 384138.8 | K166: 2019-05-07 | L166: 26 | M166: INE618N01014
A167: BALKRISHNA | B167: EQ | C167: 35.05 | D167: 36.95 | E167: 34.4 | F167: 34.45 | G167: 35.8 | H167: 35.45 | I167: 5085 | J167: 179387.85 | K167: 2019-05-07 | L167: 111 | M167: INE875R01011
A168: BALKRISIND | B168: EQ | C168: 870 | D168: 879.7 | E168: 851.2 | F168: 856.55 | G168: 854.1 | H168: 867.2 | I168: 691072 | J168: 600470055.9 | K168: 2019-05-07 | L168: 12694 | M168: INE787D01026
A169: BALLARPUR | B169: EQ | C169: 2.5 | D169: 2.55 | E169: 2.45 | F169: 2.5 | G169: 2.5 | H169: 2.5 | I169: 496737 | J169: 1243673.3 | K169: 2019-05-07 | L169: 302 | M169: INE294A01037
A170: BALMLAWRIE | B170: EQ | C170: 168.9 | D170: 169.85 | E170: 167.05 | F170: 167.8 | G170: 168 | H170: 168.9 | I170: 34154 | J170: 5745330.25 | K170: 2019-05-07 | L170: 845 | M170: INE164A01016
A171: BALPHARMA | B171: EQ | C171: 67.5 | D171: 69.3 | E171: 66.5 | F171: 66.95 | G171: 67 | H171: 67.5 | I171: 10909 | J171: 733850.05 | K171: 2019-05-07 | L171: 219 | M171: INE083D01012
A172: BALRAMCHIN | B172: EQ | C172: 154.2 | D172: 154.5 | E172: 141 | F172: 143.55 | G172: 143.6 | H172: 153.55 | I172: 1110849 | J172: 164488630.8 | K172: 2019-05-07 | L172: 21732 | M172: INE119A01028
A173: BANARBEADS | B173: EQ | C173: 50.4 | D173: 50.4 | E173: 45.15 | F173: 45.95 | G173: 46.25 | H173: 48.9 | I173: 11024 | J173: 525769.9 | K173: 2019-05-07 | L173: 176 | M173: INE655B01011
A174: BANARISUG | B174: EQ | C174: 1435.25 | D174: 1435.3 | E174: 1388 | F174: 1394.35 | G174: 1394.5 | H174: 1419.6 | I174: 590 | J174: 829410.6 | K174: 2019-05-07 | L174: 113 | M174: INE459A01010
A175: BANCOINDIA | B175: EQ | C175: 152 | D175: 152 | E175: 147 | F175: 147.85 | G175: 147 | H175: 149 | I175: 11317 | J175: 1686576.25 | K175: 2019-05-07 | L175: 288 | M175: INE213C01025
A176: BANDHANBNK | B176: EQ | C176: 606.2 | D176: 611.6 | E176: 588.15 | F176: 590.85 | G176: 590.7 | H176: 603.8 | I176: 853243 | J176: 511239319.7 | K176: 2019-05-07 | L176: 22652 | M176: INE545U01014
A177: BANG | B177: EQ | C177: 41.05 | D177: 42.05 | E177: 40.25 | F177: 41.5 | G177: 41.9 | H177: 41.15 | I177: 6113 | J177: 252096.15 | K177: 2019-05-07 | L177: 231 | M177: INE863I01016
A178: BANKBARODA | B178: EQ | C178: 117 | D178: 117.45 | E178: 112 | F178: 112.55 | G178: 112.45 | H178: 116 | I178: 13550529 | J178: 1558783473 | K178: 2019-05-07 | L178: 43138 | M178: INE028A01039
A179: BANKBEES | B179: EQ | C179: 3040 | D179: 3040 | E179: 2975.7 | F179: 2984.4 | G179: 2984 | H179: 3018.38 | I179: 1537 | J179: 4608639.05 | K179: 2019-05-07 | L179: 340 | M179: INF732E01078
A180: BANKINDIA | B180: EQ | C180: 88.25 | D180: 88.7 | E180: 84.25 | F180: 84.75 | G180: 84.5 | H180: 87.75 | I180: 5049227 | J180: 438241926.3 | K180: 2019-05-07 | L180: 14875 | M180: INE084A01016
A181: BANSWRAS | B181: EQ | C181: 67 | D181: 67 | E181: 62.2 | F181: 62.95 | G181: 62.3 | H181: 68.2 | I181: 1792 | J181: 115766.95 | K181: 2019-05-07 | L181: 72 | M181: INE629D01012
A182: BARTRONICS | B182: EQ | C182: 5.85 | D182: 6 | E182: 5.6 | F182: 5.85 | G182: 5.9 | H182: 5.75 | I182: 21499 | J182: 124049.2 | K182: 2019-05-07 | L182: 106 | M182: INE855F01034
A183: BASF | B183: EQ | C183: 1321 | D183: 1331.85 | E183: 1283.4 | F183: 1292.95 | G183: 1294.9 | H183: 1313.2 | I183: 5891 | J183: 7673635.6 | K183: 2019-05-07 | L183: 735 | M183: INE373A01013
A184: BASML | B184: EQ | C184: 177.6 | D184: 178 | E184: 175 | F184: 175.9 | G184: 175 | H184: 180.2 | I184: 153 | J184: 26995.45 | K184: 2019-05-07 | L184: 15 | M184: INE186H01014
A185: BATAINDIA | B185: EQ | C185: 1370 | D185: 1375.8 | E185: 1350 | F185: 1353.55 | G185: 1355.7 | H185: 1373.45 | I185: 1225646 | J185: 1669042055 | K185: 2019-05-07 | L185: 32308 | M185: INE176A01028
A186: BAYERCROP | B186: EQ | C186: 4076.25 | D186: 4119 | E186: 4075 | F186: 4090.4 | G186: 4079.95 | H186: 4098.25 | I186: 6363 | J186: 26055440.95 | K186: 2019-05-07 | L186: 2481 | M186: INE462A01022
A187: BBL | B187: EQ | C187: 1041 | D187: 1053.5 | E187: 1016 | F187: 1018.3 | G187: 1016 | H187: 1037.95 | I187: 7642 | J187: 7878380.75 | K187: 2019-05-07 | L187: 785 | M187: INE464A01028
A188: BBTC | B188: EQ | C188: 1201.5 | D188: 1219.95 | E188: 1191 | F188: 1194.9 | G188: 1198 | H188: 1200.05 | I188: 85501 | J188: 102694449 | K188: 2019-05-07 | L188: 2991 | M188: INE050A01025
A189: BCG | B189: BE | C189: 5.6 | D189: 5.6 | E189: 5.6 | F189: 5.6 | G189: 5.6 | H189: 5.85 | I189: 55190 | J189: 309064 | K189: 2019-05-07 | L189: 58 | M189: INE425B01027
A190: BDL | B190: EQ | C190: 288.95 | D190: 289 | E190: 280.35 | F190: 281.6 | G190: 280.6 | H190: 289.35 | I190: 16243 | J190: 4631410.85 | K190: 2019-05-07 | L190: 1291 | M190: INE171Z01018
A191: BEARDSELL | B191: EQ | C191: 18.1 | D191: 20.8 | E191: 15.4 | F191: 15.85 | G191: 15.8 | H191: 17.35 | I191: 35849 | J191: 641581.7 | K191: 2019-05-07 | L191: 481 | M191: INE520H01022
A192: BEDMUTHA | B192: EQ | C192: 17.95 | D192: 17.95 | E192: 16.9 | F192: 17.05 | G192: 16.9 | H192: 17.05 | I192: 7442 | J192: 127193.55 | K192: 2019-05-07 | L192: 46 | M192: INE844K01012
A193: BEL | B193: EQ | C193: 89 | D193: 89.35 | E193: 86.45 | F193: 86.7 | G193: 86.85 | H193: 88.25 | I193: 6085306 | J193: 537268608.5 | K193: 2019-05-07 | L193: 26016 | M193: INE263A01024
A194: BEML | B194: EQ | C194: 859.7 | D194: 860 | E194: 831.2 | F194: 835.35 | G194: 832 | H194: 853.1 | I194: 751407 | J194: 637203464.7 | K194: 2019-05-07 | L194: 16792 | M194: INE258A01016
A195: BEPL | B195: EQ | C195: 85 | D195: 86 | E195: 80.2 | F195: 81.45 | G195: 80.3 | H195: 84.25 | I195: 973825 | J195: 81009404.3 | K195: 2019-05-07 | L195: 5766 | M195: INE922A01025
A196: BERGEPAINT | B196: EQ | C196: 312.9 | D196: 313.8 | E196: 303.3 | F196: 304.7 | G196: 304.05 | H196: 311.35 | I196: 426183 | J196: 131089543 | K196: 2019-05-07 | L196: 8743 | M196: INE463A01038
A197: BFINVEST | B197: EQ | C197: 211.9 | D197: 217.5 | E197: 209 | F197: 212.65 | G197: 213 | H197: 210.15 | I197: 31682 | J197: 6765230.55 | K197: 2019-05-07 | L197: 998 | M197: INE878K01010
A198: BFUTILITIE | B198: EQ | C198: 172.7 | D198: 174.6 | E198: 168.2 | F198: 169 | G198: 169 | H198: 171.2 | I198: 422249 | J198: 72585488.05 | K198: 2019-05-07 | L198: 9875 | M198: INE243D01012
A199: BGLOBAL | B199: BE | C199: 2.25 | D199: 2.45 | E199: 2.25 | F199: 2.35 | G199: 2.35 | H199: 2.35 | I199: 10116 | J199: 23102.3 | K199: 2019-05-07 | L199: 12 | M199: INE224M01013
A200: BGRENERGY | B200: EQ | C200: 54.25 | D200: 56.9 | E200: 53.35 | F200: 54.35 | G200: 54.35 | H200: 54.15 | I200: 209827 | J200: 11583092.8 | K200: 2019-05-07 | L200: 1747 | M200: INE661I01014
... 1430 more rows

Sheet Sheet1 (hidden)

Sheet Sheet3 (hidden)

Sheet Sheet4 (hidden)
